{"text_format":"1","workbook":"xlsx","n_sheets":17,"sheets":["Dinner Menu Matrix","Day 0 - Production","Day 1 - Production","Day 2 - Production","Day 3 - Production","Day 4 - Production","Day 5 - Production","Day 6 - Production","Day 7 - Production","Day 8 - Production","Day 9 - Production","Day 10 - Production","Day 11 - Production","Day 12 - Production","Day 13 - Production","Menu Vessel List","LUNCH CARVING"],"not_rendered":{"charts":0,"images":0,"macros":0,"external_links":0,"defined_names":14,"comments":0,"pivot_tables":0},"unopened":[],"bounds":{"document_bytes":16777216,"sheet_cells":100000,"rows_first":2000,"rows_last":500,"rows_between":2000,"halvings":0,"cell_chars":16384,"cell_head_chars":4096},"cells_cut":0,"cells_raw":0,"read":"whole","date_system":"1900"}

{"sheet":"Dinner Menu Matrix","index":0,"n_rows":120,"n_cols":10,"rows_kept":120,"cut":false,"hidden":false,"merged":[[63,1,67,1],[68,1,69,1],[115,1,116,1],[117,1,118,1],[71,1,72,1],[77,1,82,1],[83,1,86,1],[102,1,104,1],[105,1,106,1],[94,1,95,1],[57,0,61,0],[63,0,69,0],[71,0,75,0],[77,0,86,0],[115,0,118,0],[88,0,92,0],[94,0,96,0],[99,0,100,0],[102,0,107,0],[109,0,112,0],[34,1,35,1],[39,0,42,0],[51,0,55,0],[44,0,49,0],[34,0,35,0],[36,0,37,0],[36,1,37,1],[26,1,27,1],[28,1,29,1],[30,1,31,1],[24,0,25,0],[26,0,27,0],[28,0,29,0],[30,0,31,0],[24,1,25,1],[23,0,23,1],[5,6,6,6],[3,0,4,0],[3,1,4,1],[21,1,22,1],[13,0,14,0],[11,1,12,1],[5,0,6,0],[9,0,10,0],[11,0,12,0],[15,1,18,1],[19,1,20,1],[15,0,18,0],[19,0,22,0]]}
[null,"STATION","DINNER / DAY 0  x 2","DINNER / DAY 1","DINNER / DAY 2","DINNER / DAY 3","DINNER / DAY 4","DINNER/ DAY 5","DINNER / DAY 6","DINNER / DAY 7"]
[null,null,"WESTERN DESTINATIONS","WESTERN DESTINATIONS","WESTERN DESTINATIONS","WESTERN DESTINATIONS","WESTERN DESTINATIONS","WESTERN DESTINATIONS","WESTERN DESTINATIONS","WESTERN DESTINATIONS"]
["A1","GF-PASTA","1) Roasted Peppers & Basil","1) Green Peas & Cherry Tomatoes","1) Roasted Zucchini, peppers, eggplant, red onions","1) Mushrooms, Garlic, Spinach Fresh","1) Roasted Peppers & Basil","1) Wild Mushroom Cream Sauce","1) Green Peas & Cherry Tomatoes","1) Mushrooms, Garlic, Spinach Fresh"]
["A2","DAILY HOT SANDWICH","1) Open Face Lemon Chicken ","1) Ultimate Grilled Cheese on ","1) Pulled Jerk Chicken Sliders w/","1) Meatball Slider w/ Mozzarella ","1) Pulled Pork Sliders w/ Gouda","1) Beef Sliders w/ Mushrooms, ","1) Short-Rib Sliders w/ Pickled Onions","1) Corned Flake Chicken & Waffle"]
[null,null,"Gruyere Sandwich","Sourdough Bread","Jack Cheese & Slaw","Wilted Spinach & Parmesan","BBQ Sauce, Pickles & Red Onion-P","Caramelized Onions & Cheddar","Gorogonzola & Bacon Jam","Sandwich w/ Sriracha Syrup"]
["A3","TEX-MEX ITEM","1) Chili Beef Brisket & Yellow Corn","1) Shaved Pastrami Soft Tacos","1) Potato-Sausage Quesadillia","1) Steak & Cheese Enchilada w/","1) Cilantro Chicken Nacho's w/ tomato salsa and cilantro","1) Fried Codfish Tacos / Asian Slaw","1) Corn Quesadilla with Pulled Pork","1) Roasted Vegetable Quesadilla"]
[null,"SIDE ITEM","Cheese Enchilada","Jack Cheese, Pickles, 1000 Island ","w/ Black Beans (from salsa)","Yellow Corn Salsa",null,"Chipotle Aioli","Cheese, Cilantro, Jerk Spice","w/ Mozzarella Cheese"]
["A4","TOPPINGS","Salsa: Tomato / Corn / Black Bean  - Guacamole / Sour Cream / Cheddar","Salsa: Tomato / Corn / Black Bean  - Guacamole / Sour Cream / Cheddar","Salsa: Tomato / Corn / Black Bean  - Guacamole / Sour Cream / Cheddar","Salsa: Tomato / Corn / Black Bean  - Guacamole / Sour Cream / Cheddar","Salsa: Tomato / Corn / Black Bean  - Guacamole / Sour Cream / Cheddar","Salsa: Tomato / Corn / Black Bean  - Guacamole / Sour Cream / Cheddar","Salsa: Tomato / Corn / Black Bean  - Guacamole / Sour Cream / Cheddar","Salsa: Tomato / Corn / Black Bean  - Guacamole / Sour Cream / Cheddar"]
[null,null,"CARVING BAZAAR","CARVING BAZAAR","CARVING BAZAAR","CARVING BAZAAR","CARVING BAZAAR","CARVING BAZAAR","CARVING BAZAAR","CARVING BAZAAR"]
["B1","FISH/SEAFOOD","1) Spinach Stuffed Flounder/Butr Sc","1) Seared Cod in Fennel Cream Sauce","1) Grilled Salmon/Tomato, Capers","1) Seared Snapper, Citrus Emulsion","1) Orange-Pepper Tuna / Orange Em","1) Whole Roasted Salmon Filet","1) Miso-Baked Codfish & Shiitake","1) Grilled Snapper, Sauce Nicoise"]
[null,"VEGETABLES","2) Parmesan Green Beans","2) Oven Roasted Brussel Sprouts","2) Baked Leek Ragout","2) Garlic Oil Broccoli","2) Roasted Green Zucchini & Peppers","Pickled Red Onions-Parsley Garnish","2) Bokchoy & Bean Sprouts Chili","2) Roasted Broccoli"]
["B2","POTATO OR VEG","1) Creamy Mashed Potatoes","1) Olive-Garlic Crushed Potato","1) Parmesan Crusted Potatoes","1) Rosemary Crushed Red Bliss","1) Bacon Cheddar Stuff Potatoes","1) Potatoes in Mushroom Sauce","1) Classic Duchess Potatoes","1) Rosemary Garlic Potatoes Bliss"]
[null,null,"2) Honey Roasted Sweet Potato","2) Cheddar Mashed Potatoe","2) Steamed Green Beans","2) Truffle Mashed Potato","2) Roasted Sweet Potato Mash","2) Sweet Potato Mash","2) Creamed Spinach","2) Sour Cream Mashed Potato"]
["B3","CARVING","MEATLOAF & MACARONI WRAPPED IN APPLEWOOD BACON","MEDITERRANEAN CHICKEN ROULADE W/ OLIVES","ROSEMARY CRUSTED SIRLOIN","APRICOT&FIG STUFFED TURKEY BREAST WRAPPED IN BACON","MUSTARD CRUSTED LAMB LEG","CHICKEN-MUSHROOM ROULADE","HERB ROASTED PRIME RIB","FLANK STEAK STUFFED W/ ONION SPINACH & GORGONZOLA"]
[null,"SAUCES","1) Cheese Sauce 2) BBQ Sauce          3) Cranberry Sauce 4) Mushroom","1) Mushroom Sauce 2) Pesto Cream   3) Demi Glace 4) Garlic Oil","1) Chimichurri 2) Peppercorn             3) Creamy Mustard 4) Mushroom","1) Cranberry Sauce 2) Mustard          3) Gravy Dark 4) Peppercorn","1) Mustard Sauce 2) Mint Jelly           3) Lamb Jus  4) Mango Chutney","1) Cranberry Sauce 2) Mustard          3) Gravy Dark 4) Peppercorn","1) Rosemary Jus 2) Mustard Sauce   3) Horseradish  4) Mushroom","1) Chimichurri 2) Peppercorn             3) Creamy Mustard 4) Mushroom"]
["B4","PASTA TOPPINGS","Grilled Chicken / Steak Cubes","1) Grilled Chicken Breast Strips","1) Grilled Chicken Breast Strips","1) Grilled Chicken Breast Strips","1) Grilled Chicken Breast Strips","1) Grilled Chicken Breast Strips","1) Grilled Chicken Breast Strips","1) Grilled Chicken Breast Strips"]
[null,null,"Catch of the Day / Garlic Shrimp","2) Roasted Seard Steak Cubes","2) Roasted Seard Steak Cubes","2) Roasted Seard Steak Cubes","2) Roasted Seard Steak Cubes","2) Roasted Seard Steak Cubes","2) Roasted Seard Steak Cubes","2) Roasted Seard Steak Cubes"]
[null,null,"Grilled Artichokes / Roasted Veggies","3) Roasted Catch of the Day Cubes","3) Roasted Catch of the Day Cubes","3) Roasted Catch of the Day Cubes","3) Roasted Catch of the Day Cubes","3) Roasted Catch of the Day Cubes","3) Roasted Catch of the Day Cubes","3) Roasted Catch of the Day Cubes"]
[null,null,"Stewed Tomato & Olives / Mushrooms","4) Garlic Shrimp","4) Garlic Shrimp","4) Garlic Shrimp","4) Garlic Shrimp","4) Garlic Shrimp","4) Garlic Shrimp","4) Garlic Shrimp"]
["B5","PASTA SAUCES","Sauce: Carbonara","Sauce: Mushroom Cream","Sauce: Alfredo","Sauce: Puttanesca","Sauce: Bolognese ","Sauce: Mushroom Cream","Sauce: Alfredo","Sauce: Puttanesca"]
[null,null,"Sauce: Marinara","Sauce: Marinara","Sauce: Marinara","Sauce: Marinara","Sauce: Marinara","Sauce: Marinara","Sauce: Marinara","Sauce: Marinara"]
[null,"PASTA STATION","1) Farfalle Pasta","1) Penne Pasta","1) Conghielie Pasta","1) Ragatoni Pasta","1) Farfalle Pasta","1) Penne Pasta","1) Conghielie Pasta","1) Ragatoni Pasta"]
[null,null,"2) Fettucini Pasta","2) Fusili Pasta","2) Farfalle Pasta","2) Fusili Pasta","2) Fettucini Pasta","2) Fusili Pasta","2) Farfalle Pasta","2) Fusili Pasta"]
["DESTINATIONS",null,"ENGLISH","FRENCH","ASIAN","ITALIAN","ASIAN","MEDITERRANEAN","SOUTHERN  ","INDIAN "]
["C1","CONDIMENTS","A1 / Mustard / Ketchup / Sriracha","A1 / Mustard / Ketchup / Sriracha","A1 / Mustard / Ketchup / Sriracha","A1 / Mustard / Ketchup / Sriracha","A1 / Mustard / Ketchup / Sriracha","A1 / Mustard / Ketchup / Sriracha","A1 / Mustard / Ketchup / Sriracha","A1 / Mustard / Ketchup / Sriracha"]
[null,null,"Worchestershire / Soy Sauce / Malt V","Worchestershire / Soy Sauce / Malt V","Worchestershire / Soy Sauce / Malt V","Worchestershire / Soy Sauce / Malt V","Worchestershire / Soy Sauce / Malt V","Worchestershire / Soy Sauce / Malt V","Worchestershire / Soy Sauce / Malt V","Worchestershire / Soy Sauce / Malt V"]
["C2","FISH / SEAFOOD               VEGETABLE ITEM","1) Fisherman's Curry Stew","1) Almond Crusted Perch. Vernonique Sauce (Green Grapes & Brown Butter)","1) Teriyake Glazed Codfish, Sticky","1) Frito Misto Seafood & Veggies","1) Charred Salmon Harami w/ Ponzu","1) Andalous Seafood Paella w/ Shrimp","1) Shrimp-Calamari Steak-Tomato","1) Punjabi Garam Masala Shrimp"]
[null,null,"2) Roasted Carrots & Peppers","2) Creamy Potato Fondant","Coconut Rice, Bokchoy, Crispy Spiced Wontons","2) Marinara Sauce & Saffron Aioli","Pickled Ginger Slaw, Fried Noodles","Mussels, Calamari, Scallops, Veg","2) Roasted Corn Succotash","2) Fried Papadam"]
["C3","PROTEIN ITEM         SIDE ITEM","1) Classic London Broil","1) Rustic Coq au Vin Chicken","1) Sweet Chili Pork Loin /Asian Slaw","1) Chicken Scallopini/ Pomodor Sauce","1) Thai Chicken Skewers w/ Peanut","1) Greek Style Lamb Chops","1) Southern Dry-rub BBQ Ribs","1) Lamb Rogan Josh"]
[null,null,"2) Fried Onions","2) Spinach & Tomato Gratinee","2) Pork Dumplings/ Black Bean Sauce","2) Olives, Roasted Peppers, Artichoke","2) Peanut Sauce","2) Spicy Red Pepper Feta Sauce","2) BBQ Sauce","2) Chicken Briyani w/ Raisins/Cashew"]
["C4","STARCH ITEM            SIDE ITEM","1) Boiled Bliss/Parsley & Butter","1) Rice Pilaf","1) Soy Ramen Noodle & Broccoli","1) Orzo Pasta, Spinach, Tomato","1) Vegetable Fried Rice","1) Vegetable Eggplant Moussaka","1) Aged Cheddar Macaroni","1) Steamed Basmati Rice"]
[null,null,"2) Steamed Rice","2) Green Beans & Onions","2) Vegetable Goyza w/Peanut Sauce",null,"2) Soy-ginger Bokchoy","2) Roasted Okra & Tomato w/ Garlic","2) Buttered Green Bean & Cabbage","2) Curried Potato & Chickpeas"]
["C5","NEUTRAL"]
[null,null,"GARDEN SOUP KETTLE","GARDEN SOUP KETTLE","GARDEN SOUP KETTLE","GARDEN SOUP KETTLE","GARDEN SOUP KETTLE","GARDEN SOUP KETTLE","GARDEN SOUP KETTLE","GARDEN SOUP KETTLE"]
["D1","SOUPS","1) Daily Soup Main Dining","1) Daily Soup Main Dining","1) Daily Soup Main Dining","1) Daily Soup Main Dining","1) Daily Soup Main Dining","1) Daily Soup Main Dining","1) Daily Soup Main Dining","1) Daily Soup Main Dining"]
[null,null,"2) Daily Soup Main Dining","2) Daily Soup Main Dining","2) Daily Soup Main Dining","2) Daily Soup Main Dining","2) Daily Soup Main Dining","2) Daily Soup Main Dining","2) Daily Soup Main Dining","2) Daily Soup Main Dining"]
["D2","TOPPINGS","Scallions / Bacon Bits / Croutons ","Scallions / Bacon Bits / Croutons ","Scallions / Bacon Bits / Croutons ","Scallions / Bacon Bits / Croutons ","Scallions / Bacon Bits / Croutons ","Scallions / Bacon Bits / Croutons ","Scallions / Bacon Bits / Croutons ","Scallions / Bacon Bits / Croutons "]
[null,null,"Parmesan / Red Onion / Tofu","Parmesan / Red Onion / Tofu","Parmesan / Red Onion / Tofu","Parmesan / Red Onion / Tofu","Parmesan / Red Onion / Tofu","Parmesan / Red Onion / Tofu","Parmesan / Red Onion / Tofu","Parmesan / Red Onion / Tofu"]
[null,null,"HARVEST SALADS","HARVEST SALADS","HARVEST SALADS","HARVEST SALADS","HARVEST SALADS","HARVEST SALADS","HARVEST SALADS","HARVEST SALADS"]
["E1","Composed Salad","Hot Smoked Salmon & Cucumber","Asparagus, Bresaola, Mozz, Truffle","Shrimp & Avocado Salad","Salmon Salad Nicoise","Hot Smoked Salmon & Cucumber","Asparagus, Bresaola, Mozz, Truffle","Shrimp & Avocado Salad","Salmon Salad Nicoise"]
[null,"Crostini","Port Figs & Brie Crostini","Goat Cheese & Beet Crostini","Caprese & Prosciutto, Balsamic Glaze","Gorgonzola, Cranberries, Pistachio","Port Figs & Brie Crostini","Goat Cheese & Beet Crostini","Caprese & Prosciutto, Balsamic Glaze","Gorgonzola, Cranberries, Pistachio"]
[null,"Cold Appetizer","Deviled Egg w/ Salmon Roe & Chives","Port Figs & Brie Puffs","Deviled Egg w/ Salmon Roe & Chives","Prosciutto, Arugula, Feta Cheese","Deviled Egg w/ Salmon Roe & Chives","Port Figs & Brie Puffs","Deviled Egg w/ Salmon Roe & Chives","Prosciutto, Arugula, Feta Cheese"]
[null,"Cold Appetizer","Mixed Olives & Almonds","Salt Roasted Cashews & Pickles","Watermelon, Gorgonzola, Port Syrup","Cantaloupe & Cherry Cocktail","Mixed Olives & Almonds","Salt Roasted Cashews & Pickles","Watermelon, Gorgonzola, Port Syrup","Cantaloupe & Cherry Cocktail"]
[null,null,"COMPOSED SALADS","COMPOSED SALADS","COMPOSED SALADS","COMPOSED SALADS","COMPOSED SALADS","COMPOSED SALADS","COMPOSED SALADS","COMPOSED SALADS"]
["E2","Caesar Salad","Romaine Lettuce / Parmesan / Anchovies / Croutons ","Romaine Lettuce / Parmesan / Anchovies / Croutons ","Romaine Lettuce / Parmesan / Anchovies / Croutons ","Romaine Lettuce / Parmesan / Anchovies / Croutons ","Romaine Lettuce / Parmesan / Anchovies / Croutons ","Romaine Lettuce / Parmesan / Anchovies / Croutons ","Romaine Lettuce / Parmesan / Anchovies / Croutons ","Romaine Lettuce / Parmesan / Anchovies / Croutons "]
[null,"Composed Salad","Waldorf Chicken Salad","Green Bean Salad","Orzo Pasta & Wild Rice Salad","Greek Salad"," Waldorf Chicken Salad","Green Bean Salad","Orzo Pasta & Chicken Salad","Greek Salad"]
[null,"Fruit Salad LG","Mango-Sesame-Chili Fruit Salad","Apricot & Cherry Fruit Salad","Spicy Pear & Pineapple Salad","Cajun Peach Salad","Apricot & Cherry Fruit Salad","Spicy Pear & Pineapple Salad","Cajun Peach Salad","Mango-Sesame-Chili Fruit Salad"]
[null,"Roasted Veg","Zucchini-Peppers-Onions","Roasted Asparagus-Tomato-Carrot","Roasted Mushroom & Tomato","Roasted Carrots & Peppers","Mixed Vegetables","Zucchini-Red Pepper- Eggplant","Roasted Mushroom & Tomato","Roasted Carrots & Peppers"]
[null,"Cheese Garnish","Blue Cheese / Parmesan Cheese","Blue Cheese / Parmesan Cheese","Blue Cheese / Parmesan Cheese","Blue Cheese / Parmesan Cheese","Blue Cheese / Parmesan Cheese","Blue Cheese / Parmesan Cheese","Blue Cheese / Parmesan Cheese","Blue Cheese / Parmesan Cheese"]
[null,"Bread Garnish","Garlic Bread / Parmesan Bread","Seasoned Bagel Chips","Garlic Bread / Parmesan Bread","Cheddar Cheese Bread","Seasoned Bagel Chips","Garlic Bread / Parmesan Bread","Cheddar Cheese Bread","Garlic Bread / Parmesan Bread"]
[null,null,"FRESH MARKET GREENS","FRESH MARKET GREENS","FRESH MARKET GREENS","FRESH MARKET GREENS","FRESH MARKET GREENS","FRESH MARKET GREENS","FRESH MARKET GREENS","FRESH MARKET GREENS"]
["F1","Leaf Lettuce","Mixed Greens / Spinach","Mixed Greens / Iceberg","Mixed Greens / Spinach","Mixed Greens / Iceberg","Mixed Greens / Spinach","Mixed Greens / Iceberg","Mixed Greens / Spinach","Mixed Greens / Iceberg"]
[null,"Leaf Lettuce","Shredded Green & Red Cabbage","Shredded Green & Red Cabbage","Shredded Green & Red Cabbage","Shredded Green & Red Cabbage","Shredded Green & Red Cabbage","Shredded Green & Red Cabbage","Shredded Green & Red Cabbage","Shredded Green & Red Cabbage"]
[null,"Tomato Salad","Sliced Tomato & Red Onion","Sliced Tomato & Red Onion","Sliced Tomato & Red Onion","Sliced Tomato & Red Onion","Sliced Tomato & Red Onion","Sliced Tomato & Red Onion","Sliced Tomato & Red Onion","Sliced Tomato & Red Onion"]
[null,"Potato Salad","Smoked Paprika Potato Salad","German Potato Salad","American Potato Salad","Lemon Pepper Potato Salad","German Potato Salad","American Potato Salad","Smoked Paprika Potato Salad","Lemon Pepper Potato Salad"]
[null,"Crudités","Carrots/Celery/Pepper/Radish","Cauliflower/Broccoli/Cherry Tomato","Cucumber/Radish/Peppers/Carrots","Carrots/Celery/Pepper/Radish","Cauliflower/Broccoli/Cherry Tomato","Cucumber/Radish/Peppers/Carrots","Carrots/Celery/Pepper/Radish","Cauliflower/Broccoli/Cherry Tomato"]
[null,null,"GOURMET SANDWICH SHOP","GOURMET SANDWICH SHOP","GOURMET SANDWICH SHOP","GOURMET SANDWICH SHOP","GOURMET SANDWICH SHOP","GOURMET SANDWICH SHOP","GOURMET SANDWICH SHOP","GOURMET SANDWICH SHOP"]
["F2","Mini Slider Roll ","Roast Beef, Horseradish, Pickles","Waldorf Chicken Sandwich","Salami, Tomato, Brie, Figs, Fennel","Mini Lobster Roll","Roast Beef, Horseradish, Pickles","Waldorf Chicken Sandwich","Salami, Tomato, Brie, Figs, Fennel","Mini Lobster Roll"]
[null,"Open Face","Smoked Salmon,Cucumber,Dill ","Prosciutto, Gorgonzola, Figs","Shaved Lamb, Tabbouleh Feta","Shaved Filet Mignon w/ Truffle Aioli","Smoked Salmon,Cucumber,Dill ","Prosciutto, Gorgonzola, Figs","Shaved Lamb, Tabbouleh Feta","Shaved Filet Mignon w/ Truffle Aioli"]
[null,"Gazpacho","Cucumber Herb","Tomato & Basil","Carrot-Lime","Red Pepper & Tomato","Cucumber Herb","Tomato & Basil","Carrot-Lime","Red Pepper & Tomato"]
[null,"Pickles","Red Onion-Cornichons-Giardiniera-Green Olives - Kalamata Olives","Red Onion-Cornichons-Giardiniera-Green Olives - Kalamata Olives","Red Onion-Cornichons-Giardiniera-Green Olives - Kalamata Olives","Red Onion-Cornichons-Giardiniera-Green Olives - Kalamata Olives","Red Onion-Cornichons-Giardiniera-Green Olives - Kalamata Olives","Red Onion-Cornichons-Giardiniera-Green Olives - Kalamata Olives","Red Onion-Cornichons-Giardiniera-Green Olives - Kalamata Olives","Red Onion-Cornichons-Giardiniera-Green Olives - Kalamata Olives"]
[null,"Condiments","Dijon Mustard - Mayonnaise","Dijon Mustard - Mayonnaise","Dijon Mustard - Mayonnaise","Dijon Mustard - Mayonnaise","Dijon Mustard - Mayonnaise","Dijon Mustard - Mayonnaise","Dijon Mustard - Mayonnaise","Dijon Mustard - Mayonnaise"]
[null,null,"CHARCUTERIE","CHARCUTERIE","CHARCUTERIE","CHARCUTERIE","CHARCUTERIE","CHARCUTERIE","CHARCUTERIE","CHARCUTERIE"]
["G1","CHARCUTERIE DISPLAY"," Chicken Liver Pate w/ Pickled Onions"," Chicken Liver Pate w/ Pickled Onions"," Chicken Liver Pate w/ Pickled Onions"," Chicken Liver Pate w/ Pickled Onions"," Chicken Liver Pate w/ Pickled Onions"," Chicken Liver Pate w/ Pickled Onions"," Chicken Liver Pate w/ Pickled Onions"," Chicken Liver Pate w/ Pickled Onions"]
[null,null,"Farmers Pate w/ Lettuce","Farmers Pate w/ Lettuce","Farmers Pate w/ Lettuce","Farmers Pate w/ Lettuce","Farmers Pate w/ Lettuce","Farmers Pate w/ Lettuce","Farmers Pate w/ Lettuce","Farmers Pate w/ Lettuce"]
[null,null,"Lobster-Seafood Terrine","Lobster-Seafood Terrine","Lobster-Seafood Terrine","Lobster-Seafood Terrine","Lobster-Seafood Terrine","Lobster-Seafood Terrine","Lobster-Seafood Terrine","Lobster-Seafood Terrine"]
[null,null,"Shaved Coppa ","Shaved Proscuitto ","Shaved Coppa ","Shaved Proscuitto ","Shaved Coppa ","Shaved Proscuitto ","Shaved Coppa ","Shaved Proscuitto "]
[null,null,"Sliced Ham","Sliced Turkey Breast","Sliced Ham","Sliced Turkey Breast","Sliced Ham","Sliced Turkey Breast","Sliced Ham","Sliced Turkey Breast"]
[null,"CONDIMENTS","Cornichons / Pickles / Pearl Onions","Cornichons / Pickles / Pearl Onions","Cornichons / Pickles / Pearl Onions","Cornichons / Pickles / Pearl Onions","Cornichons / Pickles / Pearl Onions","Cornichons / Pickles / Pearl Onions","Cornichons / Pickles / Pearl Onions","Cornichons / Pickles / Pearl Onions"]
[null,null,"Olives / Mustard / Giardiniera Veg","Olives / Mustard / Giardiniera Veg","Olives / Mustard / Giardiniera Veg","Olives / Mustard / Giardiniera Veg","Olives / Mustard / Giardiniera Veg","Olives / Mustard / Giardiniera Veg","Olives / Mustard / Giardiniera Veg","Olives / Mustard / Giardiniera Veg"]
[null,null,"PRETZEL BAR","PRETZEL BAR","PRETZEL BAR","PRETZEL BAR","PRETZEL BAR","PRETZEL BAR","PRETZEL BAR","PRETZEL BAR"]
["H1","PRETZELS","Plain Pretzel","Plain Pretzel","Plain Pretzel","Plain Pretzel","Plain Pretzel","Plain Pretzel","Plain Pretzel","Plain Pretzel"]
[null,null,"Salt Crusted Pretzel","Salt Crusted Pretzel","Salt Crusted Pretzel","Salt Crusted Pretzel","Salt Crusted Pretzel","Salt Crusted Pretzel","Salt Crusted Pretzel","Salt Crusted Pretzel"]
[null,"SAUCE ","Beer & Cheese Sauce","Beer & Cheese Sauce","Beer & Cheese Sauce","Beer & Cheese Sauce","Beer & Cheese Sauce","Beer & Cheese Sauce","Beer & Cheese Sauce","Beer & Cheese Sauce"]
[null,"SAUCE ","Honey Mustard Sauce","Honey Mustard Sauce","Honey Mustard Sauce","Honey Mustard Sauce","Honey Mustard Sauce","Honey Mustard Sauce","Honey Mustard Sauce","Honey Mustard Sauce"]
[null,"SAUCE ","Spicy Mustard Sauce","Spicy Mustard Sauce","Spicy Mustard Sauce","Spicy Mustard Sauce","Spicy Mustard Sauce","Spicy Mustard Sauce","Spicy Mustard Sauce","Spicy Mustard Sauce"]
[null,null,"FRESH MARKET TOPPINGS","FRESH MARKET TOPPINGS","FRESH MARKET TOPPINGS","FRESH MARKET TOPPINGS","FRESH MARKET TOPPINGS","FRESH MARKET TOPPINGS","FRESH MARKET TOPPINGS","FRESH MARKET TOPPINGS"]
["H2","TOPPINGS","Cherry Tomato Slice / Red Onion","Cherry Tomato Slice / Red Onion","Cherry Tomato Slice / Red Onion","Cherry Tomato Slice / Red Onion","Cherry Tomato Slice / Red Onion","Cherry Tomato Slice / Red Onion","Cherry Tomato Slice / Red Onion","Cherry Tomato Slice / Red Onion"]
[null,null,"Cucumber / Celery / Carrots / Radish","Cucumber / Celery / Carrots / Radish","Cucumber / Celery / Carrots / Radish","Cucumber / Celery / Carrots / Radish","Cucumber / Celery / Carrots / Radish","Cucumber / Celery / Carrots / Radish","Cucumber / Celery / Carrots / Radish","Cucumber / Celery / Carrots / Radish"]
[null,null,"Mixed Pepper / Mushrooms / Corn","Mixed Pepper / Mushrooms / Corn","Mixed Pepper / Mushrooms / Corn","Mixed Pepper / Mushrooms / Corn","Mixed Pepper / Mushrooms / Corn","Mixed Pepper / Mushrooms / Corn","Mixed Pepper / Mushrooms / Corn","Mixed Pepper / Mushrooms / Corn"]
[null,null,"Garbanzo Bean / Black Bean","Garbanzo Bean / Black Bean","Garbanzo Bean / Black Bean","Garbanzo Bean / Black Bean","Garbanzo Bean / Black Bean","Garbanzo Bean / Black Bean","Garbanzo Bean / Black Bean","Garbanzo Bean / Black Bean"]
[null,null,"Green Olives / Sunflower Seeds","Green Olives / Sunflower Seeds","Green Olives / Sunflower Seeds","Green Olives / Sunflower Seeds","Green Olives / Sunflower Seeds","Green Olives / Sunflower Seeds","Green Olives / Sunflower Seeds","Green Olives / Sunflower Seeds"]
[null,null,"Walnuts / Croutons","Walnuts / Croutons","Walnuts / Croutons","Walnuts / Croutons","Walnuts / Croutons","Walnuts / Croutons","Walnuts / Croutons","Walnuts / Croutons"]
[null,"DRESSINGS","DRESSINGS","DRESSINGS","DRESSINGS","DRESSINGS","DRESSINGS","DRESSINGS","DRESSINGS","DRESSINGS"]
[null,null," Ranch / Caesar / Balsamic / Italian"," Ranch / Caesar / Balsamic / Italian"," Ranch / Caesar / Balsamic / Italian"," Ranch / Caesar / Balsamic / Italian"," Ranch / Caesar / Balsamic / Italian"," Ranch / Caesar / Balsamic / Italian"," Ranch / Caesar / Balsamic / Italian"," Ranch / Caesar / Balsamic / Italian"]
[null,null," Low-fat Yogurt / Blue Cheese "," Low-fat Yogurt / Blue Cheese "," Low-fat Yogurt / Blue Cheese "," Low-fat Yogurt / Blue Cheese "," Low-fat Yogurt / Blue Cheese "," Low-fat Yogurt / Blue Cheese "," Low-fat Yogurt / Blue Cheese "," Low-fat Yogurt / Blue Cheese "]
[null,null," 1000 Island / Shallot / Mustard"," 1000 Island / Shallot / Mustard"," 1000 Island / Shallot / Mustard"," 1000 Island / Shallot / Mustard"," 1000 Island / Shallot / Mustard"," 1000 Island / Shallot / Mustard"," 1000 Island / Shallot / Mustard"," 1000 Island / Shallot / Mustard"]
[null,null,"PASTRY COUNTER","PASTRY COUNTER","PASTRY COUNTER","PASTRY COUNTER","PASTRY COUNTER","PASTRY COUNTER","PASTRY COUNTER","PASTRY COUNTER"]
["H3","Fruit Tart","Fresh Fruit Tartlet","Fresh Fruit Tartlet","Fresh Fruit Tartlet","Fresh Fruit Tartlet","Fresh Fruit Tartlet","Fresh Fruit Tartlet","Fresh Fruit Tartlet","Fresh Fruit Tartlet"]
[null,"Pastry","Chocolates Journey","Grandma's Chocolate Cake","Chocolate Coffee Almond Cake","Grandma's Chocolate Cake","Chocolate Coffee Almond Cake","Chocolate Peanut Butter Cake","Grandma's Chocolate Cake","Grandma's Chocolate Cake"]
[null,"Pastry","Pineapple Upside Down Cake","Coconut Passionfruit Cake","Brazilian Cake","Tiramisu","Apricot Pistachio Mousse Cake","Blueberry Cake","Red Velvet Cheese Cake","Sacher Torte"]
[null,"Pastry","Hawaiin Coffee Coconut Cake","Oreo Peanut Chocolate Pie","Crustry Strawberry Shortcake","Crostata Genovese","Roasted Nut Pie","Cherry Cake","Apple Pie","Linzer Torte"]
[null,"Pastry","Boston Cream Pie","St Honore","Peanut Butter Chocolate Pie","Mimosa Cake","Almond Season Fruit Macaroon","Pecan Pie","Sweet Mud Pie","Bee Sting"]
[null,null,"FRESH & FAST - GF","FRESH & FAST - GF","FRESH & FAST - GF","FRESH & FAST - GF","FRESH & FAST - GF","FRESH & FAST - GF","FRESH & FAST - GF","FRESH & FAST - GF"]
["H4","Gluten Free","Flourless Chocolate Cake","Rhubarb Pie","Almond Torte","Amaretto Profiteroles","Pavlova","Sweet Potato Pie","Chocolate Tapioca Pudding","Dark Almond Chocolate Cake"]
[]
[null,"Sugar Free","Peach Blueberry Crisp","Semolina Tart","Milk Chocolate Mousse Cake","Mango & Banana Shortcake","Cherry Trifle","Coconut Cake","Chocolate Cheese Cake","Coffee Mousse Cake"]
["H5","H5 - HOT","Roasted Apples & Caramel","Caramel Chocolate Baked Banana","Apricot Tapioca Pudding","GF-Bread Pudding / Vanilla Sauce","GF-Baked S'mores w/ GF Cookies","Warm Cherry & Apple Crumble Bake","Apple Marshmallow Bake","Roasted Pears & Raisins"]
[null,null,"FRUIT STAND FAVORITES","FRUIT STAND FAVORITES","FRUIT STAND FAVORITES","FRUIT STAND FAVORITES","FRUIT STAND FAVORITES","FRUIT STAND FAVORITES","FRUIT STAND FAVORITES","FRUIT STAND FAVORITES"]
["I-1","Whole Fruits","Banana / Red Apple / Pears / Peach   Green Apple / Oranges","Banana / Red Apple / Pears / Peach   Green Apple / Oranges","Banana / Red Apple / Pears / Peach   Green Apple / Oranges","Banana / Red Apple / Pears / Peach   Green Apple / Oranges","Banana / Red Apple / Pears / Peach   Green Apple / Oranges","Banana / Red Apple / Pears / Peach   Green Apple / Oranges","Banana / Red Apple / Pears / Peach   Green Apple / Oranges","Banana / Red Apple / Pears / Peach   Green Apple / Oranges"]
[null,"Sliced Fruits","Watermelon/Pineapple/  Cantaloupe  Honeydew Melon","Watermelon/Pineapple/  Cantaloupe  Honeydew Melon","Watermelon/Pineapple/  Cantaloupe  Honeydew Melon","Watermelon/Pineapple/  Cantaloupe  Honeydew Melon","Watermelon/Pineapple/  Cantaloupe  Honeydew Melon","Watermelon/Pineapple/  Cantaloupe  Honeydew Melon","Watermelon/Pineapple/  Cantaloupe  Honeydew Melon","Watermelon/Pineapple/  Cantaloupe  Honeydew Melon"]
[null,null,"OVEN BAKED BREADS","OVEN BAKED BREADS","OVEN BAKED BREADS","OVEN BAKED BREADS","OVEN BAKED BREADS","OVEN BAKED BREADS","OVEN BAKED BREADS","OVEN BAKED BREADS"]
["I-2","Current Rolls","1) Plain Crunchy Rolls","1) Plain Crunchy Rolls","1) Plain Crunchy Rolls","1) Plain Crunchy Rolls","1) Plain Crunchy Rolls","1) Plain Crunchy Rolls","1) Plain Crunchy Rolls","1) Plain Crunchy Rolls"]
[null,null,"2) Plain Soft Rolls","2) Plain Soft Rolls","2) Plain Soft Rolls","2) Plain Soft Rolls","2) Plain Soft Rolls","2) Plain Soft Rolls","2) Plain Soft Rolls","2) Plain Soft Rolls"]
[null,null,"3) Six Cereal Rolls","3) Sunflower Seed Rolls","3) Pumpernickel Rolls","3) Sesame Seed Rolls","3) Olive Rolls","3) Whole Wheat Raisin","3) Honey Wheat Rolls","3) Six Cereal Rolls"]
[null,"Loafs","4) Muesli Loaf Sliced","4) Honey Wheat Loaf Slice","4) Six Cereal Loaf Sliced","4) Focaccia Loaf Sliced","4) Pumpernickel Loaf Sliced","4) Rye Loaf Sliced","4) Sourdough Loaf Sliced","4) Muesli Loaf Sliced"]
[null,null,"5) Olive Focaccia","5) Olive Focaccia","5) Olive Focaccia","5) Tomato Focaccia","5) Parmesan Focaccia","5) Sun-Dried Tomato Focaccia","5) Olive Focaccia","5) Rosemary Focaccia"]
[null,"Condiments","Butter & Preserves","Butter & Preserves","Butter & Preserves","Butter & Preserves","Butter & Preserves","Butter & Preserves","Butter & Preserves","Butter & Preserves"]
[null,null,"FROMAGERIE","FROMAGERIE","FROMAGERIE","FROMAGERIE","FROMAGERIE","FROMAGERIE","FROMAGERIE","FROMAGERIE"]
["I-3","CHEESE"," Cheddar / Provolone / Gorgonzola"," Cheddar / Provolone / Gorgonzola"," Cheddar / Provolone / Gorgonzola"," Cheddar / Provolone / Gorgonzola"," Cheddar / Provolone / Gorgonzola"," Cheddar / Provolone / Gorgonzola"," Cheddar / Provolone / Gorgonzola"," Cheddar / Provolone / Gorgonzola"]
[null,"CHEESE"," Havarti / Jack Cheese"," Havarti / Jack Cheese"," Havarti / Jack Cheese"," Havarti / Jack Cheese"," Havarti / Jack Cheese"," Havarti / Jack Cheese"," Havarti / Jack Cheese"," Havarti / Jack Cheese"]
[null,"CONDIMENTS"," Variety of Crackers"," Variety of Crackers"," Variety of Crackers"," Variety of Crackers"," Variety of Crackers"," Variety of Crackers"," Variety of Crackers"," Variety of Crackers"]
[null,"DRIED FRUITS","Apricots / Figs / Dates / Prunes","Apricots / Figs / Dates / Prunes","Apricots / Figs / Dates / Prunes","Apricots / Figs / Dates / Prunes","Apricots / Figs / Dates / Prunes","Apricots / Figs / Dates / Prunes","Apricots / Figs / Dates / Prunes","Apricots / Figs / Dates / Prunes"]
[null,"NUTS","Almond / Pistachio / Walnuts / Pecans","Almond / Pistachio / Walnuts / Pecans","Almond / Pistachio / Walnuts / Pecans","Almond / Pistachio / Walnuts / Pecans","Almond / Pistachio / Walnuts / Pecans","Almond / Pistachio / Walnuts / Pecans","Almond / Pistachio / Walnuts / Pecans","Almond / Pistachio / Walnuts / Pecans"]
[null,null,"FRESH & FAST STATION - 2","FRESH & FAST STATION - 2","FRESH & FAST STATION - 2","FRESH & FAST STATION - 2","FRESH & FAST STATION - 2","FRESH & FAST STATION - 2","FRESH & FAST STATION - 2","FRESH & FAST STATION - 2"]
["H4","PASTRY","Chocolate Coffee Almond Cake","Dark Chocolate Almond Cake","Black Forest Torte","Coffee Mousse Cake ","Sacher Torte","Linzer Torte","Bee Sting","Apple Strudel "]
[]
[null,"PASTRY ","Pineapple Upside Down Cake","Coconut Passionfruit Cake","Brazilian Cake","Tiramisu","Apricot Pistachio Mousse Cake","Blueberry Cake","Red Velvet Cheese Cake","Sacher Torte"]
[]
["I-5","Dessert Hot","Bread Butter Pudding / Caramel Sauce","Warm Hazelnut Pudding/ Vanilla Sauc","Butter Pecan Pudding Caramel Sauce","Frutti Di Bosco","Sticky Toffee Pudding","Warm Apricot / Custard Jalousie","Banana Brioche Bread Butter Pudding","Apple Strudel "]

{"sheet":"Day 0 - Production","index":1,"n_rows":126,"n_cols":7,"rows_kept":126,"cut":false,"hidden":false,"merged":[[77,0,86,0],[77,1,82,1],[83,1,86,1],[109,0,112,0],[115,0,118,0],[115,1,116,1],[117,1,118,1],[88,0,92,0],[94,0,96,0],[94,1,95,1],[99,0,100,0],[102,0,107,0],[102,1,104,1],[105,1,106,1],[36,0,37,0],[63,1,67,1],[71,0,75,0],[71,1,72,1],[63,0,69,0],[13,0,14,0],[3,0,4,0],[3,1,4,1],[5,0,6,0],[9,0,10,0],[11,0,12,0],[11,1,12,1],[24,0,25,0],[24,1,25,1],[26,0,27,0],[26,1,27,1],[68,1,69,1],[28,1,29,1],[30,0,31,0],[30,1,31,1],[34,0,35,0],[34,1,35,1],[28,0,29,0],[36,1,37,1],[39,0,42,0],[44,0,49,0],[51,0,55,0],[57,0,61,0],[15,0,18,0],[15,1,18,1],[19,0,22,0],[19,1,20,1],[21,1,22,1]]}
[null,"STATION",{"$f":"'Dinner Menu Matrix'!C1","v":"DINNER / DAY 0  x 2"},"PROD LOCATION","QTY","CREW","SHOPPING LIST"]
[null,null,{"$f":"'Dinner Menu Matrix'!C2","v":"WESTERN DESTINATIONS"}]
["A1","GF-PASTA",{"$f":"'Dinner Menu Matrix'!C3","v":"1) Roasted Peppers & Basil"},"Lido Hot","10 kg"]
["A2","DAILY HOT SANDWICH",{"$f":"'Dinner Menu Matrix'!C4","v":"1) Open Face Lemon Chicken "},"Grill 5 / Gm 14",150]
[null,null,{"$f":"'Dinner Menu Matrix'!C5","v":"Gruyere Sandwich"}]
["A3","TEX-MEX ITEM",{"$f":"'Dinner Menu Matrix'!C6","v":"1) Chili Beef Brisket & Yellow Corn"},"Gm 14","80 kg"]
[null,"SIDE ITEM",{"$f":"'Dinner Menu Matrix'!C7","v":"Cheese Enchilada"}]
["A4","TOPPINGS",{"$f":"'Dinner Menu Matrix'!C8","v":"Salsa: Tomato / Corn / Black Bean  - Guacamole / Sour Cream / Cheddar"},"Gm 14","5 kg ea"]
[null,null,{"$f":"'Dinner Menu Matrix'!C9","v":"CARVING BAZAAR"}]
["B1","FISH/SEAFOOD",{"$f":"'Dinner Menu Matrix'!C10","v":"1) Spinach Stuffed Flounder/Butr Sc"},"Lido Hot","300 pcs"]
[null,"VEGETABLES",{"$f":"'Dinner Menu Matrix'!C11","v":"2) Parmesan Green Beans"},"Lido Hot","25 kg"]
["B2","POTATO OR VEG",{"$f":"'Dinner Menu Matrix'!C12","v":"1) Creamy Mashed Potatoes"},"Soup 6","60 kg"]
[null,null,{"$f":"'Dinner Menu Matrix'!C13","v":"2) Honey Roasted Sweet Potato"},"Soup 6","45 kg"]
["B3","CARVING",{"$f":"'Dinner Menu Matrix'!C14","v":"MEATLOAF & MACARONI WRAPPED IN APPLEWOOD BACON"},"Sou 6 / Butcher / Grill 5","12 loaf"]
[null,"SAUCES",{"$f":"'Dinner Menu Matrix'!C15","v":"1) Cheese Sauce 2) BBQ Sauce          3) Cranberry Sauce 4) Mushroom"},"Sauce 6","5 Ltr ea"]
["B4","PASTA TOPPINGS",{"$f":"'Dinner Menu Matrix'!C16","v":"Grilled Chicken / Steak Cubes"},"Lido 14","5 kg ea"]
[null,null,{"$f":"'Dinner Menu Matrix'!C17","v":"Catch of the Day / Garlic Shrimp"},"Lido 14","5 kg ea"]
[null,null,{"$f":"'Dinner Menu Matrix'!C18","v":"Grilled Artichokes / Roasted Veggies"},"Lido 14","5 kg ea"]
[null,null,{"$f":"'Dinner Menu Matrix'!C19","v":"Stewed Tomato & Olives / Mushrooms"},"Lido 14","5 kg ea"]
["B5","PASTA SAUCES",{"$f":"'Dinner Menu Matrix'!C20","v":"Sauce: Carbonara"},"Sauce 6","10 Ltr"]
[null,null,{"$f":"'Dinner Menu Matrix'!C21","v":"Sauce: Marinara"},"Sauce 6","10 Ltr"]
[null,"PASTA STATION",{"$f":"'Dinner Menu Matrix'!C22","v":"1) Farfalle Pasta"},"Lido Hot ","10 Kg"]
[null,null,{"$f":"'Dinner Menu Matrix'!C23","v":"2) Fettucini Pasta"},"Lido Hot ","10 Kg"]
["DESTINATIONS",null,{"$f":"'Dinner Menu Matrix'!C24","v":"ENGLISH"}]
["C1","CONDIMENTS",{"$f":"'Dinner Menu Matrix'!C25","v":"A1 / Mustard / Ketchup / Sriracha"}]
[null,null,{"$f":"'Dinner Menu Matrix'!C26","v":"Worchestershire / Soy Sauce / Malt V"}]
["C2","FISH / SEAFOOD               VEGETABLE ITEM",{"$f":"'Dinner Menu Matrix'!C27","v":"1) Fisherman's Curry Stew"},"Lido Hot ","30 kg"]
[null,null,{"$f":"'Dinner Menu Matrix'!C28","v":"2) Roasted Carrots & Peppers"},"Lido Hot","30 kg"]
["C3","PROTEIN ITEM         SIDE ITEM",{"$f":"'Dinner Menu Matrix'!C29","v":"1) Classic London Broil"},"Grill 5 / Gm 14","40 kg"]
[null,null,{"$f":"'Dinner Menu Matrix'!C30","v":"2) Fried Onions"},"Lido hot","25 kg"]
["C4","STARCH ITEM            SIDE ITEM",{"$f":"'Dinner Menu Matrix'!C31","v":"1) Boiled Bliss/Parsley & Butter"},"Soup 5","30 kg"]
[null,null,{"$f":"'Dinner Menu Matrix'!C32","v":"2) Steamed Rice"},"Lido Hot","10 kg"]
["C5","NEUTRAL",{"$f":"'Dinner Menu Matrix'!C33","v":0}]
[null,null,{"$f":"'Dinner Menu Matrix'!C34","v":"GARDEN SOUP KETTLE"}]
["D1","SOUPS",{"$f":"'Dinner Menu Matrix'!C35","v":"1) Daily Soup Main Dining"},"Soup 5","25 ltrs"]
[null,null,{"$f":"'Dinner Menu Matrix'!C36","v":"2) Daily Soup Main Dining"},"Soup 5","25 ltrs"]
["D2","TOPPINGS",{"$f":"'Dinner Menu Matrix'!C37","v":"Scallions / Bacon Bits / Croutons "},"Soup 5","2 kg ea"]
[null,null,{"$f":"'Dinner Menu Matrix'!C38","v":"Parmesan / Red Onion / Tofu"},"Bell Box"]
[null,null,{"$f":"'Dinner Menu Matrix'!C39","v":"HARVEST SALADS"}]
["E1","Composed Salad",{"$f":"'Dinner Menu Matrix'!C40","v":"Hot Smoked Salmon & Cucumber"},"Gm 14","180 portion"]
[null,"Crostini",{"$f":"'Dinner Menu Matrix'!C41","v":"Port Figs & Brie Crostini"},"Fruit 6","180 Portion"]
[null,"Cold Appetizer",{"$f":"'Dinner Menu Matrix'!C42","v":"Deviled Egg w/ Salmon Roe & Chives"},"GM 6",300]
[null,"Cold Appetizer",{"$f":"'Dinner Menu Matrix'!C43","v":"Mixed Olives & Almonds"},"GM 14","180 Portion "]
[null,null,{"$f":"'Dinner Menu Matrix'!C44","v":"COMPOSED SALADS"}]
["E2","Caesar Salad",{"$f":"'Dinner Menu Matrix'!C45","v":"Romaine Lettuce / Parmesan / Anchovies / Croutons "},"GM 14","15 kg"]
[null,"Composed Salad",{"$f":"'Dinner Menu Matrix'!C46","v":"Waldorf Chicken Salad"},"Int'l Café","30 kg"]
[null,"Fruit Salad LG",{"$f":"'Dinner Menu Matrix'!C47","v":"Mango-Sesame-Chili Fruit Salad"},"Fruit 5","25 kg"]
[null,"Roasted Veg",{"$f":"'Dinner Menu Matrix'!C48","v":"Zucchini-Peppers-Onions"},"GM 14","10 kg"]
[null,"Cheese Garnish",{"$f":"'Dinner Menu Matrix'!C49","v":"Blue Cheese / Parmesan Cheese"},"GM 14","5 kg ea"]
[null,"Bread Garnish",{"$f":"'Dinner Menu Matrix'!C50","v":"Garlic Bread / Parmesan Bread"},"GM 14","15 Loaf"]
[null,null,{"$f":"'Dinner Menu Matrix'!C51","v":"FRESH MARKET GREENS"}]
["F1","Leaf Lettuce",{"$f":"'Dinner Menu Matrix'!C52","v":"Mixed Greens / Spinach"},"Gm 6","40 kg"]
[null,"Leaf Lettuce",{"$f":"'Dinner Menu Matrix'!C53","v":"Shredded Green & Red Cabbage"},"Gm 5","40 kg"]
[null,"Tomato Salad",{"$f":"'Dinner Menu Matrix'!C54","v":"Sliced Tomato & Red Onion"},"Gm 14","10 kg"]
[null,"Potato Salad",{"$f":"'Dinner Menu Matrix'!C55","v":"Smoked Paprika Potato Salad"},"Gm 14","50 kg"]
[null,"Crudités",{"$f":"'Dinner Menu Matrix'!C56","v":"Carrots/Celery/Pepper/Radish"},"Gm 14","10 kg"]
[null,null,{"$f":"'Dinner Menu Matrix'!C57","v":"GOURMET SANDWICH SHOP"}]
["F2","Mini Slider Roll ",{"$f":"'Dinner Menu Matrix'!C58","v":"Roast Beef, Horseradish, Pickles"},"GM 5",180]
[null,"Open Face",{"$f":"'Dinner Menu Matrix'!C59","v":"Smoked Salmon,Cucumber,Dill "},"Gm 6",180]
[null,"Gazpacho",{"$f":"'Dinner Menu Matrix'!C60","v":"Cucumber Herb"},"Gm 14","20 ltr"]
[null,"Pickles",{"$f":"'Dinner Menu Matrix'!C61","v":"Red Onion-Cornichons-Giardiniera-Green Olives - Kalamata Olives"},"Gm 14","2 kg ea"]
[null,"Condiments",{"$f":"'Dinner Menu Matrix'!C62","v":"Dijon Mustard - Mayonnaise"}]
[null,null,{"$f":"'Dinner Menu Matrix'!C63","v":"CHARCUTERIE"}]
["G1","CHARCUTERIE DISPLAY",{"$f":"'Dinner Menu Matrix'!C64","v":" Chicken Liver Pate w/ Pickled Onions"},"Gm 14","3 kg"]
[null,null,{"$f":"'Dinner Menu Matrix'!C65","v":"Farmers Pate w/ Lettuce"},"Gm 14","2 kg ea"]
[null,null,{"$f":"'Dinner Menu Matrix'!C66","v":"Lobster-Seafood Terrine"},"Gm 14","3 kg"]
[null,null,{"$f":"'Dinner Menu Matrix'!C67","v":"Shaved Coppa "},"Gm 14","5 kg ea"]
[null,null,{"$f":"'Dinner Menu Matrix'!C68","v":"Sliced Ham"},"Gm 14","5 kg ea"]
[null,"CONDIMENTS",{"$f":"'Dinner Menu Matrix'!C69","v":"Cornichons / Pickles / Pearl Onions"},"Gm 14","2 kg ea"]
[null,null,{"$f":"'Dinner Menu Matrix'!C70","v":"Olives / Mustard / Giardiniera Veg"},"Gm 14","2 kg ea"]
[null,null,{"$f":"'Dinner Menu Matrix'!C71","v":"PRETZEL BAR"}]
["H1","PRETZELS",{"$f":"'Dinner Menu Matrix'!C72","v":"Plain Pretzel"}]
[null,null,{"$f":"'Dinner Menu Matrix'!C73","v":"Salt Crusted Pretzel"}]
[null,"SAUCE ",{"$f":"'Dinner Menu Matrix'!C74","v":"Beer & Cheese Sauce"}]
[null,"SAUCE ",{"$f":"'Dinner Menu Matrix'!C75","v":"Honey Mustard Sauce"}]
[null,"SAUCE ",{"$f":"'Dinner Menu Matrix'!C76","v":"Spicy Mustard Sauce"}]
[null,null,{"$f":"'Dinner Menu Matrix'!C77","v":"FRESH MARKET TOPPINGS"}]
["H2","TOPPINGS",{"$f":"'Dinner Menu Matrix'!C78","v":"Cherry Tomato Slice / Red Onion"},"Veg Prep","5 kg ea"]
[null,null,{"$f":"'Dinner Menu Matrix'!C79","v":"Cucumber / Celery / Carrots / Radish"},"Veg Prep","5 kg ea"]
[null,null,{"$f":"'Dinner Menu Matrix'!C80","v":"Mixed Pepper / Mushrooms / Corn"},"Veg Prep","5 kg ea"]
[null,null,{"$f":"'Dinner Menu Matrix'!C81","v":"Garbanzo Bean / Black Bean"},"Veg Prep","5 kg ea"]
[null,null,{"$f":"'Dinner Menu Matrix'!C82","v":"Green Olives / Sunflower Seeds"},"Gm 14","2 kg ea"]
[null,null,{"$f":"'Dinner Menu Matrix'!C83","v":"Walnuts / Croutons"},"Gm 14","2 kg ea"]
[null,"DRESSINGS",{"$f":"'Dinner Menu Matrix'!C84","v":"DRESSINGS"},"Gm 14","2 kg ea"]
[null,null,{"$f":"'Dinner Menu Matrix'!C85","v":" Ranch / Caesar / Balsamic / Italian"},"Gm 14","1 gal"]
[null,null,{"$f":"'Dinner Menu Matrix'!C86","v":" Low-fat Yogurt / Blue Cheese "},"Gm 14","1 gal"]
[null,null,{"$f":"'Dinner Menu Matrix'!C87","v":" 1000 Island / Shallot / Mustard"},"Gm 14","3 ltr"]
[null,null,{"$f":"'Dinner Menu Matrix'!C88","v":"PASTRY COUNTER"}]
["H3","Fruit Tart",{"$f":"'Dinner Menu Matrix'!C89","v":"Fresh Fruit Tartlet"},"Pastry"]
[null,"Pastry",{"$f":"'Dinner Menu Matrix'!C90","v":"Chocolates Journey"},"Pastry"]
[null,"Pastry",{"$f":"'Dinner Menu Matrix'!C91","v":"Pineapple Upside Down Cake"},"Pastry"]
[null,"Pastry",{"$f":"'Dinner Menu Matrix'!C92","v":"Hawaiin Coffee Coconut Cake"},"Pastry"]
[null,"Pastry",{"$f":"'Dinner Menu Matrix'!C93","v":"Boston Cream Pie"},"Pastry"]
[null,null,{"$f":"'Dinner Menu Matrix'!C94","v":"FRESH & FAST - GF"}]
["H4","Gluten Free",{"$f":"'Dinner Menu Matrix'!C95","v":"Flourless Chocolate Cake"},"Pastry"]
[null,null,{"$f":"'Dinner Menu Matrix'!C96","v":0},"Pastry"]
[null,"Sugar Free",{"$f":"'Dinner Menu Matrix'!C97","v":"Peach Blueberry Crisp"},"Pastry"]
["H5","H5 - HOT",{"$f":"'Dinner Menu Matrix'!C98","v":"Roasted Apples & Caramel"},"Pastry"]
[null,null,{"$f":"'Dinner Menu Matrix'!C99","v":"FRUIT STAND FAVORITES"}]
["I-1","Whole Fruits",{"$f":"'Dinner Menu Matrix'!C100","v":"Banana / Red Apple / Pears / Peach   Green Apple / Oranges"},"Gm 14","50 kg"]
[null,"Sliced Fruits",{"$f":"'Dinner Menu Matrix'!C101","v":"Watermelon/Pineapple/  Cantaloupe  Honeydew Melon"},"Fruit 5","100 kg"]
[null,null,{"$f":"'Dinner Menu Matrix'!C102","v":"OVEN BAKED BREADS"}]
["I-2","Current Rolls",{"$f":"'Dinner Menu Matrix'!C103","v":"1) Plain Crunchy Rolls"},"Bakery"]
[null,null,{"$f":"'Dinner Menu Matrix'!C104","v":"2) Plain Soft Rolls"},"Bakery"]
[null,null,{"$f":"'Dinner Menu Matrix'!C105","v":"3) Six Cereal Rolls"},"Bakery"]
[null,"Loafs",{"$f":"'Dinner Menu Matrix'!C106","v":"4) Muesli Loaf Sliced"},"Bakery"]
[null,null,{"$f":"'Dinner Menu Matrix'!C107","v":"5) Olive Focaccia"},"Bakery"]
[null,"Condiments",{"$f":"'Dinner Menu Matrix'!C108","v":"Butter & Preserves"},"Bakery"]
[null,null,{"$f":"'Dinner Menu Matrix'!C109","v":"FROMAGERIE"}]
["I-3","CHEESE",{"$f":"'Dinner Menu Matrix'!C110","v":" Cheddar / Provolone / Gorgonzola"},"Gm 14","5 kg ea"]
[null,"CHEESE",{"$f":"'Dinner Menu Matrix'!C111","v":" Havarti / Jack Cheese"},"Gm 14","5 kg ea"]
[null,"CONDIMENTS",{"$f":"'Dinner Menu Matrix'!C112","v":" Variety of Crackers"},"Gm 14"]
[null,"DRIED FRUITS",{"$f":"'Dinner Menu Matrix'!C113","v":"Apricots / Figs / Dates / Prunes"},"Gm 14","2 kg ea"]
[null,"NUTS",{"$f":"'Dinner Menu Matrix'!C114","v":"Almond / Pistachio / Walnuts / Pecans"},"Gm 14","2 kg ea"]
[null,null,{"$f":"'Dinner Menu Matrix'!C115","v":"FRESH & FAST STATION - 2"}]
["H4","PASTRY",{"$f":"'Dinner Menu Matrix'!C116","v":"Chocolate Coffee Almond Cake"}]
[null,null,{"$f":"'Dinner Menu Matrix'!C117","v":0}]
[null,"PASTRY ",{"$f":"'Dinner Menu Matrix'!C118","v":"Pineapple Upside Down Cake"}]
[null,null,{"$f":"'Dinner Menu Matrix'!C119","v":0}]
["I-5","Dessert Hot",{"$f":"'Dinner Menu Matrix'!C120","v":"Bread Butter Pudding / Caramel Sauce"}]
[]
[null,null,"Sous chef DK 5 / 6 check off sign                            Time"]
[]
[null,null,"Sous Chef recive check off sign                                Time"]
[]
[null,null,"Food testing ",null,"Ok","not OK"]

{"sheet":"Day 1 - Production","index":2,"n_rows":126,"n_cols":7,"rows_kept":126,"cut":false,"hidden":false,"merged":[[115,0,118,0],[115,1,116,1],[117,1,118,1],[77,0,86,0],[77,1,82,1],[83,1,86,1],[88,0,92,0],[94,0,96,0],[94,1,95,1],[99,0,100,0],[102,0,107,0],[102,1,104,1],[105,1,106,1],[109,0,112,0],[71,0,75,0],[71,1,72,1],[36,0,37,0],[36,1,37,1],[39,0,42,0],[57,0,61,0],[63,0,69,0],[63,1,67,1],[68,1,69,1],[44,0,49,0],[51,0,55,0],[30,0,31,0],[30,1,31,1],[34,0,35,0],[34,1,35,1],[24,0,25,0],[24,1,25,1],[26,0,27,0],[26,1,27,1],[28,0,29,0],[28,1,29,1],[13,0,14,0],[15,0,18,0],[15,1,18,1],[19,0,22,0],[19,1,20,1],[21,1,22,1],[3,0,4,0],[3,1,4,1],[5,0,6,0],[9,0,10,0],[11,0,12,0],[11,1,12,1]]}
[null,"STATION",{"$f":"'Dinner Menu Matrix'!D1","v":"DINNER / DAY 1"},"PROD LOCATION","QTY","CREW","SHOPPING LIST"]
[null,null,{"$f":"'Dinner Menu Matrix'!D2","v":"WESTERN DESTINATIONS"}]
["A1","GF-PASTA",{"$f":"'Dinner Menu Matrix'!D3","v":"1) Green Peas & Cherry Tomatoes"},"Lido Hot ","10 kg"]
["A2","DAILY HOT SANDWICH",{"$f":"'Dinner Menu Matrix'!D4","v":"1) Ultimate Grilled Cheese on "},"Grill 6","Gm 14 300"]
[null,null,{"$f":"'Dinner Menu Matrix'!D5","v":"Sourdough Bread"},"Bakery",10]
["A3","TEX-MEX ITEM",{"$f":"'Dinner Menu Matrix'!D6","v":"1) Shaved Pastrami Soft Tacos"},"Lido Hot ","15 kg"]
[null,"SIDE ITEM",{"$f":"'Dinner Menu Matrix'!D7","v":"Jack Cheese, Pickles, 1000 Island "}]
["A4","TOPPINGS",{"$f":"'Dinner Menu Matrix'!D8","v":"Salsa: Tomato / Corn / Black Bean  - Guacamole / Sour Cream / Cheddar"},"GM 14","5 kg ea"]
[null,null,{"$f":"'Dinner Menu Matrix'!D9","v":"CARVING BAZAAR"}]
["B1","FISH/SEAFOOD",{"$f":"'Dinner Menu Matrix'!D10","v":"1) Seared Cod in Fennel Cream Sauce"},"Lido Hot ",300]
[null,"VEGETABLES",{"$f":"'Dinner Menu Matrix'!D11","v":"2) Oven Roasted Brussel Sprouts"},"Lido Hot ","30 kg"]
["B2","POTATO OR VEG",{"$f":"'Dinner Menu Matrix'!D12","v":"1) Olive-Garlic Crushed Potato"},"Soup 6","40 kg"]
[null,null,{"$f":"'Dinner Menu Matrix'!D13","v":"2) Cheddar Mashed Potatoe"},"Soup 6","50 kg"]
["B3","CARVING",{"$f":"'Dinner Menu Matrix'!D14","v":"MEDITERRANEAN CHICKEN ROULADE W/ OLIVES"},"Lido Hot / Grill 5","30 pcs"]
[null,"SAUCES",{"$f":"'Dinner Menu Matrix'!D15","v":"1) Mushroom Sauce 2) Pesto Cream   3) Demi Glace 4) Garlic Oil"},"Sauce 6","5 ltr ea"]
["B4","PASTA TOPPINGS",{"$f":"'Dinner Menu Matrix'!D16","v":"1) Grilled Chicken Breast Strips"},"Lido Hot","5 kg ea"]
[null,null,{"$f":"'Dinner Menu Matrix'!D17","v":"2) Roasted Seard Steak Cubes"},"Lido Hot","5 kg ea"]
[null,null,{"$f":"'Dinner Menu Matrix'!D18","v":"3) Roasted Catch of the Day Cubes"},"Lido Hot","5 kg ea"]
[null,null,{"$f":"'Dinner Menu Matrix'!D19","v":"4) Garlic Shrimp"},"Lido Hot","5 kg ea"]
["B5","PASTA SAUCES",{"$f":"'Dinner Menu Matrix'!D20","v":"Sauce: Mushroom Cream"},"Sauce 6","10 ltr"]
[null,null,{"$f":"'Dinner Menu Matrix'!D21","v":"Sauce: Marinara"},"Sauce 6","10 ltr"]
[null,"PASTA STATION",{"$f":"'Dinner Menu Matrix'!D22","v":"1) Penne Pasta"},"Lido Hot","10 kg"]
[null,null,{"$f":"'Dinner Menu Matrix'!D23","v":"2) Fusili Pasta"},"Lido Hot","10 kg"]
["DESTINATIONS",null,{"$f":"'Dinner Menu Matrix'!D24","v":"FRENCH"}]
["C1","CONDIMENTS",{"$f":"'Dinner Menu Matrix'!D25","v":"A1 / Mustard / Ketchup / Sriracha"}]
[null,null,{"$f":"'Dinner Menu Matrix'!D26","v":"Worchestershire / Soy Sauce / Malt V"}]
["C2","FISH / SEAFOOD               VEGETABLE ITEM",{"$f":"'Dinner Menu Matrix'!D27","v":"1) Almond Crusted Perch. Vernonique Sauce (Green Grapes & Brown Butter)"},"Fish 5","250 pcs"]
[null,null,{"$f":"'Dinner Menu Matrix'!D28","v":"2) Creamy Potato Fondant"},"Soup 6","25 kg"]
["C3","PROTEIN ITEM         SIDE ITEM",{"$f":"'Dinner Menu Matrix'!D29","v":"1) Rustic Coq au Vin Chicken"},"Grill 6","45 kg"]
[null,null,{"$f":"'Dinner Menu Matrix'!D30","v":"2) Spinach & Tomato Gratinee"},"Lido Hot","30 kg"]
["C4","STARCH ITEM            SIDE ITEM",{"$f":"'Dinner Menu Matrix'!D31","v":"1) Rice Pilaf"},"Soup 5","10 kg"]
[null,null,{"$f":"'Dinner Menu Matrix'!D32","v":"2) Green Beans & Onions"},"Lido Hot","25 kg"]
["C5","NEUTRAL",{"$f":"'Dinner Menu Matrix'!D33","v":0}]
[null,null,{"$f":"'Dinner Menu Matrix'!D34","v":"GARDEN SOUP KETTLE"}]
["D1","SOUPS",{"$f":"'Dinner Menu Matrix'!D35","v":"1) Daily Soup Main Dining"},"Soup 5 ","25 ltr"]
[null,null,{"$f":"'Dinner Menu Matrix'!D36","v":"2) Daily Soup Main Dining"},"Soup 5 ","25 ltr"]
["D2","TOPPINGS",{"$f":"'Dinner Menu Matrix'!D37","v":"Scallions / Bacon Bits / Croutons "},"Soup 5 ","2 kg "]
[null,null,{"$f":"'Dinner Menu Matrix'!D38","v":"Parmesan / Red Onion / Tofu"},"B Box","2kg"]
[null,null,{"$f":"'Dinner Menu Matrix'!D39","v":"HARVEST SALADS"}]
["E1","Composed Salad",{"$f":"'Dinner Menu Matrix'!D40","v":"Asparagus, Bresaola, Mozz, Truffle"},"Gm 14","80 Portion"]
[null,"Crostini",{"$f":"'Dinner Menu Matrix'!D41","v":"Goat Cheese & Beet Crostini"},"Fruit 6",180]
[null,"Cold Appetizer",{"$f":"'Dinner Menu Matrix'!D42","v":"Port Figs & Brie Puffs"},"Bakery",180]
[null,"Cold Appetizer",{"$f":"'Dinner Menu Matrix'!D43","v":"Salt Roasted Cashews & Pickles"},"Gm 14","65 Portion"]
[null,null,{"$f":"'Dinner Menu Matrix'!D44","v":"COMPOSED SALADS"}]
["E2","Caesar Salad",{"$f":"'Dinner Menu Matrix'!D45","v":"Romaine Lettuce / Parmesan / Anchovies / Croutons "},"Gm 6","30 kg"]
[null,"Composed Salad",{"$f":"'Dinner Menu Matrix'!D46","v":"Green Bean Salad"},"GM 14","10 kg"]
[null,"Fruit Salad LG",{"$f":"'Dinner Menu Matrix'!D47","v":"Apricot & Cherry Fruit Salad"},"Fruit 5","20 kg"]
[null,"Roasted Veg",{"$f":"'Dinner Menu Matrix'!D48","v":"Roasted Asparagus-Tomato-Carrot"},"Gm 14","10 kg"]
[null,"Cheese Garnish",{"$f":"'Dinner Menu Matrix'!D49","v":"Blue Cheese / Parmesan Cheese"},"Gm 14","5 kg ea"]
[null,"Bread Garnish",{"$f":"'Dinner Menu Matrix'!D50","v":"Seasoned Bagel Chips"},"Gm 14","10 Dozen"]
[null,null,{"$f":"'Dinner Menu Matrix'!D51","v":"FRESH MARKET GREENS"}]
["F1","Leaf Lettuce",{"$f":"'Dinner Menu Matrix'!D52","v":"Mixed Greens / Iceberg"},"Gm 6","40 kg"]
[null,"Leaf Lettuce",{"$f":"'Dinner Menu Matrix'!D53","v":"Shredded Green & Red Cabbage"},"Gm 5","40 kg"]
[null,"Tomato Salad",{"$f":"'Dinner Menu Matrix'!D54","v":"Sliced Tomato & Red Onion"},"Gm 14","10 kg"]
[null,"Potato Salad",{"$f":"'Dinner Menu Matrix'!D55","v":"German Potato Salad"},"Gm 14","25 kg"]
[null,"Crudités",{"$f":"'Dinner Menu Matrix'!D56","v":"Cauliflower/Broccoli/Cherry Tomato"},"Gm 14","5 kg ea"]
[null,null,{"$f":"'Dinner Menu Matrix'!D57","v":"GOURMET SANDWICH SHOP"}]
["F2","Mini Slider Roll ",{"$f":"'Dinner Menu Matrix'!D58","v":"Waldorf Chicken Sandwich"},"International Café",180]
[null,"Open Face",{"$f":"'Dinner Menu Matrix'!D59","v":"Prosciutto, Gorgonzola, Figs"},"Gm 5",200]
[null,"Gazpacho",{"$f":"'Dinner Menu Matrix'!D60","v":"Tomato & Basil"},"Gm 14","15 ltr"]
[null,"Pickles",{"$f":"'Dinner Menu Matrix'!D61","v":"Red Onion-Cornichons-Giardiniera-Green Olives - Kalamata Olives"},"Gm 14","2 kg "]
[null,"Condiments",{"$f":"'Dinner Menu Matrix'!D62","v":"Dijon Mustard - Mayonnaise"}]
[null,null,{"$f":"'Dinner Menu Matrix'!D63","v":"CHARCUTERIE"}]
["G1","CHARCUTERIE DISPLAY",{"$f":"'Dinner Menu Matrix'!D64","v":" Chicken Liver Pate w/ Pickled Onions"},"Gm 14","3 kg"]
[null,null,{"$f":"'Dinner Menu Matrix'!D65","v":"Farmers Pate w/ Lettuce"},"Gm 14","2 kg "]
[null,null,{"$f":"'Dinner Menu Matrix'!D66","v":"Lobster-Seafood Terrine"},"Gm 14","3 kg"]
[null,null,{"$f":"'Dinner Menu Matrix'!D67","v":"Shaved Proscuitto "},"Gm 14","5 kg ea"]
[null,null,{"$f":"'Dinner Menu Matrix'!D68","v":"Sliced Turkey Breast"},"Gm 14","2 kg "]
[null,"CONDIMENTS",{"$f":"'Dinner Menu Matrix'!D69","v":"Cornichons / Pickles / Pearl Onions"},"Gm 14","2 kg "]
[null,null,{"$f":"'Dinner Menu Matrix'!D70","v":"Olives / Mustard / Giardiniera Veg"},"Gm 14","2 kg "]
[null,null,{"$f":"'Dinner Menu Matrix'!D71","v":"PRETZEL BAR"}]
["H1","PRETZELS",{"$f":"'Dinner Menu Matrix'!D72","v":"Plain Pretzel"}]
[null,null,{"$f":"'Dinner Menu Matrix'!D73","v":"Salt Crusted Pretzel"}]
[null,"SAUCE ",{"$f":"'Dinner Menu Matrix'!D74","v":"Beer & Cheese Sauce"}]
[null,"SAUCE ",{"$f":"'Dinner Menu Matrix'!D75","v":"Honey Mustard Sauce"}]
[null,"SAUCE ",{"$f":"'Dinner Menu Matrix'!D76","v":"Spicy Mustard Sauce"}]
[null,null,{"$f":"'Dinner Menu Matrix'!D77","v":"FRESH MARKET TOPPINGS"}]
["H2","TOPPINGS",{"$f":"'Dinner Menu Matrix'!D78","v":"Cherry Tomato Slice / Red Onion"},"Veg Prep","5 kg ea"]
[null,null,{"$f":"'Dinner Menu Matrix'!D79","v":"Cucumber / Celery / Carrots / Radish"},"Veg Prep","5 kg ea"]
[null,null,{"$f":"'Dinner Menu Matrix'!D80","v":"Mixed Pepper / Mushrooms / Corn"},"Veg Prep","5 kg ea"]
[null,null,{"$f":"'Dinner Menu Matrix'!D81","v":"Garbanzo Bean / Black Bean"},"Veg Prep","5 kg ea"]
[null,null,{"$f":"'Dinner Menu Matrix'!D82","v":"Green Olives / Sunflower Seeds"},"Gm 14","2 kg ea"]
[null,null,{"$f":"'Dinner Menu Matrix'!D83","v":"Walnuts / Croutons"},"Gm 14","2 kg ea"]
[null,"DRESSINGS",{"$f":"'Dinner Menu Matrix'!D84","v":"DRESSINGS"},"Gm 14","2 kg ea"]
[null,null,{"$f":"'Dinner Menu Matrix'!D85","v":" Ranch / Caesar / Balsamic / Italian"},"Gm 14","1 Gal"]
[null,null,{"$f":"'Dinner Menu Matrix'!D86","v":" Low-fat Yogurt / Blue Cheese "},"Gm 14","1 Gal"]
[null,null,{"$f":"'Dinner Menu Matrix'!D87","v":" 1000 Island / Shallot / Mustard"},"Gm 6","5 ltr ea"]
[null,null,{"$f":"'Dinner Menu Matrix'!D88","v":"PASTRY COUNTER"}]
["H3","Fruit Tart",{"$f":"'Dinner Menu Matrix'!D89","v":"Fresh Fruit Tartlet"},"Pastry"]
[null,"Pastry",{"$f":"'Dinner Menu Matrix'!D90","v":"Grandma's Chocolate Cake"},"Pastry"]
[null,"Pastry",{"$f":"'Dinner Menu Matrix'!D91","v":"Coconut Passionfruit Cake"},"Pastry"]
[null,"Pastry",{"$f":"'Dinner Menu Matrix'!D92","v":"Oreo Peanut Chocolate Pie"},"Pastry"]
[null,"Pastry",{"$f":"'Dinner Menu Matrix'!D93","v":"St Honore"},"Pastry"]
[null,null,{"$f":"'Dinner Menu Matrix'!D94","v":"FRESH & FAST - GF"}]
["H4","Gluten Free",{"$f":"'Dinner Menu Matrix'!D95","v":"Rhubarb Pie"},"Pastry"]
[null,null,{"$f":"'Dinner Menu Matrix'!D96","v":0},"Pastry"]
[null,"Sugar Free",{"$f":"'Dinner Menu Matrix'!D97","v":"Semolina Tart"},"Pastry"]
["H5","H5 - HOT",{"$f":"'Dinner Menu Matrix'!D98","v":"Caramel Chocolate Baked Banana"},"Pastry"]
[null,null,{"$f":"'Dinner Menu Matrix'!D99","v":"FRUIT STAND FAVORITES"}]
["I-1","Whole Fruits",{"$f":"'Dinner Menu Matrix'!D100","v":"Banana / Red Apple / Pears / Peach   Green Apple / Oranges"},"Gm 14"]
[null,"Sliced Fruits",{"$f":"'Dinner Menu Matrix'!D101","v":"Watermelon/Pineapple/  Cantaloupe  Honeydew Melon"},"Fruit 5"]
[null,null,{"$f":"'Dinner Menu Matrix'!D102","v":"OVEN BAKED BREADS"}]
["I-2","Current Rolls",{"$f":"'Dinner Menu Matrix'!D103","v":"1) Plain Crunchy Rolls"},"Bakery"]
[null,null,{"$f":"'Dinner Menu Matrix'!D104","v":"2) Plain Soft Rolls"},"Bakery"]
[null,null,{"$f":"'Dinner Menu Matrix'!D105","v":"3) Sunflower Seed Rolls"},"Bakery"]
[null,"Loafs",{"$f":"'Dinner Menu Matrix'!D106","v":"4) Honey Wheat Loaf Slice"},"Bakery"]
[null,null,{"$f":"'Dinner Menu Matrix'!D107","v":"5) Olive Focaccia"},"Bakery"]
[null,"Condiments",{"$f":"'Dinner Menu Matrix'!D108","v":"Butter & Preserves"},"Bakery"]
[null,null,{"$f":"'Dinner Menu Matrix'!D109","v":"FROMAGERIE"}]
["I-3","CHEESE",{"$f":"'Dinner Menu Matrix'!D110","v":" Cheddar / Provolone / Gorgonzola"},"Gm 14","5 kg ea"]
[null,"CHEESE",{"$f":"'Dinner Menu Matrix'!D111","v":" Havarti / Jack Cheese"},"Gm 14","5 kg ea"]
[null,"CONDIMENTS",{"$f":"'Dinner Menu Matrix'!D112","v":" Variety of Crackers"},"Gm 14"]
[null,"DRIED FRUITS",{"$f":"'Dinner Menu Matrix'!D113","v":"Apricots / Figs / Dates / Prunes"},"Gm 14","2 kg"]
[null,"NUTS",{"$f":"'Dinner Menu Matrix'!D114","v":"Almond / Pistachio / Walnuts / Pecans"},"Gm 14","2 kg"]
[null,null,{"$f":"'Dinner Menu Matrix'!D115","v":"FRESH & FAST STATION - 2"}]
["H4","PASTRY",{"$f":"'Dinner Menu Matrix'!D116","v":"Dark Chocolate Almond Cake"}]
[null,null,{"$f":"'Dinner Menu Matrix'!D117","v":0}]
[null,"PASTRY ",{"$f":"'Dinner Menu Matrix'!D118","v":"Coconut Passionfruit Cake"}]
[null,null,{"$f":"'Dinner Menu Matrix'!D119","v":0}]
["I-5","Dessert Hot",{"$f":"'Dinner Menu Matrix'!D120","v":"Warm Hazelnut Pudding/ Vanilla Sauc"}]
[]
[null,null,"Sous chef DK 5 / 6 check off sign                            Time"]
[]
[null,null,"Sous Chef recive check off sign                                Time"]
[]
[null,null,"Food testing ",null,"Ok","not OK"]

{"sheet":"Day 2 - Production","index":3,"n_rows":126,"n_cols":7,"rows_kept":126,"cut":false,"hidden":false,"merged":[[115,0,118,0],[115,1,116,1],[117,1,118,1],[77,0,86,0],[77,1,82,1],[83,1,86,1],[88,0,92,0],[94,0,96,0],[94,1,95,1],[99,0,100,0],[102,0,107,0],[102,1,104,1],[105,1,106,1],[109,0,112,0],[71,0,75,0],[71,1,72,1],[36,0,37,0],[36,1,37,1],[39,0,42,0],[57,0,61,0],[63,0,69,0],[63,1,67,1],[68,1,69,1],[44,0,49,0],[51,0,55,0],[30,0,31,0],[30,1,31,1],[34,0,35,0],[34,1,35,1],[24,0,25,0],[24,1,25,1],[26,0,27,0],[26,1,27,1],[28,0,29,0],[28,1,29,1],[13,0,14,0],[15,0,18,0],[15,1,18,1],[19,0,22,0],[19,1,20,1],[21,1,22,1],[3,0,4,0],[3,1,4,1],[5,0,6,0],[9,0,10,0],[11,0,12,0],[11,1,12,1]]}
[null,"STATION",{"$f":"'Dinner Menu Matrix'!E1","v":"DINNER / DAY 2"},"PROD LOCATION","QTY","CREW","SHOPPING LIST"]
[null,null,{"$f":"'Dinner Menu Matrix'!E2","v":"WESTERN DESTINATIONS"}]
["A1","GF-PASTA",{"$f":"'Dinner Menu Matrix'!E3","v":"1) Roasted Zucchini, peppers, eggplant, red onions"},"Lido Hot ","10 kg"]
["A2","DAILY HOT SANDWICH",{"$f":"'Dinner Menu Matrix'!E4","v":"1) Pulled Jerk Chicken Sliders w/"},"Grill 6","10 whole chix"]
[null,null,{"$f":"'Dinner Menu Matrix'!E5","v":"Jack Cheese & Slaw"},"Gm 14"]
["A3","TEX-MEX ITEM",{"$f":"'Dinner Menu Matrix'!E6","v":"1) Potato-Sausage Quesadillia"},"Soup 6","250 person"]
[null,"SIDE ITEM",{"$f":"'Dinner Menu Matrix'!E7","v":"w/ Black Beans (from salsa)"}]
["A4","TOPPINGS",{"$f":"'Dinner Menu Matrix'!E8","v":"Salsa: Tomato / Corn / Black Bean  - Guacamole / Sour Cream / Cheddar"},"Gm 14","5 kg"]
[null,null,{"$f":"'Dinner Menu Matrix'!E9","v":"CARVING BAZAAR"}]
["B1","FISH/SEAFOOD",{"$f":"'Dinner Menu Matrix'!E10","v":"1) Grilled Salmon/Tomato, Capers"},"Fish 6","10 ltrs"]
[null,"VEGETABLES",{"$f":"'Dinner Menu Matrix'!E11","v":"2) Baked Leek Ragout"},"Lido Hot ","30 kg"]
["B2","POTATO OR VEG",{"$f":"'Dinner Menu Matrix'!E12","v":"1) Parmesan Crusted Potatoes"},"Lido Hot ","40 kg"]
[null,null,{"$f":"'Dinner Menu Matrix'!E13","v":"2) Steamed Green Beans"},"Lido Hot ","20 kg"]
["B3","CARVING",{"$f":"'Dinner Menu Matrix'!E14","v":"ROSEMARY CRUSTED SIRLOIN"},"Grill 5","10 pcs"]
[null,"SAUCES",{"$f":"'Dinner Menu Matrix'!E15","v":"1) Chimichurri 2) Peppercorn             3) Creamy Mustard 4) Mushroom"},"GM 14 /Sauce 6"]
["B4","PASTA TOPPINGS",{"$f":"'Dinner Menu Matrix'!E16","v":"1) Grilled Chicken Breast Strips"},"Lido Hot ","5 kg"]
[null,null,{"$f":"'Dinner Menu Matrix'!E17","v":"2) Roasted Seard Steak Cubes"},"Lido Hot ","5 kg"]
[null,null,{"$f":"'Dinner Menu Matrix'!E18","v":"3) Roasted Catch of the Day Cubes"},"Lido Hot ","5 kg"]
[null,null,{"$f":"'Dinner Menu Matrix'!E19","v":"4) Garlic Shrimp"},"Lido Hot ","5 kg"]
["B5","PASTA SAUCES",{"$f":"'Dinner Menu Matrix'!E20","v":"Sauce: Alfredo"},"Sauce 6","10 ltrs"]
[null,null,{"$f":"'Dinner Menu Matrix'!E21","v":"Sauce: Marinara"},"Sauce 6","10 ltrs"]
[null,"PASTA STATION",{"$f":"'Dinner Menu Matrix'!E22","v":"1) Conghielie Pasta"},"Lido Hot ","10 kg"]
[null,null,{"$f":"'Dinner Menu Matrix'!E23","v":"2) Farfalle Pasta"},"Lido Hot ","10 kg"]
["DESTINATIONS",null,{"$f":"'Dinner Menu Matrix'!E24","v":"ASIAN"}]
["C1","CONDIMENTS",{"$f":"'Dinner Menu Matrix'!E25","v":"A1 / Mustard / Ketchup / Sriracha"}]
[null,null,{"$f":"'Dinner Menu Matrix'!E26","v":"Worchestershire / Soy Sauce / Malt V"}]
["C2","FISH / SEAFOOD               VEGETABLE ITEM",{"$f":"'Dinner Menu Matrix'!E27","v":"1) Teriyake Glazed Codfish, Sticky"},"Lido Hot ","300 kg"]
[null,null,{"$f":"'Dinner Menu Matrix'!E28","v":"Coconut Rice, Bokchoy, Crispy Spiced Wontons"},"Lido Hot ","10 kg"]
["C3","PROTEIN ITEM         SIDE ITEM",{"$f":"'Dinner Menu Matrix'!E29","v":"1) Sweet Chili Pork Loin /Asian Slaw"},"Grill 6","8 pcs loin"]
[null,null,{"$f":"'Dinner Menu Matrix'!E30","v":"2) Pork Dumplings/ Black Bean Sauce"},"Lido Hot ","30 Dozen"]
["C4","STARCH ITEM            SIDE ITEM",{"$f":"'Dinner Menu Matrix'!E31","v":"1) Soy Ramen Noodle & Broccoli"},"Lido Hot ","20 kg "]
[null,null,{"$f":"'Dinner Menu Matrix'!E32","v":"2) Vegetable Goyza w/Peanut Sauce"},"Lido Hot ","30 Dozen"]
["C5","NEUTRAL",{"$f":"'Dinner Menu Matrix'!E33","v":0}]
[null,null,{"$f":"'Dinner Menu Matrix'!E34","v":"GARDEN SOUP KETTLE"}]
["D1","SOUPS",{"$f":"'Dinner Menu Matrix'!E35","v":"1) Daily Soup Main Dining"},"Soup 5","25 ltr"]
[null,null,{"$f":"'Dinner Menu Matrix'!E36","v":"2) Daily Soup Main Dining"},"Soup 5","25 ltr"]
["D2","TOPPINGS",{"$f":"'Dinner Menu Matrix'!E37","v":"Scallions / Bacon Bits / Croutons "},"Soup 5","2 kg ea"]
[null,null,{"$f":"'Dinner Menu Matrix'!E38","v":"Parmesan / Red Onion / Tofu"},"Bbox","2 kg ea"]
[null,null,{"$f":"'Dinner Menu Matrix'!E39","v":"HARVEST SALADS"}]
["E1","Composed Salad",{"$f":"'Dinner Menu Matrix'!E40","v":"Shrimp & Avocado Salad"},"Gm 14","200 Portion "]
[null,"Crostini",{"$f":"'Dinner Menu Matrix'!E41","v":"Caprese & Prosciutto, Balsamic Glaze"},"Fruit 6",180]
[null,"Cold Appetizer",{"$f":"'Dinner Menu Matrix'!E42","v":"Deviled Egg w/ Salmon Roe & Chives"},"Gm 6",300]
[null,"Cold Appetizer",{"$f":"'Dinner Menu Matrix'!E43","v":"Watermelon, Gorgonzola, Port Syrup"},"Gm 14","10 kg"]
[null,null,{"$f":"'Dinner Menu Matrix'!E44","v":"COMPOSED SALADS"}]
["E2","Caesar Salad",{"$f":"'Dinner Menu Matrix'!E45","v":"Romaine Lettuce / Parmesan / Anchovies / Croutons "},"Gm 5","30 kg"]
[null,"Composed Salad",{"$f":"'Dinner Menu Matrix'!E46","v":"Orzo Pasta & Wild Rice Salad"},"International Café","10 kg"]
[null,"Fruit Salad LG",{"$f":"'Dinner Menu Matrix'!E47","v":"Spicy Pear & Pineapple Salad"},"Fruit 5","25 kg"]
[null,"Roasted Veg",{"$f":"'Dinner Menu Matrix'!E48","v":"Roasted Mushroom & Tomato"},"Gm 14","10 kg"]
[null,"Cheese Garnish",{"$f":"'Dinner Menu Matrix'!E49","v":"Blue Cheese / Parmesan Cheese"},"Gm 14","2 kg"]
[null,"Bread Garnish",{"$f":"'Dinner Menu Matrix'!E50","v":"Garlic Bread / Parmesan Bread"},"GM 14","10 loaf"]
[null,null,{"$f":"'Dinner Menu Matrix'!E51","v":"FRESH MARKET GREENS"}]
["F1","Leaf Lettuce",{"$f":"'Dinner Menu Matrix'!E52","v":"Mixed Greens / Spinach"},"Gm 6","20 kg"]
[null,"Leaf Lettuce",{"$f":"'Dinner Menu Matrix'!E53","v":"Shredded Green & Red Cabbage"},"Gm 5","20 kg"]
[null,"Tomato Salad",{"$f":"'Dinner Menu Matrix'!E54","v":"Sliced Tomato & Red Onion"},"Gm 14","10 kg"]
[null,"Potato Salad",{"$f":"'Dinner Menu Matrix'!E55","v":"American Potato Salad"},"Gm 14","25 kg"]
[null,"Crudités",{"$f":"'Dinner Menu Matrix'!E56","v":"Cucumber/Radish/Peppers/Carrots"},"veg prep","5 kg"]
[null,null,{"$f":"'Dinner Menu Matrix'!E57","v":"GOURMET SANDWICH SHOP"}]
["F2","Mini Slider Roll ",{"$f":"'Dinner Menu Matrix'!E58","v":"Salami, Tomato, Brie, Figs, Fennel"},"Gm 5",180]
[null,"Open Face",{"$f":"'Dinner Menu Matrix'!E59","v":"Shaved Lamb, Tabbouleh Feta"},"Gm 14","200 pcs"]
[null,"Gazpacho",{"$f":"'Dinner Menu Matrix'!E60","v":"Carrot-Lime"},"Gm 14","20 ltr"]
[null,"Pickles",{"$f":"'Dinner Menu Matrix'!E61","v":"Red Onion-Cornichons-Giardiniera-Green Olives - Kalamata Olives"},"Gm 14","2 kg"]
[null,"Condiments",{"$f":"'Dinner Menu Matrix'!E62","v":"Dijon Mustard - Mayonnaise"}]
[null,null,{"$f":"'Dinner Menu Matrix'!E63","v":"CHARCUTERIE"}]
["G1","CHARCUTERIE DISPLAY",{"$f":"'Dinner Menu Matrix'!E64","v":" Chicken Liver Pate w/ Pickled Onions"},"Gm 14","3 kg"]
[null,null,{"$f":"'Dinner Menu Matrix'!E65","v":"Farmers Pate w/ Lettuce"},"Gm 14","2 kg"]
[null,null,{"$f":"'Dinner Menu Matrix'!E66","v":"Lobster-Seafood Terrine"},"Gm 14","3 kg"]
[null,null,{"$f":"'Dinner Menu Matrix'!E67","v":"Shaved Coppa "},"Gm 14","5 kg"]
[null,null,{"$f":"'Dinner Menu Matrix'!E68","v":"Sliced Ham"},"Gm 14","5 kg"]
[null,"CONDIMENTS",{"$f":"'Dinner Menu Matrix'!E69","v":"Cornichons / Pickles / Pearl Onions"},"Gm 14"," 2 kg"]
[null,null,{"$f":"'Dinner Menu Matrix'!E70","v":"Olives / Mustard / Giardiniera Veg"},null,"2 kg"]
[null,null,{"$f":"'Dinner Menu Matrix'!E71","v":"PRETZEL BAR"}]
["H1","PRETZELS",{"$f":"'Dinner Menu Matrix'!E72","v":"Plain Pretzel"}]
[null,null,{"$f":"'Dinner Menu Matrix'!E73","v":"Salt Crusted Pretzel"}]
[null,"SAUCE ",{"$f":"'Dinner Menu Matrix'!E74","v":"Beer & Cheese Sauce"}]
[null,"SAUCE ",{"$f":"'Dinner Menu Matrix'!E75","v":"Honey Mustard Sauce"}]
[null,"SAUCE ",{"$f":"'Dinner Menu Matrix'!E76","v":"Spicy Mustard Sauce"}]
[null,null,{"$f":"'Dinner Menu Matrix'!E77","v":"FRESH MARKET TOPPINGS"}]
["H2","TOPPINGS",{"$f":"'Dinner Menu Matrix'!E78","v":"Cherry Tomato Slice / Red Onion"},"Veg Prep","5 kg"]
[null,null,{"$f":"'Dinner Menu Matrix'!E79","v":"Cucumber / Celery / Carrots / Radish"},"Veg Prep","5 kg"]
[null,null,{"$f":"'Dinner Menu Matrix'!E80","v":"Mixed Pepper / Mushrooms / Corn"},"Veg Prep","5 kg"]
[null,null,{"$f":"'Dinner Menu Matrix'!E81","v":"Garbanzo Bean / Black Bean"},"Veg Prep","5 kg"]
[null,null,{"$f":"'Dinner Menu Matrix'!E82","v":"Green Olives / Sunflower Seeds"},"Gm 14","2 kg "]
[null,null,{"$f":"'Dinner Menu Matrix'!E83","v":"Walnuts / Croutons"},"Gm 14","2 kg "]
[null,"DRESSINGS",{"$f":"'Dinner Menu Matrix'!E84","v":"DRESSINGS"},"Gm 14"]
[null,null,{"$f":"'Dinner Menu Matrix'!E85","v":" Ranch / Caesar / Balsamic / Italian"},"Gm 14","1 Gal"]
[null,null,{"$f":"'Dinner Menu Matrix'!E86","v":" Low-fat Yogurt / Blue Cheese "},"Gm 14","1 Gal"]
[null,null,{"$f":"'Dinner Menu Matrix'!E87","v":" 1000 Island / Shallot / Mustard"},"Gm 6","3 Ltr"]
[null,null,{"$f":"'Dinner Menu Matrix'!E88","v":"PASTRY COUNTER"}]
["H3","Fruit Tart",{"$f":"'Dinner Menu Matrix'!E89","v":"Fresh Fruit Tartlet"},"Pastry"]
[null,"Pastry",{"$f":"'Dinner Menu Matrix'!E90","v":"Chocolate Coffee Almond Cake"},"Pastry"]
[null,"Pastry",{"$f":"'Dinner Menu Matrix'!E91","v":"Brazilian Cake"},"Pastry"]
[null,"Pastry",{"$f":"'Dinner Menu Matrix'!E92","v":"Crustry Strawberry Shortcake"},"Pastry"]
[null,"Pastry",{"$f":"'Dinner Menu Matrix'!E93","v":"Peanut Butter Chocolate Pie"},"Pastry"]
[null,null,{"$f":"'Dinner Menu Matrix'!E94","v":"FRESH & FAST - GF"}]
["H4","Gluten Free",{"$f":"'Dinner Menu Matrix'!E95","v":"Almond Torte"},"Pastry"]
[null,null,{"$f":"'Dinner Menu Matrix'!E96","v":0},"Pastry"]
[null,"Sugar Free",{"$f":"'Dinner Menu Matrix'!E97","v":"Milk Chocolate Mousse Cake"},"Pastry"]
["H5","H5 - HOT",{"$f":"'Dinner Menu Matrix'!E98","v":"Apricot Tapioca Pudding"},"Pastry"]
[null,null,{"$f":"'Dinner Menu Matrix'!E99","v":"FRUIT STAND FAVORITES"}]
["I-1","Whole Fruits",{"$f":"'Dinner Menu Matrix'!E100","v":"Banana / Red Apple / Pears / Peach   Green Apple / Oranges"},"Gm 14","50 kg ea"]
[null,"Sliced Fruits",{"$f":"'Dinner Menu Matrix'!E101","v":"Watermelon/Pineapple/  Cantaloupe  Honeydew Melon"},"Fruit 5","100 Kg"]
[null,null,{"$f":"'Dinner Menu Matrix'!E102","v":"OVEN BAKED BREADS"}]
["I-2","Current Rolls",{"$f":"'Dinner Menu Matrix'!E103","v":"1) Plain Crunchy Rolls"},"Bakery"]
[null,null,{"$f":"'Dinner Menu Matrix'!E104","v":"2) Plain Soft Rolls"},"Bakery"]
[null,null,{"$f":"'Dinner Menu Matrix'!E105","v":"3) Pumpernickel Rolls"},"Bakery"]
[null,"Loafs",{"$f":"'Dinner Menu Matrix'!E106","v":"4) Six Cereal Loaf Sliced"},"Bakery"]
[null,null,{"$f":"'Dinner Menu Matrix'!E107","v":"5) Olive Focaccia"},"Bakery"]
[null,"Condiments",{"$f":"'Dinner Menu Matrix'!E108","v":"Butter & Preserves"},"Bakery"]
[null,null,{"$f":"'Dinner Menu Matrix'!E109","v":"FROMAGERIE"}]
["I-3","CHEESE",{"$f":"'Dinner Menu Matrix'!E110","v":" Cheddar / Provolone / Gorgonzola"},"Gm 14","5 kg"]
[null,"CHEESE",{"$f":"'Dinner Menu Matrix'!E111","v":" Havarti / Jack Cheese"},"Gm 14","5 kg"]
[null,"CONDIMENTS",{"$f":"'Dinner Menu Matrix'!E112","v":" Variety of Crackers"},"Gm 14"]
[null,"DRIED FRUITS",{"$f":"'Dinner Menu Matrix'!E113","v":"Apricots / Figs / Dates / Prunes"},"Gm 14","2 kg "]
[null,"NUTS",{"$f":"'Dinner Menu Matrix'!E114","v":"Almond / Pistachio / Walnuts / Pecans"},"Gm 14","2 kg "]
[null,null,{"$f":"'Dinner Menu Matrix'!E115","v":"FRESH & FAST STATION - 2"}]
["H4","PASTRY",{"$f":"'Dinner Menu Matrix'!E116","v":"Black Forest Torte"}]
[null,null,{"$f":"'Dinner Menu Matrix'!E117","v":0}]
[null,"PASTRY ",{"$f":"'Dinner Menu Matrix'!E118","v":"Brazilian Cake"}]
[null,null,{"$f":"'Dinner Menu Matrix'!E119","v":0}]
["I-5","Dessert Hot",{"$f":"'Dinner Menu Matrix'!E120","v":"Butter Pecan Pudding Caramel Sauce"}]
[]
[null,null,"Sous chef DK 5 / 6 check off sign                            Time"]
[]
[null,null,"Sous Chef recive check off sign                                Time"]
[]
[null,null,"Food testing ",null,"Ok","not OK"]

{"sheet":"Day 3 - Production","index":4,"n_rows":126,"n_cols":7,"rows_kept":126,"cut":false,"hidden":false,"merged":[[63,0,69,0],[63,1,67,1],[68,1,69,1],[71,0,75,0],[71,1,72,1],[115,0,118,0],[115,1,116,1],[117,1,118,1],[77,0,86,0],[77,1,82,1],[83,1,86,1],[88,0,92,0],[94,0,96,0],[94,1,95,1],[99,0,100,0],[102,0,107,0],[102,1,104,1],[105,1,106,1],[109,0,112,0],[36,0,37,0],[36,1,37,1],[39,0,42,0],[57,0,61,0],[44,0,49,0],[51,0,55,0],[30,0,31,0],[30,1,31,1],[34,0,35,0],[34,1,35,1],[24,0,25,0],[24,1,25,1],[26,0,27,0],[26,1,27,1],[28,0,29,0],[28,1,29,1],[13,0,14,0],[15,0,18,0],[15,1,18,1],[19,0,22,0],[19,1,20,1],[21,1,22,1],[3,0,4,0],[3,1,4,1],[5,0,6,0],[9,0,10,0],[11,0,12,0],[11,1,12,1]]}
[null,"STATION",{"$f":"'Dinner Menu Matrix'!F1","v":"DINNER / DAY 3"},"PROD LOCATION","QTY","CREW","SHOPPING LIST"]
[null,null,{"$f":"'Dinner Menu Matrix'!F2","v":"WESTERN DESTINATIONS"}]
["A1","GF-PASTA",{"$f":"'Dinner Menu Matrix'!F3","v":"1) Mushrooms, Garlic, Spinach Fresh"},"Lido Hot ","10 kg"]
["A2","DAILY HOT SANDWICH",{"$f":"'Dinner Menu Matrix'!F4","v":"1) Meatball Slider w/ Mozzarella "},"Gm 14","250 portion"]
[null,null,{"$f":"'Dinner Menu Matrix'!F5","v":"Wilted Spinach & Parmesan"}]
["A3","TEX-MEX ITEM",{"$f":"'Dinner Menu Matrix'!F6","v":"1) Steak & Cheese Enchilada w/"},"Soup 6","250 portion"]
[null,"SIDE ITEM",{"$f":"'Dinner Menu Matrix'!F7","v":"Yellow Corn Salsa"}]
["A4","TOPPINGS",{"$f":"'Dinner Menu Matrix'!F8","v":"Salsa: Tomato / Corn / Black Bean  - Guacamole / Sour Cream / Cheddar"},"Gm 14","5 kg"]
[null,null,{"$f":"'Dinner Menu Matrix'!F9","v":"CARVING BAZAAR"}]
["B1","FISH/SEAFOOD",{"$f":"'Dinner Menu Matrix'!F10","v":"1) Seared Snapper, Citrus Emulsion"},"Fish 5","300 pcs"]
[null,"VEGETABLES",{"$f":"'Dinner Menu Matrix'!F11","v":"2) Garlic Oil Broccoli"},"Lido Hot ","30 kg"]
["B2","POTATO OR VEG",{"$f":"'Dinner Menu Matrix'!F12","v":"1) Rosemary Crushed Red Bliss"},"Sooup 5","40 kg"]
[null,null,{"$f":"'Dinner Menu Matrix'!F13","v":"2) Truffle Mashed Potato"},"Soup 6","40 kg"]
["B3","CARVING",{"$f":"'Dinner Menu Matrix'!F14","v":"APRICOT&FIG STUFFED TURKEY BREAST WRAPPED IN BACON"},"Grill 5","15 pcs"]
[null,"SAUCES",{"$f":"'Dinner Menu Matrix'!F15","v":"1) Cranberry Sauce 2) Mustard          3) Gravy Dark 4) Peppercorn"},"Sauce 6","5 ltr"]
["B4","PASTA TOPPINGS",{"$f":"'Dinner Menu Matrix'!F16","v":"1) Grilled Chicken Breast Strips"},"Lido Hot ","5 kg"]
[null,null,{"$f":"'Dinner Menu Matrix'!F17","v":"2) Roasted Seard Steak Cubes"},"Lido Hot "," 5kg"]
[null,null,{"$f":"'Dinner Menu Matrix'!F18","v":"3) Roasted Catch of the Day Cubes"},"Lido Hot ","5 kg"]
[null,null,{"$f":"'Dinner Menu Matrix'!F19","v":"4) Garlic Shrimp"},"Lido Hot ","5 kg"]
["B5","PASTA SAUCES",{"$f":"'Dinner Menu Matrix'!F20","v":"Sauce: Puttanesca"},"Sauce 6","5 ltr"]
[null,null,{"$f":"'Dinner Menu Matrix'!F21","v":"Sauce: Marinara"},"Sauce6","5 ltr"]
[null,"PASTA STATION",{"$f":"'Dinner Menu Matrix'!F22","v":"1) Ragatoni Pasta"},"Lido Hot ","10 kg"]
[null,null,{"$f":"'Dinner Menu Matrix'!F23","v":"2) Fusili Pasta"},"Lido Hot ","10 kg"]
["DESTINATIONS",null,{"$f":"'Dinner Menu Matrix'!F24","v":"ITALIAN"}]
["C1","CONDIMENTS",{"$f":"'Dinner Menu Matrix'!F25","v":"A1 / Mustard / Ketchup / Sriracha"}]
[null,null,{"$f":"'Dinner Menu Matrix'!F26","v":"Worchestershire / Soy Sauce / Malt V"}]
["C2","FISH / SEAFOOD               VEGETABLE ITEM",{"$f":"'Dinner Menu Matrix'!F27","v":"1) Frito Misto Seafood & Veggies"},"Lido Hot ","15 kg"]
[null,null,{"$f":"'Dinner Menu Matrix'!F28","v":"2) Marinara Sauce & Saffron Aioli"},"Lido Hot ","10 ltr"]
["C3","PROTEIN ITEM         SIDE ITEM",{"$f":"'Dinner Menu Matrix'!F29","v":"1) Chicken Scallopini/ Pomodor Sauce"},"Butcher","300 kg"]
[null,null,{"$f":"'Dinner Menu Matrix'!F30","v":"2) Olives, Roasted Peppers, Artichoke"},"Lido Hot ","30 kg"]
["C4","STARCH ITEM            SIDE ITEM",{"$f":"'Dinner Menu Matrix'!F31","v":"1) Orzo Pasta, Spinach, Tomato"},"Lido Hot ","10 kg"]
[null,null,{"$f":"'Dinner Menu Matrix'!F32","v":0}]
["C5","NEUTRAL",{"$f":"'Dinner Menu Matrix'!F33","v":0}]
[null,null,{"$f":"'Dinner Menu Matrix'!F34","v":"GARDEN SOUP KETTLE"}]
["D1","SOUPS",{"$f":"'Dinner Menu Matrix'!F35","v":"1) Daily Soup Main Dining"},"Soup 5","25 kg"]
[null,null,{"$f":"'Dinner Menu Matrix'!F36","v":"2) Daily Soup Main Dining"},"Soup 5","25 kg"]
["D2","TOPPINGS",{"$f":"'Dinner Menu Matrix'!F37","v":"Scallions / Bacon Bits / Croutons "},"Bell box","2 kg"]
[null,null,{"$f":"'Dinner Menu Matrix'!F38","v":"Parmesan / Red Onion / Tofu"},"Bell box"]
[null,null,{"$f":"'Dinner Menu Matrix'!F39","v":"HARVEST SALADS"}]
["E1","Composed Salad",{"$f":"'Dinner Menu Matrix'!F40","v":"Salmon Salad Nicoise"},"Gm 14","10 kg"]
[null,"Crostini",{"$f":"'Dinner Menu Matrix'!F41","v":"Gorgonzola, Cranberries, Pistachio"},"Fruit 6",180]
[null,"Cold Appetizer",{"$f":"'Dinner Menu Matrix'!F42","v":"Prosciutto, Arugula, Feta Cheese"},"Gm 6",180]
[null,"Cold Appetizer",{"$f":"'Dinner Menu Matrix'!F43","v":"Cantaloupe & Cherry Cocktail"},"Gm 14","120 portion"]
[null,null,{"$f":"'Dinner Menu Matrix'!F44","v":"COMPOSED SALADS"}]
["E2","Caesar Salad",{"$f":"'Dinner Menu Matrix'!F45","v":"Romaine Lettuce / Parmesan / Anchovies / Croutons "},"Gm 14","15 kg"]
[null,"Composed Salad",{"$f":"'Dinner Menu Matrix'!F46","v":"Greek Salad"},"International Café","12 kg"]
[null,"Fruit Salad LG",{"$f":"'Dinner Menu Matrix'!F47","v":"Cajun Peach Salad"},"Fruit 5","25 kg"]
[null,"Roasted Veg",{"$f":"'Dinner Menu Matrix'!F48","v":"Roasted Carrots & Peppers"},"GM 14","10 kg"]
[null,"Cheese Garnish",{"$f":"'Dinner Menu Matrix'!F49","v":"Blue Cheese / Parmesan Cheese"},"Gm 14","2 kg"]
[null,"Bread Garnish",{"$f":"'Dinner Menu Matrix'!F50","v":"Cheddar Cheese Bread"},"Bakery","15 loaf"]
[null,null,{"$f":"'Dinner Menu Matrix'!F51","v":"FRESH MARKET GREENS"}]
["F1","Leaf Lettuce",{"$f":"'Dinner Menu Matrix'!F52","v":"Mixed Greens / Iceberg"},"GM 6","40 kg"]
[null,"Leaf Lettuce",{"$f":"'Dinner Menu Matrix'!F53","v":"Shredded Green & Red Cabbage"},"Gm 5","40 kg"]
[null,"Tomato Salad",{"$f":"'Dinner Menu Matrix'!F54","v":"Sliced Tomato & Red Onion"},"Gm 14","10 kg"]
[null,"Potato Salad",{"$f":"'Dinner Menu Matrix'!F55","v":"Lemon Pepper Potato Salad"},"Gm 14","50 kg"]
[null,"Crudités",{"$f":"'Dinner Menu Matrix'!F56","v":"Carrots/Celery/Pepper/Radish"},"Gm 14","10 kg"]
[null,null,{"$f":"'Dinner Menu Matrix'!F57","v":"GOURMET SANDWICH SHOP"}]
["F2","Mini Slider Roll ",{"$f":"'Dinner Menu Matrix'!F58","v":"Mini Lobster Roll"},"Gm 5",180]
[null,"Open Face",{"$f":"'Dinner Menu Matrix'!F59","v":"Shaved Filet Mignon w/ Truffle Aioli"},"Gm 14","200 portion"]
[null,"Gazpacho",{"$f":"'Dinner Menu Matrix'!F60","v":"Red Pepper & Tomato"},"Gm 14","10 kg"]
[null,"Pickles",{"$f":"'Dinner Menu Matrix'!F61","v":"Red Onion-Cornichons-Giardiniera-Green Olives - Kalamata Olives"},"Gm 14","2 kg"]
[null,"Condiments",{"$f":"'Dinner Menu Matrix'!F62","v":"Dijon Mustard - Mayonnaise"}]
[null,null,{"$f":"'Dinner Menu Matrix'!F63","v":"CHARCUTERIE"}]
["G1","CHARCUTERIE DISPLAY",{"$f":"'Dinner Menu Matrix'!F64","v":" Chicken Liver Pate w/ Pickled Onions"},"Gm 14","3 kg"]
[null,null,{"$f":"'Dinner Menu Matrix'!F65","v":"Farmers Pate w/ Lettuce"},"Gm 14","2 kg"]
[null,null,{"$f":"'Dinner Menu Matrix'!F66","v":"Lobster-Seafood Terrine"},"Gm 14","2 kg"]
[null,null,{"$f":"'Dinner Menu Matrix'!F67","v":"Shaved Proscuitto "},"Gm 14","5 kg"]
[null,null,{"$f":"'Dinner Menu Matrix'!F68","v":"Sliced Turkey Breast"},"Gm 14","5 kg"]
[null,"CONDIMENTS",{"$f":"'Dinner Menu Matrix'!F69","v":"Cornichons / Pickles / Pearl Onions"},"Gm 14","2 kg"]
[null,null,{"$f":"'Dinner Menu Matrix'!F70","v":"Olives / Mustard / Giardiniera Veg"},null,"2 kg"]
[null,null,{"$f":"'Dinner Menu Matrix'!F71","v":"PRETZEL BAR"}]
["H1","PRETZELS",{"$f":"'Dinner Menu Matrix'!F72","v":"Plain Pretzel"}]
[null,null,{"$f":"'Dinner Menu Matrix'!F73","v":"Salt Crusted Pretzel"}]
[null,"SAUCE ",{"$f":"'Dinner Menu Matrix'!F74","v":"Beer & Cheese Sauce"}]
[null,"SAUCE ",{"$f":"'Dinner Menu Matrix'!F75","v":"Honey Mustard Sauce"}]
[null,"SAUCE ",{"$f":"'Dinner Menu Matrix'!F76","v":"Spicy Mustard Sauce"}]
[null,null,{"$f":"'Dinner Menu Matrix'!F77","v":"FRESH MARKET TOPPINGS"}]
["H2","TOPPINGS",{"$f":"'Dinner Menu Matrix'!F78","v":"Cherry Tomato Slice / Red Onion"},"Veg Prep","5 kg ea"]
[null,null,{"$f":"'Dinner Menu Matrix'!F79","v":"Cucumber / Celery / Carrots / Radish"},"Veg Prep","5 kg ea"]
[null,null,{"$f":"'Dinner Menu Matrix'!F80","v":"Mixed Pepper / Mushrooms / Corn"},"Veg Prep","5 kg ea"]
[null,null,{"$f":"'Dinner Menu Matrix'!F81","v":"Garbanzo Bean / Black Bean"},"Veg Prep"]
[null,null,{"$f":"'Dinner Menu Matrix'!F82","v":"Green Olives / Sunflower Seeds"},"Gm 14","2 kg ea"]
[null,null,{"$f":"'Dinner Menu Matrix'!F83","v":"Walnuts / Croutons"},"GM 14","2 kg ea"]
[null,"DRESSINGS",{"$f":"'Dinner Menu Matrix'!F84","v":"DRESSINGS"},"GM 14"]
[null,null,{"$f":"'Dinner Menu Matrix'!F85","v":" Ranch / Caesar / Balsamic / Italian"},"GM 14","1 Gal "]
[null,null,{"$f":"'Dinner Menu Matrix'!F86","v":" Low-fat Yogurt / Blue Cheese "},"GM 14","1 Gal "]
[null,null,{"$f":"'Dinner Menu Matrix'!F87","v":" 1000 Island / Shallot / Mustard"},"Gm 6","3 ltr"]
[null,null,{"$f":"'Dinner Menu Matrix'!F88","v":"PASTRY COUNTER"}]
["H3","Fruit Tart",{"$f":"'Dinner Menu Matrix'!F89","v":"Fresh Fruit Tartlet"},"Pastry"]
[null,"Pastry",{"$f":"'Dinner Menu Matrix'!F90","v":"Grandma's Chocolate Cake"},"Pastry"]
[null,"Pastry",{"$f":"'Dinner Menu Matrix'!F91","v":"Tiramisu"},"Pastry"]
[null,"Pastry",{"$f":"'Dinner Menu Matrix'!F92","v":"Crostata Genovese"},"Pastry"]
[null,"Pastry",{"$f":"'Dinner Menu Matrix'!F93","v":"Mimosa Cake"},"Pastry"]
[null,null,{"$f":"'Dinner Menu Matrix'!F94","v":"FRESH & FAST - GF"}]
["H4","Gluten Free",{"$f":"'Dinner Menu Matrix'!F95","v":"Amaretto Profiteroles"},"Pastry"]
[null,null,{"$f":"'Dinner Menu Matrix'!F96","v":0},"Pastry"]
[null,"Sugar Free",{"$f":"'Dinner Menu Matrix'!F97","v":"Mango & Banana Shortcake"},"Pastry"]
["H5","H5 - HOT",{"$f":"'Dinner Menu Matrix'!F98","v":"GF-Bread Pudding / Vanilla Sauce"},"Pastry"]
[null,null,{"$f":"'Dinner Menu Matrix'!F99","v":"FRUIT STAND FAVORITES"}]
["I-1","Whole Fruits",{"$f":"'Dinner Menu Matrix'!F100","v":"Banana / Red Apple / Pears / Peach   Green Apple / Oranges"},"Gm 14","50 Kg"]
[null,"Sliced Fruits",{"$f":"'Dinner Menu Matrix'!F101","v":"Watermelon/Pineapple/  Cantaloupe  Honeydew Melon"},"Fruit 5","100 Kg"]
[null,null,{"$f":"'Dinner Menu Matrix'!F102","v":"OVEN BAKED BREADS"}]
["I-2","Current Rolls",{"$f":"'Dinner Menu Matrix'!F103","v":"1) Plain Crunchy Rolls"},"Bakery"]
[null,null,{"$f":"'Dinner Menu Matrix'!F104","v":"2) Plain Soft Rolls"},"Bakery"]
[null,null,{"$f":"'Dinner Menu Matrix'!F105","v":"3) Sesame Seed Rolls"},"Bakery"]
[null,"Loafs",{"$f":"'Dinner Menu Matrix'!F106","v":"4) Focaccia Loaf Sliced"},"Bakery"]
[null,null,{"$f":"'Dinner Menu Matrix'!F107","v":"5) Tomato Focaccia"},"Bakery"]
[null,"Condiments",{"$f":"'Dinner Menu Matrix'!F108","v":"Butter & Preserves"},"Bakery"]
[null,null,{"$f":"'Dinner Menu Matrix'!F109","v":"FROMAGERIE"}]
["I-3","CHEESE",{"$f":"'Dinner Menu Matrix'!F110","v":" Cheddar / Provolone / Gorgonzola"},"Gm 14","5 Kg"]
[null,"CHEESE",{"$f":"'Dinner Menu Matrix'!F111","v":" Havarti / Jack Cheese"},"Gm 14","5 Kg"]
[null,"CONDIMENTS",{"$f":"'Dinner Menu Matrix'!F112","v":" Variety of Crackers"},"Gm 14"]
[null,"DRIED FRUITS",{"$f":"'Dinner Menu Matrix'!F113","v":"Apricots / Figs / Dates / Prunes"},"Gm 14","2 Kg"]
[null,"NUTS",{"$f":"'Dinner Menu Matrix'!F114","v":"Almond / Pistachio / Walnuts / Pecans"},"Gm 14","2 Kg"]
[null,null,{"$f":"'Dinner Menu Matrix'!F115","v":"FRESH & FAST STATION - 2"}]
["H4","PASTRY",{"$f":"'Dinner Menu Matrix'!F116","v":"Coffee Mousse Cake "}]
[null,null,{"$f":"'Dinner Menu Matrix'!F117","v":0}]
[null,"PASTRY ",{"$f":"'Dinner Menu Matrix'!F118","v":"Tiramisu"}]
[null,null,{"$f":"'Dinner Menu Matrix'!F119","v":0}]
["I-5","Dessert Hot",{"$f":"'Dinner Menu Matrix'!F120","v":"Frutti Di Bosco"}]
[]
[null,null,"Sous chef DK 5 / 6 check off sign                            Time"]
[]
[null,null,"Sous Chef recive check off sign                                Time"]
[]
[null,null,"Food testing ",null,"Ok","not OK"]

{"sheet":"Day 4 - Production","index":5,"n_rows":126,"n_cols":7,"rows_kept":126,"cut":false,"hidden":false,"merged":[[63,0,69,0],[63,1,67,1],[68,1,69,1],[71,0,75,0],[71,1,72,1],[115,0,118,0],[115,1,116,1],[117,1,118,1],[77,0,86,0],[77,1,82,1],[83,1,86,1],[88,0,92,0],[94,0,96,0],[94,1,95,1],[99,0,100,0],[102,0,107,0],[102,1,104,1],[105,1,106,1],[109,0,112,0],[36,0,37,0],[36,1,37,1],[39,0,42,0],[57,0,61,0],[44,0,49,0],[51,0,55,0],[30,0,31,0],[30,1,31,1],[34,0,35,0],[34,1,35,1],[24,0,25,0],[24,1,25,1],[26,0,27,0],[26,1,27,1],[28,0,29,0],[28,1,29,1],[13,0,14,0],[15,0,18,0],[15,1,18,1],[19,0,22,0],[19,1,20,1],[21,1,22,1],[3,0,4,0],[3,1,4,1],[5,0,6,0],[9,0,10,0],[11,0,12,0],[11,1,12,1]]}
[null,"STATION",{"$f":"'Dinner Menu Matrix'!G1","v":"DINNER / DAY 4"},"PROD LOCATION","QTY","CREW","SHOPPING LIST"]
[null,null,{"$f":"'Dinner Menu Matrix'!G2","v":"WESTERN DESTINATIONS"}]
["A1","GF-PASTA",{"$f":"'Dinner Menu Matrix'!G3","v":"1) Roasted Peppers & Basil"},"Lido Hot","10 Kg"]
["A2","DAILY HOT SANDWICH",{"$f":"'Dinner Menu Matrix'!G4","v":"1) Pulled Pork Sliders w/ Gouda"},"Gm 6","300 Portions"]
[null,null,{"$f":"'Dinner Menu Matrix'!G5","v":"BBQ Sauce, Pickles & Red Onion-P"}]
["A3","TEX-MEX ITEM",{"$f":"'Dinner Menu Matrix'!G6","v":"1) Cilantro Chicken Nacho's w/ tomato salsa and cilantro"},"Lido Hot","25 Kg"]
[null,"SIDE ITEM",{"$f":"'Dinner Menu Matrix'!G7","v":0}]
["A4","TOPPINGS",{"$f":"'Dinner Menu Matrix'!G8","v":"Salsa: Tomato / Corn / Black Bean  - Guacamole / Sour Cream / Cheddar"},"Gm 14","5 Kg"]
[null,null,{"$f":"'Dinner Menu Matrix'!G9","v":"CARVING BAZAAR"}]
["B1","FISH/SEAFOOD",{"$f":"'Dinner Menu Matrix'!G10","v":"1) Orange-Pepper Tuna / Orange Em"},"Fish 5","300 pcs"]
[null,"VEGETABLES",{"$f":"'Dinner Menu Matrix'!G11","v":"2) Roasted Green Zucchini & Peppers"},"Lido Hot","25 Kg"]
["B2","POTATO OR VEG",{"$f":"'Dinner Menu Matrix'!G12","v":"1) Bacon Cheddar Stuff Potatoes"},"Lido Hot","350 Portion"]
[null,null,{"$f":"'Dinner Menu Matrix'!G13","v":"2) Roasted Sweet Potato Mash"},"Soup 6","80 Kg"]
["B3","CARVING",{"$f":"'Dinner Menu Matrix'!G14","v":"MUSTARD CRUSTED LAMB LEG"},"Grill 6","15 Pcs"]
[null,"SAUCES",{"$f":"'Dinner Menu Matrix'!G15","v":"1) Mustard Sauce 2) Mint Jelly           3) Lamb Jus  4) Mango Chutney"},"Sauce 6","5 ltr"]
["B4","PASTA TOPPINGS",{"$f":"'Dinner Menu Matrix'!G16","v":"1) Grilled Chicken Breast Strips"},"Lido Hot","5 kg"]
[null,null,{"$f":"'Dinner Menu Matrix'!G17","v":"2) Roasted Seard Steak Cubes"},"Lido Hot","5 kg"]
[null,null,{"$f":"'Dinner Menu Matrix'!G18","v":"3) Roasted Catch of the Day Cubes"},"Lido Hot","5 kg"]
[null,null,{"$f":"'Dinner Menu Matrix'!G19","v":"4) Garlic Shrimp"},"Lido Hot","5 kg"]
["B5","PASTA SAUCES",{"$f":"'Dinner Menu Matrix'!G20","v":"Sauce: Bolognese "},"Sauce 6","10 Ltrs"]
[null,null,{"$f":"'Dinner Menu Matrix'!G21","v":"Sauce: Marinara"},"Sauce 6","10 Ltrs"]
[null,"PASTA STATION",{"$f":"'Dinner Menu Matrix'!G22","v":"1) Farfalle Pasta"},"Lido Hot","10 Kg"]
[null,null,{"$f":"'Dinner Menu Matrix'!G23","v":"2) Fettucini Pasta"},"Lido Hot","10 Kg"]
["DESTINATIONS",null,{"$f":"'Dinner Menu Matrix'!G24","v":"ASIAN"}]
["C1","CONDIMENTS",{"$f":"'Dinner Menu Matrix'!G25","v":"A1 / Mustard / Ketchup / Sriracha"}]
[null,null,{"$f":"'Dinner Menu Matrix'!G26","v":"Worchestershire / Soy Sauce / Malt V"}]
["C2","FISH / SEAFOOD               VEGETABLE ITEM",{"$f":"'Dinner Menu Matrix'!G27","v":"1) Charred Salmon Harami w/ Ponzu"},"Lido Hot","300 Portions"]
[null,null,{"$f":"'Dinner Menu Matrix'!G28","v":"Pickled Ginger Slaw, Fried Noodles"}]
["C3","PROTEIN ITEM         SIDE ITEM",{"$f":"'Dinner Menu Matrix'!G29","v":"1) Thai Chicken Skewers w/ Peanut"},"Butcher","400 Portions"]
[null,null,{"$f":"'Dinner Menu Matrix'!G30","v":"2) Peanut Sauce"},"Lido Hot","5 Ltrs"]
["C4","STARCH ITEM            SIDE ITEM",{"$f":"'Dinner Menu Matrix'!G31","v":"1) Vegetable Fried Rice"},"Soup 6","10 Kg"]
[null,null,{"$f":"'Dinner Menu Matrix'!G32","v":"2) Soy-ginger Bokchoy"},"Lido Hot","25 Kg"]
["C5","NEUTRAL",{"$f":"'Dinner Menu Matrix'!G33","v":0}]
[null,null,{"$f":"'Dinner Menu Matrix'!G34","v":"GARDEN SOUP KETTLE"}]
["D1","SOUPS",{"$f":"'Dinner Menu Matrix'!G35","v":"1) Daily Soup Main Dining"},"Soup 5 ","25 ltr"]
[null,null,{"$f":"'Dinner Menu Matrix'!G36","v":"2) Daily Soup Main Dining"},"Soup 5 ","25 ltr"]
["D2","TOPPINGS",{"$f":"'Dinner Menu Matrix'!G37","v":"Scallions / Bacon Bits / Croutons "},"Bell Box","2 Kg"]
[null,null,{"$f":"'Dinner Menu Matrix'!G38","v":"Parmesan / Red Onion / Tofu"},"Bell Box"]
[null,null,{"$f":"'Dinner Menu Matrix'!G39","v":"HARVEST SALADS"}]
["E1","Composed Salad",{"$f":"'Dinner Menu Matrix'!G40","v":"Hot Smoked Salmon & Cucumber"},"Gm 14","Salmon 2 pcs 10 kg salad"]
[null,"Crostini",{"$f":"'Dinner Menu Matrix'!G41","v":"Port Figs & Brie Crostini"},"Fruit 6","180 pcs"]
[null,"Cold Appetizer",{"$f":"'Dinner Menu Matrix'!G42","v":"Deviled Egg w/ Salmon Roe & Chives"},"Gm 6","300 Kg"]
[null,"Cold Appetizer",{"$f":"'Dinner Menu Matrix'!G43","v":"Mixed Olives & Almonds"},"Gm 14","350 Portion"]
[null,null,{"$f":"'Dinner Menu Matrix'!G44","v":"COMPOSED SALADS"}]
["E2","Caesar Salad",{"$f":"'Dinner Menu Matrix'!G45","v":"Romaine Lettuce / Parmesan / Anchovies / Croutons "},"Gm 5","15 kg"]
[null,"Composed Salad",{"$f":"'Dinner Menu Matrix'!G46","v":" Waldorf Chicken Salad"},"Int'l Café","200 pcs"]
[null,"Fruit Salad LG",{"$f":"'Dinner Menu Matrix'!G47","v":"Apricot & Cherry Fruit Salad"},"Fruit 5","25 kg"]
[null,"Roasted Veg",{"$f":"'Dinner Menu Matrix'!G48","v":"Mixed Vegetables"},"Gm 14","10 kg"]
[null,"Cheese Garnish",{"$f":"'Dinner Menu Matrix'!G49","v":"Blue Cheese / Parmesan Cheese"},"Gm 14","2 kg"]
[null,"Bread Garnish",{"$f":"'Dinner Menu Matrix'!G50","v":"Seasoned Bagel Chips"},"Gm 14","10 Dozen"]
[null,null,{"$f":"'Dinner Menu Matrix'!G51","v":"FRESH MARKET GREENS"}]
["F1","Leaf Lettuce",{"$f":"'Dinner Menu Matrix'!G52","v":"Mixed Greens / Spinach"},"Gm 6","40 Kg"]
[null,"Leaf Lettuce",{"$f":"'Dinner Menu Matrix'!G53","v":"Shredded Green & Red Cabbage"},"Gm 5","40 Kg"]
[null,"Tomato Salad",{"$f":"'Dinner Menu Matrix'!G54","v":"Sliced Tomato & Red Onion"},"Gm 14","10 kg"]
[null,"Potato Salad",{"$f":"'Dinner Menu Matrix'!G55","v":"German Potato Salad"},"Gm 14","50 Kg"]
[null,"Crudités",{"$f":"'Dinner Menu Matrix'!G56","v":"Cauliflower/Broccoli/Cherry Tomato"},"Veg Prep","5 Kg"]
[null,null,{"$f":"'Dinner Menu Matrix'!G57","v":"GOURMET SANDWICH SHOP"}]
["F2","Mini Slider Roll ",{"$f":"'Dinner Menu Matrix'!G58","v":"Roast Beef, Horseradish, Pickles"},"Gm 14","280 Pcs"]
[null,"Open Face",{"$f":"'Dinner Menu Matrix'!G59","v":"Smoked Salmon,Cucumber,Dill "},"Gm 5",180]
[null,"Gazpacho",{"$f":"'Dinner Menu Matrix'!G60","v":"Cucumber Herb"},"Gm 14","10 Ltrs"]
[null,"Pickles",{"$f":"'Dinner Menu Matrix'!G61","v":"Red Onion-Cornichons-Giardiniera-Green Olives - Kalamata Olives"},"Gm 14","2 Kg ea"]
[null,"Condiments",{"$f":"'Dinner Menu Matrix'!G62","v":"Dijon Mustard - Mayonnaise"}]
[null,null,{"$f":"'Dinner Menu Matrix'!G63","v":"CHARCUTERIE"}]
["G1","CHARCUTERIE DISPLAY",{"$f":"'Dinner Menu Matrix'!G64","v":" Chicken Liver Pate w/ Pickled Onions"},"Gm 14","3 Kg"]
[null,null,{"$f":"'Dinner Menu Matrix'!G65","v":"Farmers Pate w/ Lettuce"},"Gm 14","2 kg"]
[null,null,{"$f":"'Dinner Menu Matrix'!G66","v":"Lobster-Seafood Terrine"},"Gm 14","3 kg"]
[null,null,{"$f":"'Dinner Menu Matrix'!G67","v":"Shaved Coppa "},"Gm 14","5 kg"]
[null,null,{"$f":"'Dinner Menu Matrix'!G68","v":"Sliced Ham"},"Gm 14","5 kg"]
[null,"CONDIMENTS",{"$f":"'Dinner Menu Matrix'!G69","v":"Cornichons / Pickles / Pearl Onions"},"Gm 14","2kg"]
[null,null,{"$f":"'Dinner Menu Matrix'!G70","v":"Olives / Mustard / Giardiniera Veg"},"Gm 14","2kg"]
[null,null,{"$f":"'Dinner Menu Matrix'!G71","v":"PRETZEL BAR"}]
["H1","PRETZELS",{"$f":"'Dinner Menu Matrix'!G72","v":"Plain Pretzel"}]
[null,null,{"$f":"'Dinner Menu Matrix'!G73","v":"Salt Crusted Pretzel"}]
[null,"SAUCE ",{"$f":"'Dinner Menu Matrix'!G74","v":"Beer & Cheese Sauce"}]
[null,"SAUCE ",{"$f":"'Dinner Menu Matrix'!G75","v":"Honey Mustard Sauce"}]
[null,"SAUCE ",{"$f":"'Dinner Menu Matrix'!G76","v":"Spicy Mustard Sauce"}]
[null,null,{"$f":"'Dinner Menu Matrix'!G77","v":"FRESH MARKET TOPPINGS"}]
["H2","TOPPINGS",{"$f":"'Dinner Menu Matrix'!G78","v":"Cherry Tomato Slice / Red Onion"},"Veg Prep","5 kg "]
[null,null,{"$f":"'Dinner Menu Matrix'!G79","v":"Cucumber / Celery / Carrots / Radish"},"Veg Prep","5 kg "]
[null,null,{"$f":"'Dinner Menu Matrix'!G80","v":"Mixed Pepper / Mushrooms / Corn"},"Veg Prep","5 kg "]
[null,null,{"$f":"'Dinner Menu Matrix'!G81","v":"Garbanzo Bean / Black Bean"},"Veg Prep"]
[null,null,{"$f":"'Dinner Menu Matrix'!G82","v":"Green Olives / Sunflower Seeds"}," GM 14"]
[null,null,{"$f":"'Dinner Menu Matrix'!G83","v":"Walnuts / Croutons"}," GM 14"]
[null,"DRESSINGS",{"$f":"'Dinner Menu Matrix'!G84","v":"DRESSINGS"}," GM 14"]
[null,null,{"$f":"'Dinner Menu Matrix'!G85","v":" Ranch / Caesar / Balsamic / Italian"}," GM 14","1 Gal"]
[null,null,{"$f":"'Dinner Menu Matrix'!G86","v":" Low-fat Yogurt / Blue Cheese "}," GM 14","1 Gal"]
[null,null,{"$f":"'Dinner Menu Matrix'!G87","v":" 1000 Island / Shallot / Mustard"},"GM 6","3 Ltr"]
[null,null,{"$f":"'Dinner Menu Matrix'!G88","v":"PASTRY COUNTER"}]
["H3","Fruit Tart",{"$f":"'Dinner Menu Matrix'!G89","v":"Fresh Fruit Tartlet"},"Pastry"]
[null,"Pastry",{"$f":"'Dinner Menu Matrix'!G90","v":"Chocolate Coffee Almond Cake"},"Pastry"]
[null,"Pastry",{"$f":"'Dinner Menu Matrix'!G91","v":"Apricot Pistachio Mousse Cake"},"Pastry"]
[null,"Pastry",{"$f":"'Dinner Menu Matrix'!G92","v":"Roasted Nut Pie"},"Pastry"]
[null,"Pastry",{"$f":"'Dinner Menu Matrix'!G93","v":"Almond Season Fruit Macaroon"},"Pastry"]
[null,null,{"$f":"'Dinner Menu Matrix'!G94","v":"FRESH & FAST - GF"}]
["H4","Gluten Free",{"$f":"'Dinner Menu Matrix'!G95","v":"Pavlova"},"Pastry"]
[null,null,{"$f":"'Dinner Menu Matrix'!G96","v":0},"Pastry"]
[null,"Sugar Free",{"$f":"'Dinner Menu Matrix'!G97","v":"Cherry Trifle"},"Pastry"]
["H5","H5 - HOT",{"$f":"'Dinner Menu Matrix'!G98","v":"GF-Baked S'mores w/ GF Cookies"},"Pastry"]
[null,null,{"$f":"'Dinner Menu Matrix'!G99","v":"FRUIT STAND FAVORITES"}]
["I-1","Whole Fruits",{"$f":"'Dinner Menu Matrix'!G100","v":"Banana / Red Apple / Pears / Peach   Green Apple / Oranges"},"Gm 14","50 Kg ea"]
[null,"Sliced Fruits",{"$f":"'Dinner Menu Matrix'!G101","v":"Watermelon/Pineapple/  Cantaloupe  Honeydew Melon"},"Fruit 5","100 Kg ea"]
[null,null,{"$f":"'Dinner Menu Matrix'!G102","v":"OVEN BAKED BREADS"}]
["I-2","Current Rolls",{"$f":"'Dinner Menu Matrix'!G103","v":"1) Plain Crunchy Rolls"},"Bakery"]
[null,null,{"$f":"'Dinner Menu Matrix'!G104","v":"2) Plain Soft Rolls"},"Bakery"]
[null,null,{"$f":"'Dinner Menu Matrix'!G105","v":"3) Olive Rolls"},"Bakery"]
[null,"Loafs",{"$f":"'Dinner Menu Matrix'!G106","v":"4) Pumpernickel Loaf Sliced"},"Bakery"]
[null,null,{"$f":"'Dinner Menu Matrix'!G107","v":"5) Parmesan Focaccia"},"Bakery"]
[null,"Condiments",{"$f":"'Dinner Menu Matrix'!G108","v":"Butter & Preserves"},"Bakery"]
[null,null,{"$f":"'Dinner Menu Matrix'!G109","v":"FROMAGERIE"}]
["I-3","CHEESE",{"$f":"'Dinner Menu Matrix'!G110","v":" Cheddar / Provolone / Gorgonzola"},"Gm 14","5 Kg"]
[null,"CHEESE",{"$f":"'Dinner Menu Matrix'!G111","v":" Havarti / Jack Cheese"},"Gm 14","5 Kg"]
[null,"CONDIMENTS",{"$f":"'Dinner Menu Matrix'!G112","v":" Variety of Crackers"},"Gm 14"]
[null,"DRIED FRUITS",{"$f":"'Dinner Menu Matrix'!G113","v":"Apricots / Figs / Dates / Prunes"},"Gm 14","2 Kg ea"]
[null,"NUTS",{"$f":"'Dinner Menu Matrix'!G114","v":"Almond / Pistachio / Walnuts / Pecans"},"Gm 14","2 Kg ea"]
[null,null,{"$f":"'Dinner Menu Matrix'!G115","v":"FRESH & FAST STATION - 2"}]
["H4","PASTRY",{"$f":"'Dinner Menu Matrix'!G116","v":"Sacher Torte"}]
[null,null,{"$f":"'Dinner Menu Matrix'!G117","v":0}]
[null,"PASTRY ",{"$f":"'Dinner Menu Matrix'!G118","v":"Apricot Pistachio Mousse Cake"}]
[null,null,{"$f":"'Dinner Menu Matrix'!G119","v":0}]
["I-5","Dessert Hot",{"$f":"'Dinner Menu Matrix'!G120","v":"Sticky Toffee Pudding"}]
[]
[null,null,"Sous chef DK 5 / 6 check off sign                            Time"]
[]
[null,null,"Sous Chef recive check off sign                                Time"]
[]
[null,null,"Food testing ",null,"Ok","not OK"]

{"sheet":"Day 5 - Production","index":6,"n_rows":126,"n_cols":7,"rows_kept":126,"cut":false,"hidden":false,"merged":[[63,1,67,1],[68,1,69,1],[71,0,75,0],[71,1,72,1],[115,1,116,1],[117,1,118,1],[77,0,86,0],[77,1,82,1],[83,1,86,1],[88,0,92,0],[94,0,96,0],[94,1,95,1],[99,0,100,0],[102,0,107,0],[102,1,104,1],[105,1,106,1],[109,0,112,0],[39,0,42,0],[57,0,61,0],[44,0,49,0],[51,0,55,0],[115,0,118,0],[63,0,69,0],[30,0,31,0],[30,1,31,1],[34,0,35,0],[34,1,35,1],[36,0,37,0],[36,1,37,1],[24,0,25,0],[24,1,25,1],[26,0,27,0],[26,1,27,1],[28,0,29,0],[28,1,29,1],[13,0,14,0],[15,0,18,0],[15,1,18,1],[19,0,22,0],[19,1,20,1],[21,1,22,1],[3,0,4,0],[3,1,4,1],[5,0,6,0],[9,0,10,0],[11,0,12,0],[11,1,12,1]]}
[null,"STATION",{"$f":"'Dinner Menu Matrix'!H1","v":"DINNER/ DAY 5"},"PROD LOCATION","QTY","CREW","SHOPPING LIST"]
[null,null,{"$f":"'Dinner Menu Matrix'!H2","v":"WESTERN DESTINATIONS"}]
["A1","GF-PASTA",{"$f":"'Dinner Menu Matrix'!H3","v":"1) Wild Mushroom Cream Sauce"},"Lido Hot ","10 Kg"]
["A2","DAILY HOT SANDWICH",{"$f":"'Dinner Menu Matrix'!H4","v":"1) Beef Sliders w/ Mushrooms, "},"Gm 14","300 Portion"]
[null,null,{"$f":"'Dinner Menu Matrix'!H5","v":"Caramelized Onions & Cheddar"}]
["A3","TEX-MEX ITEM",{"$f":"'Dinner Menu Matrix'!H6","v":"1) Fried Codfish Tacos / Asian Slaw"},"Lido Hot ","20 Kg"]
[null,"SIDE ITEM",{"$f":"'Dinner Menu Matrix'!H7","v":"Chipotle Aioli"},"Gm 14","3 ltrs"]
["A4","TOPPINGS",{"$f":"'Dinner Menu Matrix'!H8","v":"Salsa: Tomato / Corn / Black Bean  - Guacamole / Sour Cream / Cheddar"},"Gm 14","5 kg"]
[null,null,{"$f":"'Dinner Menu Matrix'!H9","v":"CARVING BAZAAR"}]
["B1","FISH/SEAFOOD",{"$f":"'Dinner Menu Matrix'!H10","v":"1) Whole Roasted Salmon Filet"},"Lido Hot ","30 pcs"]
[null,"VEGETABLES",{"$f":"'Dinner Menu Matrix'!H11","v":"Pickled Red Onions-Parsley Garnish"},"Lido Hot "]
["B2","POTATO OR VEG",{"$f":"'Dinner Menu Matrix'!H12","v":"1) Potatoes in Mushroom Sauce"},"Soup 6","50 Kg"]
[null,null,{"$f":"'Dinner Menu Matrix'!H13","v":"2) Sweet Potato Mash"},"Soup 6","80 Kg"]
["B3","CARVING",{"$f":"'Dinner Menu Matrix'!H14","v":"CHICKEN-MUSHROOM ROULADE"},"Grill 5","30 pcs"]
[null,"SAUCES",{"$f":"'Dinner Menu Matrix'!H15","v":"1) Cranberry Sauce 2) Mustard          3) Gravy Dark 4) Peppercorn"},"Sauce 6","5 ltr ea"]
["B4","PASTA TOPPINGS",{"$f":"'Dinner Menu Matrix'!H16","v":"1) Grilled Chicken Breast Strips"},"Lido Hot ","5 kg "]
[null,null,{"$f":"'Dinner Menu Matrix'!H17","v":"2) Roasted Seard Steak Cubes"},"Lido Hot ","5 kg"]
[null,null,{"$f":"'Dinner Menu Matrix'!H18","v":"3) Roasted Catch of the Day Cubes"},"Lido Hot ","5 kg"]
[null,null,{"$f":"'Dinner Menu Matrix'!H19","v":"4) Garlic Shrimp"},"Lido Hot ","5 kg"]
["B5","PASTA SAUCES",{"$f":"'Dinner Menu Matrix'!H20","v":"Sauce: Mushroom Cream"},"Sauce 6","10 Ltr"]
[null,null,{"$f":"'Dinner Menu Matrix'!H21","v":"Sauce: Marinara"},"Lido Hot ","10 Ltr"]
[null,"PASTA STATION",{"$f":"'Dinner Menu Matrix'!H22","v":"1) Penne Pasta"},"Lido Hot ","10 Kg"]
[null,null,{"$f":"'Dinner Menu Matrix'!H23","v":"2) Fusili Pasta"},"Lido Hot ","10 Kg"]
["DESTINATIONS",null,{"$f":"'Dinner Menu Matrix'!H24","v":"MEDITERRANEAN"}]
["C1","CONDIMENTS",{"$f":"'Dinner Menu Matrix'!H25","v":"A1 / Mustard / Ketchup / Sriracha"}]
[null,null,{"$f":"'Dinner Menu Matrix'!H26","v":"Worchestershire / Soy Sauce / Malt V"}]
["C2","FISH / SEAFOOD               VEGETABLE ITEM",{"$f":"'Dinner Menu Matrix'!H27","v":"1) Andalous Seafood Paella w/ Shrimp"},"Lido Hot ","10 Kg ea"]
[null,null,{"$f":"'Dinner Menu Matrix'!H28","v":"Mussels, Calamari, Scallops, Veg"}]
["C3","PROTEIN ITEM         SIDE ITEM",{"$f":"'Dinner Menu Matrix'!H29","v":"1) Greek Style Lamb Chops"},"Lido Hot ","30 Kg"]
[null,null,{"$f":"'Dinner Menu Matrix'!H30","v":"2) Spicy Red Pepper Feta Sauce"},"Gm 14","3 Ltr"]
["C4","STARCH ITEM            SIDE ITEM",{"$f":"'Dinner Menu Matrix'!H31","v":"1) Vegetable Eggplant Moussaka"},"Soup 6","12 Ceramic"]
[null,null,{"$f":"'Dinner Menu Matrix'!H32","v":"2) Roasted Okra & Tomato w/ Garlic"},"Lido Hot ","20 Kg"]
["C5","NEUTRAL",{"$f":"'Dinner Menu Matrix'!H33","v":0}]
[null,null,{"$f":"'Dinner Menu Matrix'!H34","v":"GARDEN SOUP KETTLE"}]
["D1","SOUPS",{"$f":"'Dinner Menu Matrix'!H35","v":"1) Daily Soup Main Dining"},"Soup 5","25 Ltr"]
[null,null,{"$f":"'Dinner Menu Matrix'!H36","v":"2) Daily Soup Main Dining"},"Soup 5","25 Ltr"]
["D2","TOPPINGS",{"$f":"'Dinner Menu Matrix'!H37","v":"Scallions / Bacon Bits / Croutons "},"Bell Box","2 kg"]
[null,null,{"$f":"'Dinner Menu Matrix'!H38","v":"Parmesan / Red Onion / Tofu"},"Bell Box"]
[null,null,{"$f":"'Dinner Menu Matrix'!H39","v":"HARVEST SALADS"}]
["E1","Composed Salad",{"$f":"'Dinner Menu Matrix'!H40","v":"Asparagus, Bresaola, Mozz, Truffle"},"Gm 14","180 portion"]
[null,"Crostini",{"$f":"'Dinner Menu Matrix'!H41","v":"Goat Cheese & Beet Crostini"},"Fruit 6","200 Portion"]
[null,"Cold Appetizer",{"$f":"'Dinner Menu Matrix'!H42","v":"Port Figs & Brie Puffs"},"Bakery",120]
[null,"Cold Appetizer",{"$f":"'Dinner Menu Matrix'!H43","v":"Salt Roasted Cashews & Pickles"},"Gm 14","180 Portion"]
[null,null,{"$f":"'Dinner Menu Matrix'!H44","v":"COMPOSED SALADS"}]
["E2","Caesar Salad",{"$f":"'Dinner Menu Matrix'!H45","v":"Romaine Lettuce / Parmesan / Anchovies / Croutons "},"Gm 14","15 kg"]
[null,"Composed Salad",{"$f":"'Dinner Menu Matrix'!H46","v":"Green Bean Salad"},"Gm 5","200 pcs"]
[null,"Fruit Salad LG",{"$f":"'Dinner Menu Matrix'!H47","v":"Spicy Pear & Pineapple Salad"},"Fruit 5","25 kg"]
[null,"Roasted Veg",{"$f":"'Dinner Menu Matrix'!H48","v":"Zucchini-Red Pepper- Eggplant"},"Gm 14","10 kg"]
[null,"Cheese Garnish",{"$f":"'Dinner Menu Matrix'!H49","v":"Blue Cheese / Parmesan Cheese"},"Gm 14","2 kg"]
[null,"Bread Garnish",{"$f":"'Dinner Menu Matrix'!H50","v":"Garlic Bread / Parmesan Bread"},"Gm 14","10 Dozen"]
[null,null,{"$f":"'Dinner Menu Matrix'!H51","v":"FRESH MARKET GREENS"}]
["F1","Leaf Lettuce",{"$f":"'Dinner Menu Matrix'!H52","v":"Mixed Greens / Iceberg"},"Gm 6","40 Kg"]
[null,"Leaf Lettuce",{"$f":"'Dinner Menu Matrix'!H53","v":"Shredded Green & Red Cabbage"},"GM 5","40 Kg"]
[null,"Tomato Salad",{"$f":"'Dinner Menu Matrix'!H54","v":"Sliced Tomato & Red Onion"},"Gm 14","10 Kg"]
[null,"Potato Salad",{"$f":"'Dinner Menu Matrix'!H55","v":"American Potato Salad"},"Gm 14","50 Kg"]
[null,"Crudités",{"$f":"'Dinner Menu Matrix'!H56","v":"Cucumber/Radish/Peppers/Carrots"},"Veg Prep","5 Kg"]
[null,null,{"$f":"'Dinner Menu Matrix'!H57","v":"GOURMET SANDWICH SHOP"}]
["F2","Mini Slider Roll ",{"$f":"'Dinner Menu Matrix'!H58","v":"Waldorf Chicken Sandwich"},"Internal Café",200]
[null,"Open Face",{"$f":"'Dinner Menu Matrix'!H59","v":"Prosciutto, Gorgonzola, Figs"},"Gm 6",180]
[null,"Gazpacho",{"$f":"'Dinner Menu Matrix'!H60","v":"Tomato & Basil"},"Gm 14","20 ltr"]
[null,"Pickles",{"$f":"'Dinner Menu Matrix'!H61","v":"Red Onion-Cornichons-Giardiniera-Green Olives - Kalamata Olives"},"Gm 14","2 kg ea"]
[null,"Condiments",{"$f":"'Dinner Menu Matrix'!H62","v":"Dijon Mustard - Mayonnaise"}]
[null,null,{"$f":"'Dinner Menu Matrix'!H63","v":"CHARCUTERIE"}]
["G1","CHARCUTERIE DISPLAY",{"$f":"'Dinner Menu Matrix'!H64","v":" Chicken Liver Pate w/ Pickled Onions"},"Gm 14","3 kg"]
[null,null,{"$f":"'Dinner Menu Matrix'!H65","v":"Farmers Pate w/ Lettuce"},"Gm 14","2 kg"]
[null,null,{"$f":"'Dinner Menu Matrix'!H66","v":"Lobster-Seafood Terrine"},"Gm 14","3 kg"]
[null,null,{"$f":"'Dinner Menu Matrix'!H67","v":"Shaved Proscuitto "},"Gm 14","5 kg"]
[null,null,{"$f":"'Dinner Menu Matrix'!H68","v":"Sliced Turkey Breast"},"Gm 14","5 kg"]
[null,"CONDIMENTS",{"$f":"'Dinner Menu Matrix'!H69","v":"Cornichons / Pickles / Pearl Onions"},"Gm 14","2 kg ea "]
[null,null,{"$f":"'Dinner Menu Matrix'!H70","v":"Olives / Mustard / Giardiniera Veg"},"Gm 14","2 kg ea"]
[null,null,{"$f":"'Dinner Menu Matrix'!H71","v":"PRETZEL BAR"}]
["H1","PRETZELS",{"$f":"'Dinner Menu Matrix'!H72","v":"Plain Pretzel"}]
[null,null,{"$f":"'Dinner Menu Matrix'!H73","v":"Salt Crusted Pretzel"}]
[null,"SAUCE ",{"$f":"'Dinner Menu Matrix'!H74","v":"Beer & Cheese Sauce"}]
[null,"SAUCE ",{"$f":"'Dinner Menu Matrix'!H75","v":"Honey Mustard Sauce"}]
[null,"SAUCE ",{"$f":"'Dinner Menu Matrix'!H76","v":"Spicy Mustard Sauce"}]
[null,null,{"$f":"'Dinner Menu Matrix'!H77","v":"FRESH MARKET TOPPINGS"}]
["H2","TOPPINGS",{"$f":"'Dinner Menu Matrix'!H78","v":"Cherry Tomato Slice / Red Onion"},"Veg Prep","5 Kg ea"]
[null,null,{"$f":"'Dinner Menu Matrix'!H79","v":"Cucumber / Celery / Carrots / Radish"},"Veg Prep","5 Kg ea"]
[null,null,{"$f":"'Dinner Menu Matrix'!H80","v":"Mixed Pepper / Mushrooms / Corn"},"Veg Prep","5 Kg ea"]
[null,null,{"$f":"'Dinner Menu Matrix'!H81","v":"Garbanzo Bean / Black Bean"},"Veg Prep","5 Kg ea"]
[null,null,{"$f":"'Dinner Menu Matrix'!H82","v":"Green Olives / Sunflower Seeds"},"GM 14","5 Kg ea"]
[null,null,{"$f":"'Dinner Menu Matrix'!H83","v":"Walnuts / Croutons"},"GM 14","5 Kg ea"]
[null,"DRESSINGS",{"$f":"'Dinner Menu Matrix'!H84","v":"DRESSINGS"},"GM 14"]
[null,null,{"$f":"'Dinner Menu Matrix'!H85","v":" Ranch / Caesar / Balsamic / Italian"},"GM 14","1 Gal"]
[null,null,{"$f":"'Dinner Menu Matrix'!H86","v":" Low-fat Yogurt / Blue Cheese "},"GM 14","1 Gal"]
[null,null,{"$f":"'Dinner Menu Matrix'!H87","v":" 1000 Island / Shallot / Mustard"},"Gm 6","3 Ltr"]
[null,null,{"$f":"'Dinner Menu Matrix'!H88","v":"PASTRY COUNTER"}]
["H3","Fruit Tart",{"$f":"'Dinner Menu Matrix'!H89","v":"Fresh Fruit Tartlet"},"Pastry"]
[null,"Pastry",{"$f":"'Dinner Menu Matrix'!H90","v":"Chocolate Peanut Butter Cake"},"Pastry"]
[null,"Pastry",{"$f":"'Dinner Menu Matrix'!H91","v":"Blueberry Cake"},"Pastry"]
[null,"Pastry",{"$f":"'Dinner Menu Matrix'!H92","v":"Cherry Cake"},"Pastry"]
[null,"Pastry",{"$f":"'Dinner Menu Matrix'!H93","v":"Pecan Pie"},"Pastry"]
[null,null,{"$f":"'Dinner Menu Matrix'!H94","v":"FRESH & FAST - GF"}]
["H4","Gluten Free",{"$f":"'Dinner Menu Matrix'!H95","v":"Sweet Potato Pie"},"Pastry"]
[null,null,{"$f":"'Dinner Menu Matrix'!H96","v":0},"Pastry"]
[null,"Sugar Free",{"$f":"'Dinner Menu Matrix'!H97","v":"Coconut Cake"},"Pastry"]
["H5","H5 - HOT",{"$f":"'Dinner Menu Matrix'!H98","v":"Warm Cherry & Apple Crumble Bake"},"Pastry"]
[null,null,{"$f":"'Dinner Menu Matrix'!H99","v":"FRUIT STAND FAVORITES"}]
["I-1","Whole Fruits",{"$f":"'Dinner Menu Matrix'!H100","v":"Banana / Red Apple / Pears / Peach   Green Apple / Oranges"},"Gm 14","50 Kg"]
[null,"Sliced Fruits",{"$f":"'Dinner Menu Matrix'!H101","v":"Watermelon/Pineapple/  Cantaloupe  Honeydew Melon"},"Fruit 5","100 Kg"]
[null,null,{"$f":"'Dinner Menu Matrix'!H102","v":"OVEN BAKED BREADS"}]
["I-2","Current Rolls",{"$f":"'Dinner Menu Matrix'!H103","v":"1) Plain Crunchy Rolls"},"Bakery"]
[null,null,{"$f":"'Dinner Menu Matrix'!H104","v":"2) Plain Soft Rolls"},"Bakery"]
[null,null,{"$f":"'Dinner Menu Matrix'!H105","v":"3) Whole Wheat Raisin"},"Bakery"]
[null,"Loafs",{"$f":"'Dinner Menu Matrix'!H106","v":"4) Rye Loaf Sliced"},"Bakery"]
[null,null,{"$f":"'Dinner Menu Matrix'!H107","v":"5) Sun-Dried Tomato Focaccia"},"Bakery"]
[null,"Condiments",{"$f":"'Dinner Menu Matrix'!H108","v":"Butter & Preserves"},"Bakery"]
[null,null,{"$f":"'Dinner Menu Matrix'!H109","v":"FROMAGERIE"}]
["I-3","CHEESE",{"$f":"'Dinner Menu Matrix'!H110","v":" Cheddar / Provolone / Gorgonzola"},"Gm 14","5 kg ea"]
[null,"CHEESE",{"$f":"'Dinner Menu Matrix'!H111","v":" Havarti / Jack Cheese"},"Gm 14","5 kg ea"]
[null,"CONDIMENTS",{"$f":"'Dinner Menu Matrix'!H112","v":" Variety of Crackers"},"Gm 14"]
[null,"DRIED FRUITS",{"$f":"'Dinner Menu Matrix'!H113","v":"Apricots / Figs / Dates / Prunes"},"Gm 14","2 Kg ea"]
[null,"NUTS",{"$f":"'Dinner Menu Matrix'!H114","v":"Almond / Pistachio / Walnuts / Pecans"},"Gm 14","2 Kg ea"]
[null,null,{"$f":"'Dinner Menu Matrix'!H115","v":"FRESH & FAST STATION - 2"}]
["H4","PASTRY",{"$f":"'Dinner Menu Matrix'!H116","v":"Linzer Torte"}]
[null,null,{"$f":"'Dinner Menu Matrix'!H117","v":0}]
[null,"PASTRY ",{"$f":"'Dinner Menu Matrix'!H118","v":"Blueberry Cake"}]
[null,null,{"$f":"'Dinner Menu Matrix'!H119","v":0}]
["I-5","Dessert Hot",{"$f":"'Dinner Menu Matrix'!H120","v":"Warm Apricot / Custard Jalousie"}]
[]
[null,null,"Sous chef DK 5 / 6 check off sign                            Time"]
[]
[null,null,"Sous Chef recive check off sign                                Time"]
[]
[null,null,"Food testing ",null,"Ok","not OK"]

{"sheet":"Day 6 - Production","index":7,"n_rows":126,"n_cols":7,"rows_kept":126,"cut":false,"hidden":false,"merged":[[63,1,67,1],[68,1,69,1],[71,0,75,0],[71,1,72,1],[115,1,116,1],[117,1,118,1],[77,0,86,0],[77,1,82,1],[83,1,86,1],[88,0,92,0],[94,0,96,0],[94,1,95,1],[99,0,100,0],[102,0,107,0],[102,1,104,1],[105,1,106,1],[109,0,112,0],[39,0,42,0],[57,0,61,0],[44,0,49,0],[51,0,55,0],[115,0,118,0],[63,0,69,0],[30,0,31,0],[30,1,31,1],[34,0,35,0],[34,1,35,1],[36,0,37,0],[36,1,37,1],[24,0,25,0],[24,1,25,1],[26,0,27,0],[26,1,27,1],[28,0,29,0],[28,1,29,1],[13,0,14,0],[15,0,18,0],[15,1,18,1],[19,0,22,0],[19,1,20,1],[21,1,22,1],[3,0,4,0],[3,1,4,1],[5,0,6,0],[9,0,10,0],[11,0,12,0],[11,1,12,1]]}
[null,"STATION",{"$f":"'Dinner Menu Matrix'!I1","v":"DINNER / DAY 6"},"PROD LOCATION","QTY","CREW","SHOPPING LIST"]
[null,null,{"$f":"'Dinner Menu Matrix'!I2","v":"WESTERN DESTINATIONS"}]
["A1","GF-PASTA",{"$f":"'Dinner Menu Matrix'!I3","v":"1) Green Peas & Cherry Tomatoes"},"Lido hot ","10 Kg"]
["A2","DAILY HOT SANDWICH",{"$f":"'Dinner Menu Matrix'!I4","v":"1) Short-Rib Sliders w/ Pickled Onions"},"Sauce 6","200 Portion"]
[null,null,{"$f":"'Dinner Menu Matrix'!I5","v":"Gorogonzola & Bacon Jam"}," Gm 14","1 kg"]
["A3","TEX-MEX ITEM",{"$f":"'Dinner Menu Matrix'!I6","v":"1) Corn Quesadilla with Pulled Pork"},"Grill 6","300 pcs"]
[null,"SIDE ITEM",{"$f":"'Dinner Menu Matrix'!I7","v":"Cheese, Cilantro, Jerk Spice"}]
["A4","TOPPINGS",{"$f":"'Dinner Menu Matrix'!I8","v":"Salsa: Tomato / Corn / Black Bean  - Guacamole / Sour Cream / Cheddar"},"Gm 6","5 kg"]
[null,null,{"$f":"'Dinner Menu Matrix'!I9","v":"CARVING BAZAAR"}]
["B1","FISH/SEAFOOD",{"$f":"'Dinner Menu Matrix'!I10","v":"1) Miso-Baked Codfish & Shiitake"},"Lido hot ","300 Portion"]
[null,"VEGETABLES",{"$f":"'Dinner Menu Matrix'!I11","v":"2) Bokchoy & Bean Sprouts Chili"},"Lido hot ","25 kg"]
["B2","POTATO OR VEG",{"$f":"'Dinner Menu Matrix'!I12","v":"1) Classic Duchess Potatoes"},"Soup 6","400 pcs"]
[null,null,{"$f":"'Dinner Menu Matrix'!I13","v":"2) Creamed Spinach"},"Lido hot ","20 kg"]
["B3","CARVING",{"$f":"'Dinner Menu Matrix'!I14","v":"HERB ROASTED PRIME RIB"},"Grill 5","12 pcs"]
[null,"SAUCES",{"$f":"'Dinner Menu Matrix'!I15","v":"1) Rosemary Jus 2) Mustard Sauce   3) Horseradish  4) Mushroom"},"Sauce ","5 ltr"]
["B4","PASTA TOPPINGS",{"$f":"'Dinner Menu Matrix'!I16","v":"1) Grilled Chicken Breast Strips"},"Lido hot ","5 kg"]
[null,null,{"$f":"'Dinner Menu Matrix'!I17","v":"2) Roasted Seard Steak Cubes"},"Lido hot ","5 kg"]
[null,null,{"$f":"'Dinner Menu Matrix'!I18","v":"3) Roasted Catch of the Day Cubes"},"Lido hot ","5 kg"]
[null,null,{"$f":"'Dinner Menu Matrix'!I19","v":"4) Garlic Shrimp"},"Lido hot ","5 kg"]
["B5","PASTA SAUCES",{"$f":"'Dinner Menu Matrix'!I20","v":"Sauce: Alfredo"},"Sauce 6","10 Ltr"]
[null,null,{"$f":"'Dinner Menu Matrix'!I21","v":"Sauce: Marinara"},"Sauce 6","10 Ltr"]
[null,"PASTA STATION",{"$f":"'Dinner Menu Matrix'!I22","v":"1) Conghielie Pasta"},"Lido hot ","10 Kg"]
[null,null,{"$f":"'Dinner Menu Matrix'!I23","v":"2) Farfalle Pasta"},null,"10 Kg"]
["DESTINATIONS",null,{"$f":"'Dinner Menu Matrix'!I24","v":"SOUTHERN  "}]
["C1","CONDIMENTS",{"$f":"'Dinner Menu Matrix'!I25","v":"A1 / Mustard / Ketchup / Sriracha"}]
[null,null,{"$f":"'Dinner Menu Matrix'!I26","v":"Worchestershire / Soy Sauce / Malt V"}]
["C2","FISH / SEAFOOD               VEGETABLE ITEM",{"$f":"'Dinner Menu Matrix'!I27","v":"1) Shrimp-Calamari Steak-Tomato"},"Lido hot ","30 kg"]
[null,null,{"$f":"'Dinner Menu Matrix'!I28","v":"2) Roasted Corn Succotash"},"Lido hot ","30 kg"]
["C3","PROTEIN ITEM         SIDE ITEM",{"$f":"'Dinner Menu Matrix'!I29","v":"1) Southern Dry-rub BBQ Ribs"},"Grill 5 ","100 kg"]
[null,null,{"$f":"'Dinner Menu Matrix'!I30","v":"2) BBQ Sauce"},"Grill 5 ","3 ltr"]
["C4","STARCH ITEM            SIDE ITEM",{"$f":"'Dinner Menu Matrix'!I31","v":"1) Aged Cheddar Macaroni"},"Soup 6","15 kg"]
[null,null,{"$f":"'Dinner Menu Matrix'!I32","v":"2) Buttered Green Bean & Cabbage"},"Lido hot ","10 kg"]
["C5","NEUTRAL",{"$f":"'Dinner Menu Matrix'!I33","v":0}]
[null,null,{"$f":"'Dinner Menu Matrix'!I34","v":"GARDEN SOUP KETTLE"}]
["D1","SOUPS",{"$f":"'Dinner Menu Matrix'!I35","v":"1) Daily Soup Main Dining"},"Soup 5","25 Kg"]
[null,null,{"$f":"'Dinner Menu Matrix'!I36","v":"2) Daily Soup Main Dining"},"Soup 5","25 Kg"]
["D2","TOPPINGS",{"$f":"'Dinner Menu Matrix'!I37","v":"Scallions / Bacon Bits / Croutons "},"Bell Box","2 kg"]
[null,null,{"$f":"'Dinner Menu Matrix'!I38","v":"Parmesan / Red Onion / Tofu"},"Bell Box"]
[null,null,{"$f":"'Dinner Menu Matrix'!I39","v":"HARVEST SALADS"}]
["E1","Composed Salad",{"$f":"'Dinner Menu Matrix'!I40","v":"Shrimp & Avocado Salad"},"Gm 14","20 portion"]
[null,"Crostini",{"$f":"'Dinner Menu Matrix'!I41","v":"Caprese & Prosciutto, Balsamic Glaze"},"Fruit 6","200 portion"]
[null,"Cold Appetizer",{"$f":"'Dinner Menu Matrix'!I42","v":"Deviled Egg w/ Salmon Roe & Chives"},"Gm 6","300 pcs"]
[null,"Cold Appetizer",{"$f":"'Dinner Menu Matrix'!I43","v":"Watermelon, Gorgonzola, Port Syrup"},"Gm 14","180 Portions"]
[null,null,{"$f":"'Dinner Menu Matrix'!I44","v":"COMPOSED SALADS"}]
["E2","Caesar Salad",{"$f":"'Dinner Menu Matrix'!I45","v":"Romaine Lettuce / Parmesan / Anchovies / Croutons "},"Gm 14","15 kg"]
[null,"Composed Salad",{"$f":"'Dinner Menu Matrix'!I46","v":"Orzo Pasta & Chicken Salad"},"International Café","10 kg"]
[null,"Fruit Salad LG",{"$f":"'Dinner Menu Matrix'!I47","v":"Cajun Peach Salad"},"Fruit 6","25 kg"]
[null,"Roasted Veg",{"$f":"'Dinner Menu Matrix'!I48","v":"Roasted Mushroom & Tomato"},"Gm 14","10 kg"]
[null,"Cheese Garnish",{"$f":"'Dinner Menu Matrix'!I49","v":"Blue Cheese / Parmesan Cheese"},"Gm 14","2 kg"]
[null,"Bread Garnish",{"$f":"'Dinner Menu Matrix'!I50","v":"Cheddar Cheese Bread"},"Gm 14","10 loaf"]
[null,null,{"$f":"'Dinner Menu Matrix'!I51","v":"FRESH MARKET GREENS"}]
["F1","Leaf Lettuce",{"$f":"'Dinner Menu Matrix'!I52","v":"Mixed Greens / Spinach"},"Gm 6","40 kg"]
[null,"Leaf Lettuce",{"$f":"'Dinner Menu Matrix'!I53","v":"Shredded Green & Red Cabbage"},"Gm 5","40 kg"]
[null,"Tomato Salad",{"$f":"'Dinner Menu Matrix'!I54","v":"Sliced Tomato & Red Onion"},"Gm 14","10 kg"]
[null,"Potato Salad",{"$f":"'Dinner Menu Matrix'!I55","v":"Smoked Paprika Potato Salad"},"Gm 14","4 kg"]
[null,"Crudités",{"$f":"'Dinner Menu Matrix'!I56","v":"Carrots/Celery/Pepper/Radish"},"Gm 14","5 kg"]
[null,null,{"$f":"'Dinner Menu Matrix'!I57","v":"GOURMET SANDWICH SHOP"}]
["F2","Mini Slider Roll ",{"$f":"'Dinner Menu Matrix'!I58","v":"Salami, Tomato, Brie, Figs, Fennel"},"Gm 5","180 pcs"]
[null,"Open Face",{"$f":"'Dinner Menu Matrix'!I59","v":"Shaved Lamb, Tabbouleh Feta"},"Gm 14","200 pcs"]
[null,"Gazpacho",{"$f":"'Dinner Menu Matrix'!I60","v":"Carrot-Lime"},"Gm 14","20 ltr"]
[null,"Pickles",{"$f":"'Dinner Menu Matrix'!I61","v":"Red Onion-Cornichons-Giardiniera-Green Olives - Kalamata Olives"},"Gm 14","2 kg"]
[null,"Condiments",{"$f":"'Dinner Menu Matrix'!I62","v":"Dijon Mustard - Mayonnaise"}]
[null,null,{"$f":"'Dinner Menu Matrix'!I63","v":"CHARCUTERIE"}]
["G1","CHARCUTERIE DISPLAY",{"$f":"'Dinner Menu Matrix'!I64","v":" Chicken Liver Pate w/ Pickled Onions"},"Gm 14","3 kg"]
[null,null,{"$f":"'Dinner Menu Matrix'!I65","v":"Farmers Pate w/ Lettuce"},"Gm 14","2 kg"]
[null,null,{"$f":"'Dinner Menu Matrix'!I66","v":"Lobster-Seafood Terrine"},"Gm 14","3 kg"]
[null,null,{"$f":"'Dinner Menu Matrix'!I67","v":"Shaved Coppa "},"Gm 14","5 kg"]
[null,null,{"$f":"'Dinner Menu Matrix'!I68","v":"Sliced Ham"},"Gm 14","5 kg"]
[null,"CONDIMENTS",{"$f":"'Dinner Menu Matrix'!I69","v":"Cornichons / Pickles / Pearl Onions"},"Gm 14","2 kg ea"]
[null,null,{"$f":"'Dinner Menu Matrix'!I70","v":"Olives / Mustard / Giardiniera Veg"},"Gm 14","2 kg ea"]
[null,null,{"$f":"'Dinner Menu Matrix'!I71","v":"PRETZEL BAR"}]
["H1","PRETZELS",{"$f":"'Dinner Menu Matrix'!I72","v":"Plain Pretzel"}]
[null,null,{"$f":"'Dinner Menu Matrix'!I73","v":"Salt Crusted Pretzel"}]
[null,"SAUCE ",{"$f":"'Dinner Menu Matrix'!I74","v":"Beer & Cheese Sauce"}]
[null,"SAUCE ",{"$f":"'Dinner Menu Matrix'!I75","v":"Honey Mustard Sauce"}]
[null,"SAUCE ",{"$f":"'Dinner Menu Matrix'!I76","v":"Spicy Mustard Sauce"}]
[null,null,{"$f":"'Dinner Menu Matrix'!I77","v":"FRESH MARKET TOPPINGS"}]
["H2","TOPPINGS",{"$f":"'Dinner Menu Matrix'!I78","v":"Cherry Tomato Slice / Red Onion"},"Veg Prep","5 Kg ea"]
[null,null,{"$f":"'Dinner Menu Matrix'!I79","v":"Cucumber / Celery / Carrots / Radish"},"Veg Prep","5 Kg ea"]
[null,null,{"$f":"'Dinner Menu Matrix'!I80","v":"Mixed Pepper / Mushrooms / Corn"},"Veg Prep","5 Kg ea"]
[null,null,{"$f":"'Dinner Menu Matrix'!I81","v":"Garbanzo Bean / Black Bean"},"Veg Prep","5 Kg ea"]
[null,null,{"$f":"'Dinner Menu Matrix'!I82","v":"Green Olives / Sunflower Seeds"},"Gm 14","5 Kg ea"]
[null,null,{"$f":"'Dinner Menu Matrix'!I83","v":"Walnuts / Croutons"},"Gm 14","2 kg"]
[null,"DRESSINGS",{"$f":"'Dinner Menu Matrix'!I84","v":"DRESSINGS"},"Gm 14"]
[null,null,{"$f":"'Dinner Menu Matrix'!I85","v":" Ranch / Caesar / Balsamic / Italian"},"Gm 14","1 Gal"]
[null,null,{"$f":"'Dinner Menu Matrix'!I86","v":" Low-fat Yogurt / Blue Cheese "},"Gm 14","1 Gal"]
[null,null,{"$f":"'Dinner Menu Matrix'!I87","v":" 1000 Island / Shallot / Mustard"},"Gm 6","3 Ltr"]
[null,null,{"$f":"'Dinner Menu Matrix'!I88","v":"PASTRY COUNTER"}]
["H3","Fruit Tart",{"$f":"'Dinner Menu Matrix'!I89","v":"Fresh Fruit Tartlet"},"Pastry"]
[null,"Pastry",{"$f":"'Dinner Menu Matrix'!I90","v":"Grandma's Chocolate Cake"},"Pastry"]
[null,"Pastry",{"$f":"'Dinner Menu Matrix'!I91","v":"Red Velvet Cheese Cake"},"Pastry"]
[null,"Pastry",{"$f":"'Dinner Menu Matrix'!I92","v":"Apple Pie"},"Pastry"]
[null,"Pastry",{"$f":"'Dinner Menu Matrix'!I93","v":"Sweet Mud Pie"},"Pastry"]
[null,null,{"$f":"'Dinner Menu Matrix'!I94","v":"FRESH & FAST - GF"}]
["H4","Gluten Free",{"$f":"'Dinner Menu Matrix'!I95","v":"Chocolate Tapioca Pudding"},"Pastry"]
[null,null,{"$f":"'Dinner Menu Matrix'!I96","v":0},"Pastry"]
[null,"Sugar Free",{"$f":"'Dinner Menu Matrix'!I97","v":"Chocolate Cheese Cake"},"Pastry"]
["H5","H5 - HOT",{"$f":"'Dinner Menu Matrix'!I98","v":"Apple Marshmallow Bake"},"Pastry"]
[null,null,{"$f":"'Dinner Menu Matrix'!I99","v":"FRUIT STAND FAVORITES"}]
["I-1","Whole Fruits",{"$f":"'Dinner Menu Matrix'!I100","v":"Banana / Red Apple / Pears / Peach   Green Apple / Oranges"},"Gm 14","50 kg ea"]
[null,"Sliced Fruits",{"$f":"'Dinner Menu Matrix'!I101","v":"Watermelon/Pineapple/  Cantaloupe  Honeydew Melon"},"Fruit 5","100 kg ea"]
[null,null,{"$f":"'Dinner Menu Matrix'!I102","v":"OVEN BAKED BREADS"}]
["I-2","Current Rolls",{"$f":"'Dinner Menu Matrix'!I103","v":"1) Plain Crunchy Rolls"},"Bakery"]
[null,null,{"$f":"'Dinner Menu Matrix'!I104","v":"2) Plain Soft Rolls"},"Bakery"]
[null,null,{"$f":"'Dinner Menu Matrix'!I105","v":"3) Honey Wheat Rolls"},"Bakery"]
[null,"Loafs",{"$f":"'Dinner Menu Matrix'!I106","v":"4) Sourdough Loaf Sliced"},"Bakery"]
[null,null,{"$f":"'Dinner Menu Matrix'!I107","v":"5) Olive Focaccia"},"Bakery"]
[null,"Condiments",{"$f":"'Dinner Menu Matrix'!I108","v":"Butter & Preserves"},"Bakery"]
[null,null,{"$f":"'Dinner Menu Matrix'!I109","v":"FROMAGERIE"}]
["I-3","CHEESE",{"$f":"'Dinner Menu Matrix'!I110","v":" Cheddar / Provolone / Gorgonzola"},"Gm 14","5 kg ea"]
[null,"CHEESE",{"$f":"'Dinner Menu Matrix'!I111","v":" Havarti / Jack Cheese"},"Gm 14","5 kg ea"]
[null,"CONDIMENTS",{"$f":"'Dinner Menu Matrix'!I112","v":" Variety of Crackers"},"Gm 14"]
[null,"DRIED FRUITS",{"$f":"'Dinner Menu Matrix'!I113","v":"Apricots / Figs / Dates / Prunes"},"Gm 14","2 kg"]
[null,"NUTS",{"$f":"'Dinner Menu Matrix'!I114","v":"Almond / Pistachio / Walnuts / Pecans"},"Gm 14","2 kg"]
[null,null,{"$f":"'Dinner Menu Matrix'!I115","v":"FRESH & FAST STATION - 2"}]
["H4","PASTRY",{"$f":"'Dinner Menu Matrix'!I116","v":"Bee Sting"}]
[null,null,{"$f":"'Dinner Menu Matrix'!I117","v":0}]
[null,"PASTRY ",{"$f":"'Dinner Menu Matrix'!I118","v":"Red Velvet Cheese Cake"}]
[null,null,{"$f":"'Dinner Menu Matrix'!I119","v":0}]
["I-5","Dessert Hot",{"$f":"'Dinner Menu Matrix'!I120","v":"Banana Brioche Bread Butter Pudding"}]
[]
[null,null,"Sous chef DK 5 / 6 check off sign                            Time"]
[]
[null,null,"Sous Chef recive check off sign                                Time"]
[]
[null,null,"Food testing ",null,"Ok","not OK"]

{"sheet":"Day 7 - Production","index":8,"n_rows":126,"n_cols":7,"rows_kept":126,"cut":false,"hidden":false,"merged":[[63,1,67,1],[68,1,69,1],[71,0,75,0],[71,1,72,1],[115,1,116,1],[117,1,118,1],[77,0,86,0],[77,1,82,1],[83,1,86,1],[88,0,92,0],[94,0,96,0],[94,1,95,1],[99,0,100,0],[102,0,107,0],[102,1,104,1],[105,1,106,1],[109,0,112,0],[39,0,42,0],[57,0,61,0],[44,0,49,0],[51,0,55,0],[115,0,118,0],[63,0,69,0],[30,0,31,0],[30,1,31,1],[34,0,35,0],[34,1,35,1],[36,0,37,0],[36,1,37,1],[24,0,25,0],[24,1,25,1],[26,0,27,0],[26,1,27,1],[28,0,29,0],[28,1,29,1],[13,0,14,0],[15,0,18,0],[15,1,18,1],[19,0,22,0],[19,1,20,1],[21,1,22,1],[3,0,4,0],[3,1,4,1],[5,0,6,0],[9,0,10,0],[11,0,12,0],[11,1,12,1]]}
[null,"STATION",{"$f":"'Dinner Menu Matrix'!J1","v":"DINNER / DAY 7"},"PROD LOCATION","QTY","CREW","SHOPPING LIST"]
[null,null,{"$f":"'Dinner Menu Matrix'!J2","v":"WESTERN DESTINATIONS"}]
["A1","GF-PASTA",{"$f":"'Dinner Menu Matrix'!J3","v":"1) Mushrooms, Garlic, Spinach Fresh"},"Lido Hot ","10 kg"]
["A2","DAILY HOT SANDWICH",{"$f":"'Dinner Menu Matrix'!J4","v":"1) Corned Flake Chicken & Waffle"},"Grill 5","400 portion"]
[null,null,{"$f":"'Dinner Menu Matrix'!J5","v":"Sandwich w/ Sriracha Syrup"},"Gm 14"]
["A3","TEX-MEX ITEM",{"$f":"'Dinner Menu Matrix'!J6","v":"1) Roasted Vegetable Quesadilla"},"Soup 6","300 pcs"]
[null,"SIDE ITEM",{"$f":"'Dinner Menu Matrix'!J7","v":"w/ Mozzarella Cheese"},"Lid hot "]
["A4","TOPPINGS",{"$f":"'Dinner Menu Matrix'!J8","v":"Salsa: Tomato / Corn / Black Bean  - Guacamole / Sour Cream / Cheddar"},"Gm 14","5 kg"]
[null,null,{"$f":"'Dinner Menu Matrix'!J9","v":"CARVING BAZAAR"}]
["B1","FISH/SEAFOOD",{"$f":"'Dinner Menu Matrix'!J10","v":"1) Grilled Snapper, Sauce Nicoise"},"fish 5","300 pcs"]
[null,"VEGETABLES",{"$f":"'Dinner Menu Matrix'!J11","v":"2) Roasted Broccoli"},"Lido Hot ","30 kg"]
["B2","POTATO OR VEG",{"$f":"'Dinner Menu Matrix'!J12","v":"1) Rosemary Garlic Potatoes Bliss"},"Soup 6","60 kg"]
[null,null,{"$f":"'Dinner Menu Matrix'!J13","v":"2) Sour Cream Mashed Potato"},"Soup 6","80 kg"]
["B3","CARVING",{"$f":"'Dinner Menu Matrix'!J14","v":"FLANK STEAK STUFFED W/ ONION SPINACH & GORGONZOLA"},"Lido Hot ",20]
[null,"SAUCES",{"$f":"'Dinner Menu Matrix'!J15","v":"1) Chimichurri 2) Peppercorn             3) Creamy Mustard 4) Mushroom"},"Gm 14 Sauce 6","5 ltrs"]
["B4","PASTA TOPPINGS",{"$f":"'Dinner Menu Matrix'!J16","v":"1) Grilled Chicken Breast Strips"},"Lido Hot ","5 kg"]
[null,null,{"$f":"'Dinner Menu Matrix'!J17","v":"2) Roasted Seard Steak Cubes"},"Lido Hot ","5 kg"]
[null,null,{"$f":"'Dinner Menu Matrix'!J18","v":"3) Roasted Catch of the Day Cubes"},"Lido Hot ","5 kg"]
[null,null,{"$f":"'Dinner Menu Matrix'!J19","v":"4) Garlic Shrimp"},"Lido Hot ","5 kg"]
["B5","PASTA SAUCES",{"$f":"'Dinner Menu Matrix'!J20","v":"Sauce: Puttanesca"},"Sauce 6 ","10 ltrs"]
[null,null,{"$f":"'Dinner Menu Matrix'!J21","v":"Sauce: Marinara"},"Sauce 6 ","10 ltrs"]
[null,"PASTA STATION",{"$f":"'Dinner Menu Matrix'!J22","v":"1) Ragatoni Pasta"},"Lido Hot ","10 kg"]
[null,null,{"$f":"'Dinner Menu Matrix'!J23","v":"2) Fusili Pasta"},"Lido Hot ","10 kg"]
["DESTINATIONS",null,{"$f":"'Dinner Menu Matrix'!J24","v":"INDIAN "}]
["C1","CONDIMENTS",{"$f":"'Dinner Menu Matrix'!J25","v":"A1 / Mustard / Ketchup / Sriracha"}]
[null,null,{"$f":"'Dinner Menu Matrix'!J26","v":"Worchestershire / Soy Sauce / Malt V"}]
["C2","FISH / SEAFOOD               VEGETABLE ITEM",{"$f":"'Dinner Menu Matrix'!J27","v":"1) Punjabi Garam Masala Shrimp"},"Fish 6","60 kg"]
[null,null,{"$f":"'Dinner Menu Matrix'!J28","v":"2) Fried Papadam"},"Gm 14","10 dozen"]
["C3","PROTEIN ITEM         SIDE ITEM",{"$f":"'Dinner Menu Matrix'!J29","v":"1) Lamb Rogan Josh"},"Sauce 5","40 kg"]
[null,null,{"$f":"'Dinner Menu Matrix'!J30","v":"2) Chicken Briyani w/ Raisins/Cashew"},"Grill 6","30 kg"]
["C4","STARCH ITEM            SIDE ITEM",{"$f":"'Dinner Menu Matrix'!J31","v":"1) Steamed Basmati Rice"},"Lido Hot ","10 kg"]
[null,null,{"$f":"'Dinner Menu Matrix'!J32","v":"2) Curried Potato & Chickpeas"},"Soup 6","20 kg"]
["C5","NEUTRAL",{"$f":"'Dinner Menu Matrix'!J33","v":0}]
[null,null,{"$f":"'Dinner Menu Matrix'!J34","v":"GARDEN SOUP KETTLE"}]
["D1","SOUPS",{"$f":"'Dinner Menu Matrix'!J35","v":"1) Daily Soup Main Dining"},"Soup 5","25 Ltr"]
[null,null,{"$f":"'Dinner Menu Matrix'!J36","v":"2) Daily Soup Main Dining"},"Soup 5","25 ltr"]
["D2","TOPPINGS",{"$f":"'Dinner Menu Matrix'!J37","v":"Scallions / Bacon Bits / Croutons "},"Bell Box","2kg ea"]
[null,null,{"$f":"'Dinner Menu Matrix'!J38","v":"Parmesan / Red Onion / Tofu"},"Bell Box"]
[null,null,{"$f":"'Dinner Menu Matrix'!J39","v":"HARVEST SALADS"}]
["E1","Composed Salad",{"$f":"'Dinner Menu Matrix'!J40","v":"Salmon Salad Nicoise"},"Gm 14","10 kg"]
[null,"Crostini",{"$f":"'Dinner Menu Matrix'!J41","v":"Gorgonzola, Cranberries, Pistachio"},"Fruit 6","200 Portion"]
[null,"Cold Appetizer",{"$f":"'Dinner Menu Matrix'!J42","v":"Prosciutto, Arugula, Feta Cheese"},"Gm 6","200 Portion"]
[null,"Cold Appetizer",{"$f":"'Dinner Menu Matrix'!J43","v":"Cantaloupe & Cherry Cocktail"},"Gm 14"]
[null,null,{"$f":"'Dinner Menu Matrix'!J44","v":"COMPOSED SALADS"}]
["E2","Caesar Salad",{"$f":"'Dinner Menu Matrix'!J45","v":"Romaine Lettuce / Parmesan / Anchovies / Croutons "},"Gm 5","15 kg"]
[null,"Composed Salad",{"$f":"'Dinner Menu Matrix'!J46","v":"Greek Salad"},"International Café","12 kg"]
[null,"Fruit Salad LG",{"$f":"'Dinner Menu Matrix'!J47","v":"Mango-Sesame-Chili Fruit Salad"},"Fruit 5","25 kg"]
[null,"Roasted Veg",{"$f":"'Dinner Menu Matrix'!J48","v":"Roasted Carrots & Peppers"},"Gm 14","10 kg"]
[null,"Cheese Garnish",{"$f":"'Dinner Menu Matrix'!J49","v":"Blue Cheese / Parmesan Cheese"},"Gm 14","2 kg"]
[null,"Bread Garnish",{"$f":"'Dinner Menu Matrix'!J50","v":"Garlic Bread / Parmesan Bread"},"Gm 14","10 loaf"]
[null,null,{"$f":"'Dinner Menu Matrix'!J51","v":"FRESH MARKET GREENS"}]
["F1","Leaf Lettuce",{"$f":"'Dinner Menu Matrix'!J52","v":"Mixed Greens / Iceberg"},"Gm 6","40 kg"]
[null,"Leaf Lettuce",{"$f":"'Dinner Menu Matrix'!J53","v":"Shredded Green & Red Cabbage"},"Gm 5","40 kg"]
[null,"Tomato Salad",{"$f":"'Dinner Menu Matrix'!J54","v":"Sliced Tomato & Red Onion"},"Gm 14","10 kg"]
[null,"Potato Salad",{"$f":"'Dinner Menu Matrix'!J55","v":"Lemon Pepper Potato Salad"},"Gm 14","40 kg"]
[null,"Crudités",{"$f":"'Dinner Menu Matrix'!J56","v":"Cauliflower/Broccoli/Cherry Tomato"},"Gm 14","5 kg"]
[null,null,{"$f":"'Dinner Menu Matrix'!J57","v":"GOURMET SANDWICH SHOP"}]
["F2","Mini Slider Roll ",{"$f":"'Dinner Menu Matrix'!J58","v":"Mini Lobster Roll"},"Gm 5","200 Portion"]
[null,"Open Face",{"$f":"'Dinner Menu Matrix'!J59","v":"Shaved Filet Mignon w/ Truffle Aioli"},"Gm 14","200 Protion"]
[null,"Gazpacho",{"$f":"'Dinner Menu Matrix'!J60","v":"Red Pepper & Tomato"},"Gm 14","10 Kg"]
[null,"Pickles",{"$f":"'Dinner Menu Matrix'!J61","v":"Red Onion-Cornichons-Giardiniera-Green Olives - Kalamata Olives"},"Gm 14","2 Kg"]
[null,"Condiments",{"$f":"'Dinner Menu Matrix'!J62","v":"Dijon Mustard - Mayonnaise"}]
[null,null,{"$f":"'Dinner Menu Matrix'!J63","v":"CHARCUTERIE"}]
["G1","CHARCUTERIE DISPLAY",{"$f":"'Dinner Menu Matrix'!J64","v":" Chicken Liver Pate w/ Pickled Onions"},"Gm 14","3 kg "]
[null,null,{"$f":"'Dinner Menu Matrix'!J65","v":"Farmers Pate w/ Lettuce"},"Gm 14","2 kg"]
[null,null,{"$f":"'Dinner Menu Matrix'!J66","v":"Lobster-Seafood Terrine"},"Gm 14","3 kg ea"]
[null,null,{"$f":"'Dinner Menu Matrix'!J67","v":"Shaved Proscuitto "},"Gm 14","5 kg"]
[null,null,{"$f":"'Dinner Menu Matrix'!J68","v":"Sliced Turkey Breast"},"Gm 14","5 kg"]
[null,"CONDIMENTS",{"$f":"'Dinner Menu Matrix'!J69","v":"Cornichons / Pickles / Pearl Onions"},"Gm 14","2 kg ea "]
[null,null,{"$f":"'Dinner Menu Matrix'!J70","v":"Olives / Mustard / Giardiniera Veg"},"Gm 14","2 kg ea "]
[null,null,{"$f":"'Dinner Menu Matrix'!J71","v":"PRETZEL BAR"}]
["H1","PRETZELS",{"$f":"'Dinner Menu Matrix'!J72","v":"Plain Pretzel"}]
[null,null,{"$f":"'Dinner Menu Matrix'!J73","v":"Salt Crusted Pretzel"}]
[null,"SAUCE ",{"$f":"'Dinner Menu Matrix'!J74","v":"Beer & Cheese Sauce"}]
[null,"SAUCE ",{"$f":"'Dinner Menu Matrix'!J75","v":"Honey Mustard Sauce"}]
[null,"SAUCE ",{"$f":"'Dinner Menu Matrix'!J76","v":"Spicy Mustard Sauce"}]
[null,null,{"$f":"'Dinner Menu Matrix'!J77","v":"FRESH MARKET TOPPINGS"}]
["H2","TOPPINGS",{"$f":"'Dinner Menu Matrix'!J78","v":"Cherry Tomato Slice / Red Onion"},"Veg Prep","5 kg"]
[null,null,{"$f":"'Dinner Menu Matrix'!J79","v":"Cucumber / Celery / Carrots / Radish"},"Veg Prep","5 kg"]
[null,null,{"$f":"'Dinner Menu Matrix'!J80","v":"Mixed Pepper / Mushrooms / Corn"},"Veg Prep","5 kg"]
[null,null,{"$f":"'Dinner Menu Matrix'!J81","v":"Garbanzo Bean / Black Bean"},"Veg Prep","5 kg"]
[null,null,{"$f":"'Dinner Menu Matrix'!J82","v":"Green Olives / Sunflower Seeds"},"Gm 14","5 kg"]
[null,null,{"$f":"'Dinner Menu Matrix'!J83","v":"Walnuts / Croutons"},"Gm 14","2 kg"]
[null,"DRESSINGS",{"$f":"'Dinner Menu Matrix'!J84","v":"DRESSINGS"},"Gm 14"]
[null,null,{"$f":"'Dinner Menu Matrix'!J85","v":" Ranch / Caesar / Balsamic / Italian"},"Gm 14","1 Gal"]
[null,null,{"$f":"'Dinner Menu Matrix'!J86","v":" Low-fat Yogurt / Blue Cheese "},"Gm 14","1 Gal"]
[null,null,{"$f":"'Dinner Menu Matrix'!J87","v":" 1000 Island / Shallot / Mustard"},"Gm 6","3 Ltr"]
[null,null,{"$f":"'Dinner Menu Matrix'!J88","v":"PASTRY COUNTER"}]
["H3","Fruit Tart",{"$f":"'Dinner Menu Matrix'!J89","v":"Fresh Fruit Tartlet"},"Pastry"]
[null,"Pastry",{"$f":"'Dinner Menu Matrix'!J90","v":"Grandma's Chocolate Cake"},"Pastry"]
[null,"Pastry",{"$f":"'Dinner Menu Matrix'!J91","v":"Sacher Torte"},"Pastry"]
[null,"Pastry",{"$f":"'Dinner Menu Matrix'!J92","v":"Linzer Torte"},"Pastry"]
[null,"Pastry",{"$f":"'Dinner Menu Matrix'!J93","v":"Bee Sting"},"Pastry"]
[null,null,{"$f":"'Dinner Menu Matrix'!J94","v":"FRESH & FAST - GF"}]
["H4","Gluten Free",{"$f":"'Dinner Menu Matrix'!J95","v":"Dark Almond Chocolate Cake"},"Pastry"]
[null,null,{"$f":"'Dinner Menu Matrix'!J96","v":0},"Pastry"]
[null,"Sugar Free",{"$f":"'Dinner Menu Matrix'!J97","v":"Coffee Mousse Cake"},"Pastry"]
["H5","H5 - HOT",{"$f":"'Dinner Menu Matrix'!J98","v":"Roasted Pears & Raisins"},"Pastry"]
[null,null,{"$f":"'Dinner Menu Matrix'!J99","v":"FRUIT STAND FAVORITES"}]
["I-1","Whole Fruits",{"$f":"'Dinner Menu Matrix'!J100","v":"Banana / Red Apple / Pears / Peach   Green Apple / Oranges"},"Gm 14","50 kg ea"]
[null,"Sliced Fruits",{"$f":"'Dinner Menu Matrix'!J101","v":"Watermelon/Pineapple/  Cantaloupe  Honeydew Melon"},"Fruit 5","100 kg ea"]
[null,null,{"$f":"'Dinner Menu Matrix'!J102","v":"OVEN BAKED BREADS"}]
["I-2","Current Rolls",{"$f":"'Dinner Menu Matrix'!J103","v":"1) Plain Crunchy Rolls"},"Bakery"]
[null,null,{"$f":"'Dinner Menu Matrix'!J104","v":"2) Plain Soft Rolls"},"Bakery"]
[null,null,{"$f":"'Dinner Menu Matrix'!J105","v":"3) Six Cereal Rolls"},"Bakery"]
[null,"Loafs",{"$f":"'Dinner Menu Matrix'!J106","v":"4) Muesli Loaf Sliced"},"Bakery"]
[null,null,{"$f":"'Dinner Menu Matrix'!J107","v":"5) Rosemary Focaccia"},"Bakery"]
[null,"Condiments",{"$f":"'Dinner Menu Matrix'!J108","v":"Butter & Preserves"},"Bakery"]
[null,null,{"$f":"'Dinner Menu Matrix'!J109","v":"FROMAGERIE"}]
["I-3","CHEESE",{"$f":"'Dinner Menu Matrix'!J110","v":" Cheddar / Provolone / Gorgonzola"},"Gm 14","5 kg ea"]
[null,"CHEESE",{"$f":"'Dinner Menu Matrix'!J111","v":" Havarti / Jack Cheese"},"Gm 14","5 kg ea"]
[null,"CONDIMENTS",{"$f":"'Dinner Menu Matrix'!J112","v":" Variety of Crackers"},"Gm 14"]
[null,"DRIED FRUITS",{"$f":"'Dinner Menu Matrix'!J113","v":"Apricots / Figs / Dates / Prunes"},"Gm 14","2 kg ea"]
[null,"NUTS",{"$f":"'Dinner Menu Matrix'!J114","v":"Almond / Pistachio / Walnuts / Pecans"},"Gm 14","2 kg ea"]
[null,null,{"$f":"'Dinner Menu Matrix'!J115","v":"FRESH & FAST STATION - 2"}]
["H4","PASTRY",{"$f":"'Dinner Menu Matrix'!J116","v":"Apple Strudel "}]
[null,null,{"$f":"'Dinner Menu Matrix'!J117","v":0}]
[null,"PASTRY ",{"$f":"'Dinner Menu Matrix'!J118","v":"Sacher Torte"}]
[null,null,{"$f":"'Dinner Menu Matrix'!J119","v":0}]
["I-5","Dessert Hot",{"$f":"'Dinner Menu Matrix'!J120","v":"Apple Strudel "}]
[]
[null,null,"Sous chef DK 5 / 6 check off sign                            Time"]
[]
[null,null,"Sous Chef recive check off sign                                Time"]
[]
[null,null,"Food testing ",null,"Ok","not OK"]

{"sheet":"Day 8 - Production","index":9,"n_rows":126,"n_cols":7,"rows_kept":126,"cut":false,"hidden":false,"merged":[[109,0,112,0],[115,0,118,0],[115,1,116,1],[117,1,118,1],[94,0,96,0],[94,1,95,1],[99,0,100,0],[102,0,107,0],[102,1,104,1],[105,1,106,1],[71,0,75,0],[71,1,72,1],[77,0,86,0],[77,1,82,1],[83,1,86,1],[88,0,92,0],[39,0,42,0],[44,0,49,0],[51,0,55,0],[57,0,61,0],[63,0,69,0],[63,1,67,1],[68,1,69,1],[30,0,31,0],[30,1,31,1],[34,0,35,0],[34,1,35,1],[36,0,37,0],[36,1,37,1],[24,0,25,0],[24,1,25,1],[26,0,27,0],[26,1,27,1],[28,0,29,0],[28,1,29,1],[13,0,14,0],[15,0,18,0],[15,1,18,1],[19,0,22,0],[19,1,20,1],[21,1,22,1],[3,0,4,0],[3,1,4,1],[5,0,6,0],[9,0,10,0],[11,0,12,0],[11,1,12,1]]}
[null,"STATION","DINNER / DAY 8","PROD LOCATION","QTY","CREW","SHOPPING LIST"]
[null,null,{"$f":"'Dinner Menu Matrix'!D2","v":"WESTERN DESTINATIONS"}]
["A1","GF-PASTA",{"$f":"'Dinner Menu Matrix'!D3","v":"1) Green Peas & Cherry Tomatoes"},"Lido Hot ","10 kg"]
["A2","DAILY HOT SANDWICH","Waffle Ham and Cheese with bechamel gratine","Grill 6","Gm 14 300"]
[null,null,{"$f":"'Dinner Menu Matrix'!D5","v":"Sourdough Bread"},"Bakery",10]
["A3","TEX-MEX ITEM",{"$f":"'Dinner Menu Matrix'!D6","v":"1) Shaved Pastrami Soft Tacos"},"Lido Hot ","15 kg"]
[null,"SIDE ITEM",{"$f":"'Dinner Menu Matrix'!D7","v":"Jack Cheese, Pickles, 1000 Island "}]
["A4","TOPPINGS",{"$f":"'Dinner Menu Matrix'!D8","v":"Salsa: Tomato / Corn / Black Bean  - Guacamole / Sour Cream / Cheddar"},"GM 14","5 kg ea"]
[null,null,{"$f":"'Dinner Menu Matrix'!D9","v":"CARVING BAZAAR"}]
["B1","FISH/SEAFOOD",{"$f":"'Dinner Menu Matrix'!D10","v":"1) Seared Cod in Fennel Cream Sauce"},"Lido Hot ",300]
[null,"VEGETABLES",{"$f":"'Dinner Menu Matrix'!D11","v":"2) Oven Roasted Brussel Sprouts"},"Lido Hot ","30 kg"]
["B2","POTATO OR VEG",{"$f":"'Dinner Menu Matrix'!D12","v":"1) Olive-Garlic Crushed Potato"},"Soup 6","40 kg"]
[null,null,{"$f":"'Dinner Menu Matrix'!D13","v":"2) Cheddar Mashed Potatoe"},"Soup 6","50 kg"]
["B3","CARVING",{"$f":"'Dinner Menu Matrix'!D14","v":"MEDITERRANEAN CHICKEN ROULADE W/ OLIVES"},"Lido Hot / Grill 5","30 pcs",null,"Additional: 10 pieces chicken whole"]
[null,"SAUCES",{"$f":"'Dinner Menu Matrix'!D15","v":"1) Mushroom Sauce 2) Pesto Cream   3) Demi Glace 4) Garlic Oil"},"Sauce 6","5 ltr ea"]
["B4","PASTA TOPPINGS",{"$f":"'Dinner Menu Matrix'!D16","v":"1) Grilled Chicken Breast Strips"},"Lido Hot","5 kg ea"]
[null,null,{"$f":"'Dinner Menu Matrix'!D17","v":"2) Roasted Seard Steak Cubes"},"Lido Hot","5 kg ea"]
[null,null,{"$f":"'Dinner Menu Matrix'!D18","v":"3) Roasted Catch of the Day Cubes"},"Lido Hot","5 kg ea"]
[null,null,{"$f":"'Dinner Menu Matrix'!D19","v":"4) Garlic Shrimp"},"Lido Hot","5 kg ea"]
["B5","PASTA SAUCES",{"$f":"'Dinner Menu Matrix'!D20","v":"Sauce: Mushroom Cream"},"Sauce 6","10 ltr"]
[null,null,{"$f":"'Dinner Menu Matrix'!D21","v":"Sauce: Marinara"},"Sauce 6","10 ltr"]
[null,"PASTA STATION",{"$f":"'Dinner Menu Matrix'!D22","v":"1) Penne Pasta"},"Lido Hot","10 kg"]
[null,null,{"$f":"'Dinner Menu Matrix'!D23","v":"2) Fusili Pasta"},"Lido Hot","10 kg"]
["DESTINATIONS",null,{"$f":"'Dinner Menu Matrix'!D24","v":"FRENCH"}]
["C1","CONDIMENTS",{"$f":"'Dinner Menu Matrix'!D25","v":"A1 / Mustard / Ketchup / Sriracha"}]
[null,null,{"$f":"'Dinner Menu Matrix'!D26","v":"Worchestershire / Soy Sauce / Malt V"}]
["C2","FISH / SEAFOOD               VEGETABLE ITEM",{"$f":"'Dinner Menu Matrix'!D27","v":"1) Almond Crusted Perch. Vernonique Sauce (Green Grapes & Brown Butter)"},"Fish 5","250 pcs"]
[null,null,{"$f":"'Dinner Menu Matrix'!D28","v":"2) Creamy Potato Fondant"},"Soup 6","25 kg"]
["C3","PROTEIN ITEM         SIDE ITEM",{"$f":"'Dinner Menu Matrix'!D29","v":"1) Rustic Coq au Vin Chicken"},"Grill 6","45 kg"]
[null,null,{"$f":"'Dinner Menu Matrix'!D30","v":"2) Spinach & Tomato Gratinee"},"Lido Hot","30 kg"]
["C4","STARCH ITEM            SIDE ITEM",{"$f":"'Dinner Menu Matrix'!D31","v":"1) Rice Pilaf"},"Soup 5","10 kg"]
[null,null,{"$f":"'Dinner Menu Matrix'!D32","v":"2) Green Beans & Onions"},"Lido Hot","25 kg"]
["C5","NEUTRAL",{"$f":"'Dinner Menu Matrix'!D33","v":0}]
[null,null,{"$f":"'Dinner Menu Matrix'!D34","v":"GARDEN SOUP KETTLE"}]
["D1","SOUPS",{"$f":"'Dinner Menu Matrix'!D35","v":"1) Daily Soup Main Dining"},"Soup 5 ","25 ltr"]
[null,null,{"$f":"'Dinner Menu Matrix'!D36","v":"2) Daily Soup Main Dining"},"Soup 5 ","25 ltr"]
["D2","TOPPINGS",{"$f":"'Dinner Menu Matrix'!D37","v":"Scallions / Bacon Bits / Croutons "},"Soup 5 ","2 kg "]
[null,null,{"$f":"'Dinner Menu Matrix'!D38","v":"Parmesan / Red Onion / Tofu"},"B Box","2kg"]
[null,null,{"$f":"'Dinner Menu Matrix'!D39","v":"HARVEST SALADS"}]
["E1","Composed Salad",{"$f":"'Dinner Menu Matrix'!D40","v":"Asparagus, Bresaola, Mozz, Truffle"},"Gm 14","80 Portion"]
[null,"Crostini",{"$f":"'Dinner Menu Matrix'!D41","v":"Goat Cheese & Beet Crostini"},"Fruit 6",180]
[null,"Cold Appetizer",{"$f":"'Dinner Menu Matrix'!D42","v":"Port Figs & Brie Puffs"},"Bakery",180]
[null,"Cold Appetizer",{"$f":"'Dinner Menu Matrix'!D43","v":"Salt Roasted Cashews & Pickles"},"Gm 14","65 Portion"]
[null,null,{"$f":"'Dinner Menu Matrix'!D44","v":"COMPOSED SALADS"}]
["E2","Caesar Salad",{"$f":"'Dinner Menu Matrix'!D45","v":"Romaine Lettuce / Parmesan / Anchovies / Croutons "},"Gm 6","30 kg"]
[null,"Composed Salad",{"$f":"'Dinner Menu Matrix'!D46","v":"Green Bean Salad"},"GM 14","10 kg"]
[null,"Fruit Salad LG",{"$f":"'Dinner Menu Matrix'!D47","v":"Apricot & Cherry Fruit Salad"},"Fruit 5","20 kg"]
[null,"Roasted Veg",{"$f":"'Dinner Menu Matrix'!D48","v":"Roasted Asparagus-Tomato-Carrot"},"Gm 14","10 kg"]
[null,"Cheese Garnish",{"$f":"'Dinner Menu Matrix'!D49","v":"Blue Cheese / Parmesan Cheese"},"Gm 14","5 kg ea"]
[null,"Bread Garnish",{"$f":"'Dinner Menu Matrix'!D50","v":"Seasoned Bagel Chips"},"Gm 14","10 Dozen"]
[null,null,{"$f":"'Dinner Menu Matrix'!D51","v":"FRESH MARKET GREENS"}]
["F1","Leaf Lettuce",{"$f":"'Dinner Menu Matrix'!D52","v":"Mixed Greens / Iceberg"},"Gm 6","40 kg"]
[null,"Leaf Lettuce",{"$f":"'Dinner Menu Matrix'!D53","v":"Shredded Green & Red Cabbage"},"Gm 5","40 kg"]
[null,"Tomato Salad",{"$f":"'Dinner Menu Matrix'!D54","v":"Sliced Tomato & Red Onion"},"Gm 14","10 kg"]
[null,"Potato Salad",{"$f":"'Dinner Menu Matrix'!D55","v":"German Potato Salad"},"Gm 14","25 kg"]
[null,"Crudités",{"$f":"'Dinner Menu Matrix'!D56","v":"Cauliflower/Broccoli/Cherry Tomato"},"Gm 14","5 kg ea"]
[null,null,{"$f":"'Dinner Menu Matrix'!D57","v":"GOURMET SANDWICH SHOP"}]
["F2","Mini Slider Roll ",{"$f":"'Dinner Menu Matrix'!D58","v":"Waldorf Chicken Sandwich"},"International Café",180]
[null,"Open Face",{"$f":"'Dinner Menu Matrix'!D59","v":"Prosciutto, Gorgonzola, Figs"},"Gm 5",200]
[null,"Gazpacho",{"$f":"'Dinner Menu Matrix'!D60","v":"Tomato & Basil"},"Gm 14","15 ltr"]
[null,"Pickles",{"$f":"'Dinner Menu Matrix'!D61","v":"Red Onion-Cornichons-Giardiniera-Green Olives - Kalamata Olives"},"Gm 14","2 kg "]
[null,"Condiments",{"$f":"'Dinner Menu Matrix'!D62","v":"Dijon Mustard - Mayonnaise"}]
[null,null,{"$f":"'Dinner Menu Matrix'!D63","v":"CHARCUTERIE"}]
["G1","CHARCUTERIE DISPLAY",{"$f":"'Dinner Menu Matrix'!D64","v":" Chicken Liver Pate w/ Pickled Onions"},"Gm 14","3 kg"]
[null,null,{"$f":"'Dinner Menu Matrix'!D65","v":"Farmers Pate w/ Lettuce"},"Gm 14","2 kg "]
[null,null,{"$f":"'Dinner Menu Matrix'!D66","v":"Lobster-Seafood Terrine"},"Gm 14","3 kg"]
[null,null,{"$f":"'Dinner Menu Matrix'!D67","v":"Shaved Proscuitto "},"Gm 14","5 kg ea"]
[null,null,{"$f":"'Dinner Menu Matrix'!D68","v":"Sliced Turkey Breast"},"Gm 14","2 kg "]
[null,"CONDIMENTS",{"$f":"'Dinner Menu Matrix'!D69","v":"Cornichons / Pickles / Pearl Onions"},"Gm 14","2 kg "]
[null,null,{"$f":"'Dinner Menu Matrix'!D70","v":"Olives / Mustard / Giardiniera Veg"},"Gm 14","2 kg "]
[null,null,{"$f":"'Dinner Menu Matrix'!D71","v":"PRETZEL BAR"}]
["H1","PRETZELS",{"$f":"'Dinner Menu Matrix'!D72","v":"Plain Pretzel"}]
[null,null,{"$f":"'Dinner Menu Matrix'!D73","v":"Salt Crusted Pretzel"}]
[null,"SAUCE ",{"$f":"'Dinner Menu Matrix'!D74","v":"Beer & Cheese Sauce"}]
[null,"SAUCE ",{"$f":"'Dinner Menu Matrix'!D75","v":"Honey Mustard Sauce"}]
[null,"SAUCE ",{"$f":"'Dinner Menu Matrix'!D76","v":"Spicy Mustard Sauce"}]
[null,null,{"$f":"'Dinner Menu Matrix'!D77","v":"FRESH MARKET TOPPINGS"}]
["H2","TOPPINGS",{"$f":"'Dinner Menu Matrix'!D78","v":"Cherry Tomato Slice / Red Onion"},"Veg Prep","5 kg ea"]
[null,null,{"$f":"'Dinner Menu Matrix'!D79","v":"Cucumber / Celery / Carrots / Radish"},"Veg Prep","5 kg ea"]
[null,null,{"$f":"'Dinner Menu Matrix'!D80","v":"Mixed Pepper / Mushrooms / Corn"},"Veg Prep","5 kg ea"]
[null,null,{"$f":"'Dinner Menu Matrix'!D81","v":"Garbanzo Bean / Black Bean"},"Veg Prep","5 kg ea"]
[null,null,{"$f":"'Dinner Menu Matrix'!D82","v":"Green Olives / Sunflower Seeds"},"Gm 14","2 kg ea"]
[null,null,{"$f":"'Dinner Menu Matrix'!D83","v":"Walnuts / Croutons"},"Gm 14","2 kg ea"]
[null,"DRESSINGS",{"$f":"'Dinner Menu Matrix'!D84","v":"DRESSINGS"},"Gm 14","2 kg ea"]
[null,null,{"$f":"'Dinner Menu Matrix'!D85","v":" Ranch / Caesar / Balsamic / Italian"},"Gm 14","1 Gal"]
[null,null,{"$f":"'Dinner Menu Matrix'!D86","v":" Low-fat Yogurt / Blue Cheese "},"Gm 14","1 Gal"]
[null,null,{"$f":"'Dinner Menu Matrix'!D87","v":" 1000 Island / Shallot / Mustard"},"Gm 6","5 ltr ea"]
[null,null,{"$f":"'Dinner Menu Matrix'!D88","v":"PASTRY COUNTER"}]
["H3","Fruit Tart",{"$f":"'Dinner Menu Matrix'!D89","v":"Fresh Fruit Tartlet"},"Pastry"]
[null,"Pastry",{"$f":"'Dinner Menu Matrix'!D90","v":"Grandma's Chocolate Cake"},"Pastry"]
[null,"Pastry",{"$f":"'Dinner Menu Matrix'!D91","v":"Coconut Passionfruit Cake"},"Pastry"]
[null,"Pastry",{"$f":"'Dinner Menu Matrix'!D92","v":"Oreo Peanut Chocolate Pie"},"Pastry"]
[null,"Pastry",{"$f":"'Dinner Menu Matrix'!D93","v":"St Honore"},"Pastry"]
[null,null,{"$f":"'Dinner Menu Matrix'!D94","v":"FRESH & FAST - GF"}]
["H4","Gluten Free",{"$f":"'Dinner Menu Matrix'!D95","v":"Rhubarb Pie"},"Pastry"]
[null,null,{"$f":"'Dinner Menu Matrix'!D96","v":0},"Pastry"]
[null,"Sugar Free",{"$f":"'Dinner Menu Matrix'!D97","v":"Semolina Tart"},"Pastry"]
["H5","H5 - HOT",{"$f":"'Dinner Menu Matrix'!D98","v":"Caramel Chocolate Baked Banana"},"Pastry"]
[null,null,{"$f":"'Dinner Menu Matrix'!D99","v":"FRUIT STAND FAVORITES"}]
["I-1","Whole Fruits",{"$f":"'Dinner Menu Matrix'!D100","v":"Banana / Red Apple / Pears / Peach   Green Apple / Oranges"},"Gm 14"]
[null,"Sliced Fruits",{"$f":"'Dinner Menu Matrix'!D101","v":"Watermelon/Pineapple/  Cantaloupe  Honeydew Melon"},"Fruit 5"]
[null,null,{"$f":"'Dinner Menu Matrix'!D102","v":"OVEN BAKED BREADS"}]
["I-2","Current Rolls",{"$f":"'Dinner Menu Matrix'!D103","v":"1) Plain Crunchy Rolls"},"Bakery"]
[null,null,{"$f":"'Dinner Menu Matrix'!D104","v":"2) Plain Soft Rolls"},"Bakery"]
[null,null,{"$f":"'Dinner Menu Matrix'!D105","v":"3) Sunflower Seed Rolls"},"Bakery"]
[null,"Loafs",{"$f":"'Dinner Menu Matrix'!D106","v":"4) Honey Wheat Loaf Slice"},"Bakery"]
[null,null,{"$f":"'Dinner Menu Matrix'!D107","v":"5) Olive Focaccia"},"Bakery"]
[null,"Condiments",{"$f":"'Dinner Menu Matrix'!D108","v":"Butter & Preserves"},"Bakery"]
[null,null,{"$f":"'Dinner Menu Matrix'!D109","v":"FROMAGERIE"}]
["I-3","CHEESE",{"$f":"'Dinner Menu Matrix'!D110","v":" Cheddar / Provolone / Gorgonzola"},"Gm 14","5 kg ea"]
[null,"CHEESE",{"$f":"'Dinner Menu Matrix'!D111","v":" Havarti / Jack Cheese"},"Gm 14","5 kg ea"]
[null,"CONDIMENTS",{"$f":"'Dinner Menu Matrix'!D112","v":" Variety of Crackers"},"Gm 14"]
[null,"DRIED FRUITS",{"$f":"'Dinner Menu Matrix'!D113","v":"Apricots / Figs / Dates / Prunes"},"Gm 14","2 kg"]
[null,"NUTS",{"$f":"'Dinner Menu Matrix'!D114","v":"Almond / Pistachio / Walnuts / Pecans"},"Gm 14","2 kg"]
[null,null,{"$f":"'Dinner Menu Matrix'!D115","v":"FRESH & FAST STATION - 2"}]
["H4","PASTRY",{"$f":"'Dinner Menu Matrix'!D116","v":"Dark Chocolate Almond Cake"}]
[null,null,{"$f":"'Dinner Menu Matrix'!D117","v":0}]
[null,"PASTRY ",{"$f":"'Dinner Menu Matrix'!D118","v":"Coconut Passionfruit Cake"}]
[null,null,{"$f":"'Dinner Menu Matrix'!D119","v":0}]
["I-5","Dessert Hot",{"$f":"'Dinner Menu Matrix'!D120","v":"Warm Hazelnut Pudding/ Vanilla Sauc"}]
[]
[null,null,"Sous chef DK 5 / 6 check off sign                            Time"]
[]
[null,null,"Sous Chef recive check off sign                                Time"]
[]
[null,null,"Food testing ",null,"Ok","not OK"]

{"sheet":"Day 9 - Production","index":10,"n_rows":126,"n_cols":7,"rows_kept":126,"cut":false,"hidden":false,"merged":[[109,0,112,0],[115,0,118,0],[115,1,116,1],[117,1,118,1],[94,0,96,0],[94,1,95,1],[99,0,100,0],[102,0,107,0],[102,1,104,1],[105,1,106,1],[71,0,75,0],[71,1,72,1],[77,0,86,0],[77,1,82,1],[83,1,86,1],[88,0,92,0],[39,0,42,0],[44,0,49,0],[51,0,55,0],[57,0,61,0],[63,0,69,0],[63,1,67,1],[68,1,69,1],[30,0,31,0],[30,1,31,1],[34,0,35,0],[34,1,35,1],[36,0,37,0],[36,1,37,1],[24,0,25,0],[24,1,25,1],[26,0,27,0],[26,1,27,1],[28,0,29,0],[28,1,29,1],[13,0,14,0],[15,0,18,0],[15,1,18,1],[19,0,22,0],[19,1,20,1],[21,1,22,1],[3,0,4,0],[3,1,4,1],[5,0,6,0],[9,0,10,0],[11,0,12,0],[11,1,12,1]]}
[null,"STATION","DINNER / DAY 9","PROD LOCATION","QTY","CREW","SHOPPING LIST"]
[null,null,{"$f":"'Dinner Menu Matrix'!E2","v":"WESTERN DESTINATIONS"}]
["A1","GF-PASTA",{"$f":"'Dinner Menu Matrix'!E3","v":"1) Roasted Zucchini, peppers, eggplant, red onions"},"Lido Hot ","10 kg"]
["A2","DAILY HOT SANDWICH","Jasmine Rice with sweet and sour of julliene vegetables","Grill 6","10 whole chix"]
[null,null,{"$f":"'Dinner Menu Matrix'!E5","v":"Jack Cheese & Slaw"},"Gm 14"]
["A3","TEX-MEX ITEM",{"$f":"'Dinner Menu Matrix'!E6","v":"1) Potato-Sausage Quesadillia"},"Soup 6","250 person"]
[null,"SIDE ITEM",{"$f":"'Dinner Menu Matrix'!E7","v":"w/ Black Beans (from salsa)"}]
["A4","TOPPINGS",{"$f":"'Dinner Menu Matrix'!E8","v":"Salsa: Tomato / Corn / Black Bean  - Guacamole / Sour Cream / Cheddar"},"Gm 14","5 kg"]
[null,null,{"$f":"'Dinner Menu Matrix'!E9","v":"CARVING BAZAAR"}]
["B1","FISH/SEAFOOD",{"$f":"'Dinner Menu Matrix'!E10","v":"1) Grilled Salmon/Tomato, Capers"},"Fish 6","10 ltrs"]
[null,"VEGETABLES",{"$f":"'Dinner Menu Matrix'!E11","v":"2) Baked Leek Ragout"},"Lido Hot ","30 kg"]
["B2","POTATO OR VEG",{"$f":"'Dinner Menu Matrix'!E12","v":"1) Parmesan Crusted Potatoes"},"Lido Hot ","40 kg"]
[null,null,{"$f":"'Dinner Menu Matrix'!E13","v":"2) Steamed Green Beans"},"Lido Hot ","20 kg"]
["B3","CARVING",{"$f":"'Dinner Menu Matrix'!E14","v":"ROSEMARY CRUSTED SIRLOIN"},"Grill 5","10 pcs"]
[null,"SAUCES",{"$f":"'Dinner Menu Matrix'!E15","v":"1) Chimichurri 2) Peppercorn             3) Creamy Mustard 4) Mushroom"},"GM 14 /Sauce 6"]
["B4","PASTA TOPPINGS",{"$f":"'Dinner Menu Matrix'!E16","v":"1) Grilled Chicken Breast Strips"},"Lido Hot ","5 kg"]
[null,null,{"$f":"'Dinner Menu Matrix'!E17","v":"2) Roasted Seard Steak Cubes"},"Lido Hot ","5 kg"]
[null,null,{"$f":"'Dinner Menu Matrix'!E18","v":"3) Roasted Catch of the Day Cubes"},"Lido Hot ","5 kg"]
[null,null,{"$f":"'Dinner Menu Matrix'!E19","v":"4) Garlic Shrimp"},"Lido Hot ","5 kg"]
["B5","PASTA SAUCES",{"$f":"'Dinner Menu Matrix'!E20","v":"Sauce: Alfredo"},"Sauce 6","10 ltrs"]
[null,null,{"$f":"'Dinner Menu Matrix'!E21","v":"Sauce: Marinara"},"Sauce 6","10 ltrs"]
[null,"PASTA STATION",{"$f":"'Dinner Menu Matrix'!E22","v":"1) Conghielie Pasta"},"Lido Hot ","10 kg"]
[null,null,{"$f":"'Dinner Menu Matrix'!E23","v":"2) Farfalle Pasta"},"Lido Hot ","10 kg"]
["DESTINATIONS",null,{"$f":"'Dinner Menu Matrix'!E24","v":"ASIAN"}]
["C1","CONDIMENTS",{"$f":"'Dinner Menu Matrix'!E25","v":"A1 / Mustard / Ketchup / Sriracha"}]
[null,null,{"$f":"'Dinner Menu Matrix'!E26","v":"Worchestershire / Soy Sauce / Malt V"}]
["C2","FISH / SEAFOOD               VEGETABLE ITEM",{"$f":"'Dinner Menu Matrix'!E27","v":"1) Teriyake Glazed Codfish, Sticky"},"Lido Hot ","300 kg"]
[null,null,{"$f":"'Dinner Menu Matrix'!E28","v":"Coconut Rice, Bokchoy, Crispy Spiced Wontons"},"Lido Hot ","10 kg"]
["C3","PROTEIN ITEM         SIDE ITEM",{"$f":"'Dinner Menu Matrix'!E29","v":"1) Sweet Chili Pork Loin /Asian Slaw"},"Grill 6","8 pcs loin"]
[null,null,{"$f":"'Dinner Menu Matrix'!E30","v":"2) Pork Dumplings/ Black Bean Sauce"},"Lido Hot ","30 Dozen"]
["C4","STARCH ITEM            SIDE ITEM",{"$f":"'Dinner Menu Matrix'!E31","v":"1) Soy Ramen Noodle & Broccoli"},"Lido Hot ","20 kg "]
[null,null,{"$f":"'Dinner Menu Matrix'!E32","v":"2) Vegetable Goyza w/Peanut Sauce"},"Lido Hot ","30 Dozen"]
["C5","NEUTRAL",{"$f":"'Dinner Menu Matrix'!E33","v":0}]
[null,null,{"$f":"'Dinner Menu Matrix'!E34","v":"GARDEN SOUP KETTLE"}]
["D1","SOUPS",{"$f":"'Dinner Menu Matrix'!E35","v":"1) Daily Soup Main Dining"},"Soup 5","25 ltr"]
[null,null,{"$f":"'Dinner Menu Matrix'!E36","v":"2) Daily Soup Main Dining"},"Soup 5","25 ltr"]
["D2","TOPPINGS",{"$f":"'Dinner Menu Matrix'!E37","v":"Scallions / Bacon Bits / Croutons "},"Soup 5","2 kg ea"]
[null,null,{"$f":"'Dinner Menu Matrix'!E38","v":"Parmesan / Red Onion / Tofu"},"Bbox","2 kg ea"]
[null,null,{"$f":"'Dinner Menu Matrix'!E39","v":"HARVEST SALADS"}]
["E1","Composed Salad",{"$f":"'Dinner Menu Matrix'!E40","v":"Shrimp & Avocado Salad"},"Gm 14","200 Portion "]
[null,"Crostini",{"$f":"'Dinner Menu Matrix'!E41","v":"Caprese & Prosciutto, Balsamic Glaze"},"Fruit 6",180]
[null,"Cold Appetizer",{"$f":"'Dinner Menu Matrix'!E42","v":"Deviled Egg w/ Salmon Roe & Chives"},"Gm 6",300]
[null,"Cold Appetizer",{"$f":"'Dinner Menu Matrix'!E43","v":"Watermelon, Gorgonzola, Port Syrup"},"Gm 14","10 kg"]
[null,null,{"$f":"'Dinner Menu Matrix'!E44","v":"COMPOSED SALADS"}]
["E2","Caesar Salad",{"$f":"'Dinner Menu Matrix'!E45","v":"Romaine Lettuce / Parmesan / Anchovies / Croutons "},"Gm 5","30 kg"]
[null,"Composed Salad",{"$f":"'Dinner Menu Matrix'!E46","v":"Orzo Pasta & Wild Rice Salad"},"International Café","10 kg"]
[null,"Fruit Salad LG",{"$f":"'Dinner Menu Matrix'!E47","v":"Spicy Pear & Pineapple Salad"},"Fruit 5","25 kg"]
[null,"Roasted Veg",{"$f":"'Dinner Menu Matrix'!E48","v":"Roasted Mushroom & Tomato"},"Gm 14","10 kg"]
[null,"Cheese Garnish",{"$f":"'Dinner Menu Matrix'!E49","v":"Blue Cheese / Parmesan Cheese"},"Gm 14","2 kg"]
[null,"Bread Garnish",{"$f":"'Dinner Menu Matrix'!E50","v":"Garlic Bread / Parmesan Bread"},"GM 14","10 loaf"]
[null,null,{"$f":"'Dinner Menu Matrix'!E51","v":"FRESH MARKET GREENS"}]
["F1","Leaf Lettuce",{"$f":"'Dinner Menu Matrix'!E52","v":"Mixed Greens / Spinach"},"Gm 6","20 kg"]
[null,"Leaf Lettuce",{"$f":"'Dinner Menu Matrix'!E53","v":"Shredded Green & Red Cabbage"},"Gm 5","20 kg"]
[null,"Tomato Salad",{"$f":"'Dinner Menu Matrix'!E54","v":"Sliced Tomato & Red Onion"},"Gm 14","10 kg"]
[null,"Potato Salad",{"$f":"'Dinner Menu Matrix'!E55","v":"American Potato Salad"},"Gm 14","25 kg"]
[null,"Crudités",{"$f":"'Dinner Menu Matrix'!E56","v":"Cucumber/Radish/Peppers/Carrots"},"veg prep","5 kg"]
[null,null,{"$f":"'Dinner Menu Matrix'!E57","v":"GOURMET SANDWICH SHOP"}]
["F2","Mini Slider Roll ",{"$f":"'Dinner Menu Matrix'!E58","v":"Salami, Tomato, Brie, Figs, Fennel"},"Gm 5",180]
[null,"Open Face",{"$f":"'Dinner Menu Matrix'!E59","v":"Shaved Lamb, Tabbouleh Feta"},"Gm 14","200 pcs"]
[null,"Gazpacho",{"$f":"'Dinner Menu Matrix'!E60","v":"Carrot-Lime"},"Gm 14","20 ltr"]
[null,"Pickles",{"$f":"'Dinner Menu Matrix'!E61","v":"Red Onion-Cornichons-Giardiniera-Green Olives - Kalamata Olives"},"Gm 14","2 kg"]
[null,"Condiments",{"$f":"'Dinner Menu Matrix'!E62","v":"Dijon Mustard - Mayonnaise"}]
[null,null,{"$f":"'Dinner Menu Matrix'!E63","v":"CHARCUTERIE"}]
["G1","CHARCUTERIE DISPLAY",{"$f":"'Dinner Menu Matrix'!E64","v":" Chicken Liver Pate w/ Pickled Onions"},"Gm 14","3 kg"]
[null,null,{"$f":"'Dinner Menu Matrix'!E65","v":"Farmers Pate w/ Lettuce"},"Gm 14","2 kg"]
[null,null,{"$f":"'Dinner Menu Matrix'!E66","v":"Lobster-Seafood Terrine"},"Gm 14","3 kg"]
[null,null,{"$f":"'Dinner Menu Matrix'!E67","v":"Shaved Coppa "},"Gm 14","5 kg"]
[null,null,{"$f":"'Dinner Menu Matrix'!E68","v":"Sliced Ham"},"Gm 14","5 kg"]
[null,"CONDIMENTS",{"$f":"'Dinner Menu Matrix'!E69","v":"Cornichons / Pickles / Pearl Onions"},"Gm 14"," 2 kg"]
[null,null,{"$f":"'Dinner Menu Matrix'!E70","v":"Olives / Mustard / Giardiniera Veg"},null,"2 kg"]
[null,null,{"$f":"'Dinner Menu Matrix'!E71","v":"PRETZEL BAR"}]
["H1","PRETZELS",{"$f":"'Dinner Menu Matrix'!E72","v":"Plain Pretzel"}]
[null,null,{"$f":"'Dinner Menu Matrix'!E73","v":"Salt Crusted Pretzel"}]
[null,"SAUCE ",{"$f":"'Dinner Menu Matrix'!E74","v":"Beer & Cheese Sauce"}]
[null,"SAUCE ",{"$f":"'Dinner Menu Matrix'!E75","v":"Honey Mustard Sauce"}]
[null,"SAUCE ",{"$f":"'Dinner Menu Matrix'!E76","v":"Spicy Mustard Sauce"}]
[null,null,{"$f":"'Dinner Menu Matrix'!E77","v":"FRESH MARKET TOPPINGS"}]
["H2","TOPPINGS",{"$f":"'Dinner Menu Matrix'!E78","v":"Cherry Tomato Slice / Red Onion"},"Veg Prep","5 kg"]
[null,null,{"$f":"'Dinner Menu Matrix'!E79","v":"Cucumber / Celery / Carrots / Radish"},"Veg Prep","5 kg"]
[null,null,{"$f":"'Dinner Menu Matrix'!E80","v":"Mixed Pepper / Mushrooms / Corn"},"Veg Prep","5 kg"]
[null,null,{"$f":"'Dinner Menu Matrix'!E81","v":"Garbanzo Bean / Black Bean"},"Veg Prep","5 kg"]
[null,null,{"$f":"'Dinner Menu Matrix'!E82","v":"Green Olives / Sunflower Seeds"},"Gm 14","2 kg "]
[null,null,{"$f":"'Dinner Menu Matrix'!E83","v":"Walnuts / Croutons"},"Gm 14","2 kg "]
[null,"DRESSINGS",{"$f":"'Dinner Menu Matrix'!E84","v":"DRESSINGS"},"Gm 14"]
[null,null,{"$f":"'Dinner Menu Matrix'!E85","v":" Ranch / Caesar / Balsamic / Italian"},"Gm 14","1 Gal"]
[null,null,{"$f":"'Dinner Menu Matrix'!E86","v":" Low-fat Yogurt / Blue Cheese "},"Gm 14","1 Gal"]
[null,null,{"$f":"'Dinner Menu Matrix'!E87","v":" 1000 Island / Shallot / Mustard"},"Gm 6","3 Ltr"]
[null,null,{"$f":"'Dinner Menu Matrix'!E88","v":"PASTRY COUNTER"}]
["H3","Fruit Tart",{"$f":"'Dinner Menu Matrix'!E89","v":"Fresh Fruit Tartlet"},"Pastry"]
[null,"Pastry",{"$f":"'Dinner Menu Matrix'!E90","v":"Chocolate Coffee Almond Cake"},"Pastry"]
[null,"Pastry",{"$f":"'Dinner Menu Matrix'!E91","v":"Brazilian Cake"},"Pastry"]
[null,"Pastry",{"$f":"'Dinner Menu Matrix'!E92","v":"Crustry Strawberry Shortcake"},"Pastry"]
[null,"Pastry",{"$f":"'Dinner Menu Matrix'!E93","v":"Peanut Butter Chocolate Pie"},"Pastry"]
[null,null,{"$f":"'Dinner Menu Matrix'!E94","v":"FRESH & FAST - GF"}]
["H4","Gluten Free",{"$f":"'Dinner Menu Matrix'!E95","v":"Almond Torte"},"Pastry"]
[null,null,{"$f":"'Dinner Menu Matrix'!E96","v":0},"Pastry"]
[null,"Sugar Free",{"$f":"'Dinner Menu Matrix'!E97","v":"Milk Chocolate Mousse Cake"},"Pastry"]
["H5","H5 - HOT",{"$f":"'Dinner Menu Matrix'!E98","v":"Apricot Tapioca Pudding"},"Pastry"]
[null,null,{"$f":"'Dinner Menu Matrix'!E99","v":"FRUIT STAND FAVORITES"}]
["I-1","Whole Fruits",{"$f":"'Dinner Menu Matrix'!E100","v":"Banana / Red Apple / Pears / Peach   Green Apple / Oranges"},"Gm 14","50 kg ea"]
[null,"Sliced Fruits",{"$f":"'Dinner Menu Matrix'!E101","v":"Watermelon/Pineapple/  Cantaloupe  Honeydew Melon"},"Fruit 5","100 Kg"]
[null,null,{"$f":"'Dinner Menu Matrix'!E102","v":"OVEN BAKED BREADS"}]
["I-2","Current Rolls",{"$f":"'Dinner Menu Matrix'!E103","v":"1) Plain Crunchy Rolls"},"Bakery"]
[null,null,{"$f":"'Dinner Menu Matrix'!E104","v":"2) Plain Soft Rolls"},"Bakery"]
[null,null,{"$f":"'Dinner Menu Matrix'!E105","v":"3) Pumpernickel Rolls"},"Bakery"]
[null,"Loafs",{"$f":"'Dinner Menu Matrix'!E106","v":"4) Six Cereal Loaf Sliced"},"Bakery"]
[null,null,{"$f":"'Dinner Menu Matrix'!E107","v":"5) Olive Focaccia"},"Bakery"]
[null,"Condiments",{"$f":"'Dinner Menu Matrix'!E108","v":"Butter & Preserves"},"Bakery"]
[null,null,{"$f":"'Dinner Menu Matrix'!E109","v":"FROMAGERIE"}]
["I-3","CHEESE",{"$f":"'Dinner Menu Matrix'!E110","v":" Cheddar / Provolone / Gorgonzola"},"Gm 14","5 kg"]
[null,"CHEESE",{"$f":"'Dinner Menu Matrix'!E111","v":" Havarti / Jack Cheese"},"Gm 14","5 kg"]
[null,"CONDIMENTS",{"$f":"'Dinner Menu Matrix'!E112","v":" Variety of Crackers"},"Gm 14"]
[null,"DRIED FRUITS",{"$f":"'Dinner Menu Matrix'!E113","v":"Apricots / Figs / Dates / Prunes"},"Gm 14","2 kg "]
[null,"NUTS",{"$f":"'Dinner Menu Matrix'!E114","v":"Almond / Pistachio / Walnuts / Pecans"},"Gm 14","2 kg "]
[null,null,{"$f":"'Dinner Menu Matrix'!E115","v":"FRESH & FAST STATION - 2"}]
["H4","PASTRY",{"$f":"'Dinner Menu Matrix'!E116","v":"Black Forest Torte"}]
[null,null,{"$f":"'Dinner Menu Matrix'!E117","v":0}]
[null,"PASTRY ",{"$f":"'Dinner Menu Matrix'!E118","v":"Brazilian Cake"}]
[null,null,{"$f":"'Dinner Menu Matrix'!E119","v":0}]
["I-5","Dessert Hot",{"$f":"'Dinner Menu Matrix'!E120","v":"Butter Pecan Pudding Caramel Sauce"}]
[]
[null,null,"Sous chef DK 5 / 6 check off sign                            Time"]
[]
[null,null,"Sous Chef recive check off sign                                Time"]
[]
[null,null,"Food testing ",null,"Ok","not OK"]

{"sheet":"Day 10 - Production","index":11,"n_rows":126,"n_cols":7,"rows_kept":126,"cut":false,"hidden":false,"merged":[[109,0,112,0],[115,0,118,0],[115,1,116,1],[117,1,118,1],[94,0,96,0],[94,1,95,1],[99,0,100,0],[102,0,107,0],[102,1,104,1],[105,1,106,1],[71,0,75,0],[71,1,72,1],[77,0,86,0],[77,1,82,1],[83,1,86,1],[88,0,92,0],[39,0,42,0],[44,0,49,0],[51,0,55,0],[57,0,61,0],[63,0,69,0],[63,1,67,1],[68,1,69,1],[30,0,31,0],[30,1,31,1],[34,0,35,0],[34,1,35,1],[36,0,37,0],[36,1,37,1],[24,0,25,0],[24,1,25,1],[26,0,27,0],[26,1,27,1],[28,0,29,0],[28,1,29,1],[13,0,14,0],[15,0,18,0],[15,1,18,1],[19,0,22,0],[19,1,20,1],[21,1,22,1],[3,0,4,0],[3,1,4,1],[5,0,6,0],[9,0,10,0],[11,0,12,0],[11,1,12,1]]}
[null,"STATION","DINNER / DAY 10","PROD LOCATION","QTY","CREW","SHOPPING LIST"]
[null,null,{"$f":"'Dinner Menu Matrix'!F2","v":"WESTERN DESTINATIONS"}]
["A1","GF-PASTA",{"$f":"'Dinner Menu Matrix'!F3","v":"1) Mushrooms, Garlic, Spinach Fresh"},"Lido Hot ","10 kg"]
["A2","DAILY HOT SANDWICH","Polenta with sauteed mushroom","Gm 14","250 portion"]
[null,null,{"$f":"'Dinner Menu Matrix'!F5","v":"Wilted Spinach & Parmesan"}]
["A3","TEX-MEX ITEM",{"$f":"'Dinner Menu Matrix'!F6","v":"1) Steak & Cheese Enchilada w/"},"Soup 6","250 portion"]
[null,"SIDE ITEM",{"$f":"'Dinner Menu Matrix'!F7","v":"Yellow Corn Salsa"}]
["A4","TOPPINGS",{"$f":"'Dinner Menu Matrix'!F8","v":"Salsa: Tomato / Corn / Black Bean  - Guacamole / Sour Cream / Cheddar"},"Gm 14","5 kg"]
[null,null,{"$f":"'Dinner Menu Matrix'!F9","v":"CARVING BAZAAR"}]
["B1","FISH/SEAFOOD",{"$f":"'Dinner Menu Matrix'!F10","v":"1) Seared Snapper, Citrus Emulsion"},"Fish 5","300 pcs"]
[null,"VEGETABLES",{"$f":"'Dinner Menu Matrix'!F11","v":"2) Garlic Oil Broccoli"},"Lido Hot ","30 kg"]
["B2","POTATO OR VEG",{"$f":"'Dinner Menu Matrix'!F12","v":"1) Rosemary Crushed Red Bliss"},"Sooup 5","40 kg"]
[null,null,{"$f":"'Dinner Menu Matrix'!F13","v":"2) Truffle Mashed Potato"},"Soup 6","40 kg"]
["B3","CARVING",{"$f":"'Dinner Menu Matrix'!F14","v":"APRICOT&FIG STUFFED TURKEY BREAST WRAPPED IN BACON"},"Grill 5","15 pcs"]
[null,"SAUCES","Baked whole salmon with Hollandaise Sauce ","Lido Hot ","15 pcs"]
["B4","PASTA TOPPINGS",{"$f":"'Dinner Menu Matrix'!F16","v":"1) Grilled Chicken Breast Strips"},"Lido Hot ","5 kg"]
[null,null,{"$f":"'Dinner Menu Matrix'!F17","v":"2) Roasted Seard Steak Cubes"},"Lido Hot "," 5kg"]
[null,null,{"$f":"'Dinner Menu Matrix'!F18","v":"3) Roasted Catch of the Day Cubes"},"Lido Hot ","5 kg"]
[null,null,{"$f":"'Dinner Menu Matrix'!F19","v":"4) Garlic Shrimp"},"Lido Hot ","5 kg"]
["B5","PASTA SAUCES",{"$f":"'Dinner Menu Matrix'!F20","v":"Sauce: Puttanesca"},"Sauce 6","5 ltr"]
[null,null,{"$f":"'Dinner Menu Matrix'!F21","v":"Sauce: Marinara"},"Sauce6","5 ltr"]
[null,"PASTA STATION",{"$f":"'Dinner Menu Matrix'!F22","v":"1) Ragatoni Pasta"},"Lido Hot ","10 kg"]
[null,null,{"$f":"'Dinner Menu Matrix'!F23","v":"2) Fusili Pasta"},"Lido Hot ","10 kg"]
["DESTINATIONS",null,{"$f":"'Dinner Menu Matrix'!F24","v":"ITALIAN"}]
["C1","CONDIMENTS",{"$f":"'Dinner Menu Matrix'!F25","v":"A1 / Mustard / Ketchup / Sriracha"}]
[null,null,{"$f":"'Dinner Menu Matrix'!F26","v":"Worchestershire / Soy Sauce / Malt V"}]
["C2","FISH / SEAFOOD               VEGETABLE ITEM",{"$f":"'Dinner Menu Matrix'!F27","v":"1) Frito Misto Seafood & Veggies"},"Lido Hot ","15 kg"]
[null,null,{"$f":"'Dinner Menu Matrix'!F28","v":"2) Marinara Sauce & Saffron Aioli"},"Lido Hot ","10 ltr"]
["C3","PROTEIN ITEM         SIDE ITEM",{"$f":"'Dinner Menu Matrix'!F29","v":"1) Chicken Scallopini/ Pomodor Sauce"},"Butcher","300 kg"]
[null,null,{"$f":"'Dinner Menu Matrix'!F30","v":"2) Olives, Roasted Peppers, Artichoke"},"Lido Hot ","30 kg"]
["C4","STARCH ITEM            SIDE ITEM",{"$f":"'Dinner Menu Matrix'!F31","v":"1) Orzo Pasta, Spinach, Tomato"},"Lido Hot ","10 kg"]
[null,null,{"$f":"'Dinner Menu Matrix'!F32","v":0}]
["C5","NEUTRAL",{"$f":"'Dinner Menu Matrix'!F33","v":0}]
[null,null,{"$f":"'Dinner Menu Matrix'!F34","v":"GARDEN SOUP KETTLE"}]
["D1","SOUPS",{"$f":"'Dinner Menu Matrix'!F35","v":"1) Daily Soup Main Dining"},"Soup 5","25 kg"]
[null,null,{"$f":"'Dinner Menu Matrix'!F36","v":"2) Daily Soup Main Dining"},"Soup 5","25 kg"]
["D2","TOPPINGS",{"$f":"'Dinner Menu Matrix'!F37","v":"Scallions / Bacon Bits / Croutons "},"Bell box","2 kg"]
[null,null,{"$f":"'Dinner Menu Matrix'!F38","v":"Parmesan / Red Onion / Tofu"},"Bell box"]
[null,null,{"$f":"'Dinner Menu Matrix'!F39","v":"HARVEST SALADS"}]
["E1","Composed Salad",{"$f":"'Dinner Menu Matrix'!F40","v":"Salmon Salad Nicoise"},"Gm 14","10 kg"]
[null,"Crostini",{"$f":"'Dinner Menu Matrix'!F41","v":"Gorgonzola, Cranberries, Pistachio"},"Fruit 6",180]
[null,"Cold Appetizer",{"$f":"'Dinner Menu Matrix'!F42","v":"Prosciutto, Arugula, Feta Cheese"},"Gm 6",180]
[null,"Cold Appetizer",{"$f":"'Dinner Menu Matrix'!F43","v":"Cantaloupe & Cherry Cocktail"},"Gm 14","120 portion"]
[null,null,{"$f":"'Dinner Menu Matrix'!F44","v":"COMPOSED SALADS"}]
["E2","Caesar Salad",{"$f":"'Dinner Menu Matrix'!F45","v":"Romaine Lettuce / Parmesan / Anchovies / Croutons "},"Gm 14","15 kg"]
[null,"Composed Salad",{"$f":"'Dinner Menu Matrix'!F46","v":"Greek Salad"},"International Café","12 kg"]
[null,"Fruit Salad LG",{"$f":"'Dinner Menu Matrix'!F47","v":"Cajun Peach Salad"},"Fruit 5","25 kg"]
[null,"Roasted Veg",{"$f":"'Dinner Menu Matrix'!F48","v":"Roasted Carrots & Peppers"},"GM 14","10 kg"]
[null,"Cheese Garnish",{"$f":"'Dinner Menu Matrix'!F49","v":"Blue Cheese / Parmesan Cheese"},"Gm 14","2 kg"]
[null,"Bread Garnish",{"$f":"'Dinner Menu Matrix'!F50","v":"Cheddar Cheese Bread"},"Bakery","15 loaf"]
[null,null,{"$f":"'Dinner Menu Matrix'!F51","v":"FRESH MARKET GREENS"}]
["F1","Leaf Lettuce",{"$f":"'Dinner Menu Matrix'!F52","v":"Mixed Greens / Iceberg"},"GM 6","40 kg"]
[null,"Leaf Lettuce",{"$f":"'Dinner Menu Matrix'!F53","v":"Shredded Green & Red Cabbage"},"Gm 5","40 kg"]
[null,"Tomato Salad",{"$f":"'Dinner Menu Matrix'!F54","v":"Sliced Tomato & Red Onion"},"Gm 14","10 kg"]
[null,"Potato Salad",{"$f":"'Dinner Menu Matrix'!F55","v":"Lemon Pepper Potato Salad"},"Gm 14","50 kg"]
[null,"Crudités",{"$f":"'Dinner Menu Matrix'!F56","v":"Carrots/Celery/Pepper/Radish"},"Gm 14","10 kg"]
[null,null,{"$f":"'Dinner Menu Matrix'!F57","v":"GOURMET SANDWICH SHOP"}]
["F2","Mini Slider Roll ",{"$f":"'Dinner Menu Matrix'!F58","v":"Mini Lobster Roll"},"Gm 5",180]
[null,"Open Face",{"$f":"'Dinner Menu Matrix'!F59","v":"Shaved Filet Mignon w/ Truffle Aioli"},"Gm 14","200 portion"]
[null,"Gazpacho",{"$f":"'Dinner Menu Matrix'!F60","v":"Red Pepper & Tomato"},"Gm 14","10 kg"]
[null,"Pickles",{"$f":"'Dinner Menu Matrix'!F61","v":"Red Onion-Cornichons-Giardiniera-Green Olives - Kalamata Olives"},"Gm 14","2 kg"]
[null,"Condiments",{"$f":"'Dinner Menu Matrix'!F62","v":"Dijon Mustard - Mayonnaise"}]
[null,null,{"$f":"'Dinner Menu Matrix'!F63","v":"CHARCUTERIE"}]
["G1","CHARCUTERIE DISPLAY",{"$f":"'Dinner Menu Matrix'!F64","v":" Chicken Liver Pate w/ Pickled Onions"},"Gm 14","3 kg"]
[null,null,{"$f":"'Dinner Menu Matrix'!F65","v":"Farmers Pate w/ Lettuce"},"Gm 14","2 kg"]
[null,null,{"$f":"'Dinner Menu Matrix'!F66","v":"Lobster-Seafood Terrine"},"Gm 14","2 kg"]
[null,null,{"$f":"'Dinner Menu Matrix'!F67","v":"Shaved Proscuitto "},"Gm 14","5 kg"]
[null,null,{"$f":"'Dinner Menu Matrix'!F68","v":"Sliced Turkey Breast"},"Gm 14","5 kg"]
[null,"CONDIMENTS",{"$f":"'Dinner Menu Matrix'!F69","v":"Cornichons / Pickles / Pearl Onions"},"Gm 14","2 kg"]
[null,null,{"$f":"'Dinner Menu Matrix'!F70","v":"Olives / Mustard / Giardiniera Veg"},null,"2 kg"]
[null,null,{"$f":"'Dinner Menu Matrix'!F71","v":"PRETZEL BAR"}]
["H1","PRETZELS",{"$f":"'Dinner Menu Matrix'!F72","v":"Plain Pretzel"}]
[null,null,{"$f":"'Dinner Menu Matrix'!F73","v":"Salt Crusted Pretzel"}]
[null,"SAUCE ",{"$f":"'Dinner Menu Matrix'!F74","v":"Beer & Cheese Sauce"}]
[null,"SAUCE ",{"$f":"'Dinner Menu Matrix'!F75","v":"Honey Mustard Sauce"}]
[null,"SAUCE ",{"$f":"'Dinner Menu Matrix'!F76","v":"Spicy Mustard Sauce"}]
[null,null,{"$f":"'Dinner Menu Matrix'!F77","v":"FRESH MARKET TOPPINGS"}]
["H2","TOPPINGS",{"$f":"'Dinner Menu Matrix'!F78","v":"Cherry Tomato Slice / Red Onion"},"Veg Prep","5 kg ea"]
[null,null,{"$f":"'Dinner Menu Matrix'!F79","v":"Cucumber / Celery / Carrots / Radish"},"Veg Prep","5 kg ea"]
[null,null,{"$f":"'Dinner Menu Matrix'!F80","v":"Mixed Pepper / Mushrooms / Corn"},"Veg Prep","5 kg ea"]
[null,null,{"$f":"'Dinner Menu Matrix'!F81","v":"Garbanzo Bean / Black Bean"},"Veg Prep"]
[null,null,{"$f":"'Dinner Menu Matrix'!F82","v":"Green Olives / Sunflower Seeds"},"Gm 14","2 kg ea"]
[null,null,{"$f":"'Dinner Menu Matrix'!F83","v":"Walnuts / Croutons"},"GM 14","2 kg ea"]
[null,"DRESSINGS",{"$f":"'Dinner Menu Matrix'!F84","v":"DRESSINGS"},"GM 14"]
[null,null,{"$f":"'Dinner Menu Matrix'!F85","v":" Ranch / Caesar / Balsamic / Italian"},"GM 14","1 Gal "]
[null,null,{"$f":"'Dinner Menu Matrix'!F86","v":" Low-fat Yogurt / Blue Cheese "},"GM 14","1 Gal "]
[null,null,{"$f":"'Dinner Menu Matrix'!F87","v":" 1000 Island / Shallot / Mustard"},"Gm 6","3 ltr"]
[null,null,{"$f":"'Dinner Menu Matrix'!F88","v":"PASTRY COUNTER"}]
["H3","Fruit Tart",{"$f":"'Dinner Menu Matrix'!F89","v":"Fresh Fruit Tartlet"},"Pastry"]
[null,"Pastry",{"$f":"'Dinner Menu Matrix'!F90","v":"Grandma's Chocolate Cake"},"Pastry"]
[null,"Pastry",{"$f":"'Dinner Menu Matrix'!F91","v":"Tiramisu"},"Pastry"]
[null,"Pastry",{"$f":"'Dinner Menu Matrix'!F92","v":"Crostata Genovese"},"Pastry"]
[null,"Pastry",{"$f":"'Dinner Menu Matrix'!F93","v":"Mimosa Cake"},"Pastry"]
[null,null,{"$f":"'Dinner Menu Matrix'!F94","v":"FRESH & FAST - GF"}]
["H4","Gluten Free",{"$f":"'Dinner Menu Matrix'!F95","v":"Amaretto Profiteroles"},"Pastry"]
[null,null,{"$f":"'Dinner Menu Matrix'!F96","v":0},"Pastry"]
[null,"Sugar Free",{"$f":"'Dinner Menu Matrix'!F97","v":"Mango & Banana Shortcake"},"Pastry"]
["H5","H5 - HOT",{"$f":"'Dinner Menu Matrix'!F98","v":"GF-Bread Pudding / Vanilla Sauce"},"Pastry"]
[null,null,{"$f":"'Dinner Menu Matrix'!F99","v":"FRUIT STAND FAVORITES"}]
["I-1","Whole Fruits",{"$f":"'Dinner Menu Matrix'!F100","v":"Banana / Red Apple / Pears / Peach   Green Apple / Oranges"},"Gm 14","50 Kg"]
[null,"Sliced Fruits",{"$f":"'Dinner Menu Matrix'!F101","v":"Watermelon/Pineapple/  Cantaloupe  Honeydew Melon"},"Fruit 5","100 Kg"]
[null,null,{"$f":"'Dinner Menu Matrix'!F102","v":"OVEN BAKED BREADS"}]
["I-2","Current Rolls",{"$f":"'Dinner Menu Matrix'!F103","v":"1) Plain Crunchy Rolls"},"Bakery"]
[null,null,{"$f":"'Dinner Menu Matrix'!F104","v":"2) Plain Soft Rolls"},"Bakery"]
[null,null,{"$f":"'Dinner Menu Matrix'!F105","v":"3) Sesame Seed Rolls"},"Bakery"]
[null,"Loafs",{"$f":"'Dinner Menu Matrix'!F106","v":"4) Focaccia Loaf Sliced"},"Bakery"]
[null,null,{"$f":"'Dinner Menu Matrix'!F107","v":"5) Tomato Focaccia"},"Bakery"]
[null,"Condiments",{"$f":"'Dinner Menu Matrix'!F108","v":"Butter & Preserves"},"Bakery"]
[null,null,{"$f":"'Dinner Menu Matrix'!F109","v":"FROMAGERIE"}]
["I-3","CHEESE",{"$f":"'Dinner Menu Matrix'!F110","v":" Cheddar / Provolone / Gorgonzola"},"Gm 14","5 Kg"]
[null,"CHEESE",{"$f":"'Dinner Menu Matrix'!F111","v":" Havarti / Jack Cheese"},"Gm 14","5 Kg"]
[null,"CONDIMENTS",{"$f":"'Dinner Menu Matrix'!F112","v":" Variety of Crackers"},"Gm 14"]
[null,"DRIED FRUITS",{"$f":"'Dinner Menu Matrix'!F113","v":"Apricots / Figs / Dates / Prunes"},"Gm 14","2 Kg"]
[null,"NUTS",{"$f":"'Dinner Menu Matrix'!F114","v":"Almond / Pistachio / Walnuts / Pecans"},"Gm 14","2 Kg"]
[null,null,{"$f":"'Dinner Menu Matrix'!F115","v":"FRESH & FAST STATION - 2"}]
["H4","PASTRY",{"$f":"'Dinner Menu Matrix'!F116","v":"Coffee Mousse Cake "}]
[null,null,{"$f":"'Dinner Menu Matrix'!F117","v":0}]
[null,"PASTRY ",{"$f":"'Dinner Menu Matrix'!F118","v":"Tiramisu"}]
[null,null,{"$f":"'Dinner Menu Matrix'!F119","v":0}]
["I-5","Dessert Hot",{"$f":"'Dinner Menu Matrix'!F120","v":"Frutti Di Bosco"}]
[]
[null,null,"Sous chef DK 5 / 6 check off sign                            Time"]
[]
[null,null,"Sous Chef recive check off sign                                Time"]
[]
[null,null,"Food testing ",null,"Ok","not OK"]

{"sheet":"Day 11 - Production","index":12,"n_rows":126,"n_cols":7,"rows_kept":126,"cut":false,"hidden":false,"merged":[[109,0,112,0],[115,0,118,0],[115,1,116,1],[117,1,118,1],[94,0,96,0],[94,1,95,1],[99,0,100,0],[102,0,107,0],[102,1,104,1],[105,1,106,1],[71,0,75,0],[71,1,72,1],[77,0,86,0],[77,1,82,1],[83,1,86,1],[88,0,92,0],[39,0,42,0],[44,0,49,0],[51,0,55,0],[57,0,61,0],[63,0,69,0],[63,1,67,1],[68,1,69,1],[30,0,31,0],[30,1,31,1],[34,0,35,0],[34,1,35,1],[36,0,37,0],[36,1,37,1],[24,0,25,0],[24,1,25,1],[26,0,27,0],[26,1,27,1],[28,0,29,0],[28,1,29,1],[13,0,14,0],[15,0,18,0],[15,1,18,1],[19,0,22,0],[19,1,20,1],[21,1,22,1],[3,0,4,0],[3,1,4,1],[5,0,6,0],[9,0,10,0],[11,0,12,0],[11,1,12,1]]}
[null,"STATION","DINNER / DAY 11","PROD LOCATION","QTY","CREW","SHOPPING LIST"]
[null,null,{"$f":"'Dinner Menu Matrix'!G2","v":"WESTERN DESTINATIONS"}]
["A1","GF-PASTA",{"$f":"'Dinner Menu Matrix'!G3","v":"1) Roasted Peppers & Basil"},"Lido Hot","10 Kg"]
["A2","DAILY HOT SANDWICH",{"$f":"'Dinner Menu Matrix'!G4","v":"1) Pulled Pork Sliders w/ Gouda"},"Gm 6","300 Portions"]
[null,null,{"$f":"'Dinner Menu Matrix'!G5","v":"BBQ Sauce, Pickles & Red Onion-P"}]
["A3","TEX-MEX ITEM",{"$f":"'Dinner Menu Matrix'!G6","v":"1) Cilantro Chicken Nacho's w/ tomato salsa and cilantro"},"Lido Hot","25 Kg"]
[null,"SIDE ITEM",{"$f":"'Dinner Menu Matrix'!G7","v":0}]
["A4","TOPPINGS",{"$f":"'Dinner Menu Matrix'!G8","v":"Salsa: Tomato / Corn / Black Bean  - Guacamole / Sour Cream / Cheddar"},"Gm 14","5 Kg"]
[null,null,{"$f":"'Dinner Menu Matrix'!G9","v":"CARVING BAZAAR"}]
["B1","FISH/SEAFOOD",{"$f":"'Dinner Menu Matrix'!G10","v":"1) Orange-Pepper Tuna / Orange Em"},"Fish 5","300 pcs"]
[null,"VEGETABLES",{"$f":"'Dinner Menu Matrix'!G11","v":"2) Roasted Green Zucchini & Peppers"},"Lido Hot","25 Kg"]
["B2","POTATO OR VEG",{"$f":"'Dinner Menu Matrix'!G12","v":"1) Bacon Cheddar Stuff Potatoes"},"Lido Hot","350 Portion"]
[null,null,{"$f":"'Dinner Menu Matrix'!G13","v":"2) Roasted Sweet Potato Mash"},"Soup 6","80 Kg"]
["B3","CARVING",{"$f":"'Dinner Menu Matrix'!G14","v":"MUSTARD CRUSTED LAMB LEG"},"Grill 6","15 Pcs"]
[null,"SAUCES",{"$f":"'Dinner Menu Matrix'!G15","v":"1) Mustard Sauce 2) Mint Jelly           3) Lamb Jus  4) Mango Chutney"},"Sauce 6","5 ltr"]
["B4","PASTA TOPPINGS",{"$f":"'Dinner Menu Matrix'!G16","v":"1) Grilled Chicken Breast Strips"},"Lido Hot","5 kg"]
[null,null,{"$f":"'Dinner Menu Matrix'!G17","v":"2) Roasted Seard Steak Cubes"},"Lido Hot","5 kg"]
[null,null,{"$f":"'Dinner Menu Matrix'!G18","v":"3) Roasted Catch of the Day Cubes"},"Lido Hot","5 kg"]
[null,null,{"$f":"'Dinner Menu Matrix'!G19","v":"4) Garlic Shrimp"},"Lido Hot","5 kg"]
["B5","PASTA SAUCES",{"$f":"'Dinner Menu Matrix'!G20","v":"Sauce: Bolognese "},"Sauce 6","10 Ltrs"]
[null,null,{"$f":"'Dinner Menu Matrix'!G21","v":"Sauce: Marinara"},"Sauce 6","10 Ltrs"]
[null,"PASTA STATION",{"$f":"'Dinner Menu Matrix'!G22","v":"1) Farfalle Pasta"},"Lido Hot","10 Kg"]
[null,null,{"$f":"'Dinner Menu Matrix'!G23","v":"2) Fettucini Pasta"},"Lido Hot","10 Kg"]
["DESTINATIONS",null,{"$f":"'Dinner Menu Matrix'!G24","v":"ASIAN"}]
["C1","CONDIMENTS",{"$f":"'Dinner Menu Matrix'!G25","v":"A1 / Mustard / Ketchup / Sriracha"}]
[null,null,{"$f":"'Dinner Menu Matrix'!G26","v":"Worchestershire / Soy Sauce / Malt V"}]
["C2","FISH / SEAFOOD               VEGETABLE ITEM",{"$f":"'Dinner Menu Matrix'!G27","v":"1) Charred Salmon Harami w/ Ponzu"},"Lido Hot","300 Portions"]
[null,null,{"$f":"'Dinner Menu Matrix'!G28","v":"Pickled Ginger Slaw, Fried Noodles"}]
["C3","PROTEIN ITEM         SIDE ITEM",{"$f":"'Dinner Menu Matrix'!G29","v":"1) Thai Chicken Skewers w/ Peanut"},"Butcher","400 Portions"]
[null,null,{"$f":"'Dinner Menu Matrix'!G30","v":"2) Peanut Sauce"},"Lido Hot","5 Ltrs"]
["C4","STARCH ITEM            SIDE ITEM",{"$f":"'Dinner Menu Matrix'!G31","v":"1) Vegetable Fried Rice"},"Soup 6","10 Kg"]
[null,null,{"$f":"'Dinner Menu Matrix'!G32","v":"2) Soy-ginger Bokchoy"},"Lido Hot","25 Kg"]
["C5","NEUTRAL",{"$f":"'Dinner Menu Matrix'!G33","v":0}]
[null,null,{"$f":"'Dinner Menu Matrix'!G34","v":"GARDEN SOUP KETTLE"}]
["D1","SOUPS",{"$f":"'Dinner Menu Matrix'!G35","v":"1) Daily Soup Main Dining"},"Soup 5 ","25 ltr"]
[null,null,{"$f":"'Dinner Menu Matrix'!G36","v":"2) Daily Soup Main Dining"},"Soup 5 ","25 ltr"]
["D2","TOPPINGS",{"$f":"'Dinner Menu Matrix'!G37","v":"Scallions / Bacon Bits / Croutons "},"Bell Box","2 Kg"]
[null,null,{"$f":"'Dinner Menu Matrix'!G38","v":"Parmesan / Red Onion / Tofu"},"Bell Box"]
[null,null,{"$f":"'Dinner Menu Matrix'!G39","v":"HARVEST SALADS"}]
["E1","Composed Salad",{"$f":"'Dinner Menu Matrix'!G40","v":"Hot Smoked Salmon & Cucumber"},"Gm 14","Salmon 2 pcs 10 kg salad"]
[null,"Crostini",{"$f":"'Dinner Menu Matrix'!G41","v":"Port Figs & Brie Crostini"},"Fruit 6","180 pcs"]
[null,"Cold Appetizer",{"$f":"'Dinner Menu Matrix'!G42","v":"Deviled Egg w/ Salmon Roe & Chives"},"Gm 6","300 Kg"]
[null,"Cold Appetizer",{"$f":"'Dinner Menu Matrix'!G43","v":"Mixed Olives & Almonds"},"Gm 14","350 Portion"]
[null,null,{"$f":"'Dinner Menu Matrix'!G44","v":"COMPOSED SALADS"}]
["E2","Caesar Salad",{"$f":"'Dinner Menu Matrix'!G45","v":"Romaine Lettuce / Parmesan / Anchovies / Croutons "},"Gm 5","15 kg"]
[null,"Composed Salad",{"$f":"'Dinner Menu Matrix'!G46","v":" Waldorf Chicken Salad"},"Int'l Café","200 pcs"]
[null,"Fruit Salad LG",{"$f":"'Dinner Menu Matrix'!G47","v":"Apricot & Cherry Fruit Salad"},"Fruit 5","25 kg"]
[null,"Roasted Veg",{"$f":"'Dinner Menu Matrix'!G48","v":"Mixed Vegetables"},"Gm 14","10 kg"]
[null,"Cheese Garnish",{"$f":"'Dinner Menu Matrix'!G49","v":"Blue Cheese / Parmesan Cheese"},"Gm 14","2 kg"]
[null,"Bread Garnish",{"$f":"'Dinner Menu Matrix'!G50","v":"Seasoned Bagel Chips"},"Gm 14","10 Dozen"]
[null,null,{"$f":"'Dinner Menu Matrix'!G51","v":"FRESH MARKET GREENS"}]
["F1","Leaf Lettuce",{"$f":"'Dinner Menu Matrix'!G52","v":"Mixed Greens / Spinach"},"Gm 6","40 Kg"]
[null,"Leaf Lettuce",{"$f":"'Dinner Menu Matrix'!G53","v":"Shredded Green & Red Cabbage"},"Gm 5","40 Kg"]
[null,"Tomato Salad",{"$f":"'Dinner Menu Matrix'!G54","v":"Sliced Tomato & Red Onion"},"Gm 14","10 kg"]
[null,"Potato Salad",{"$f":"'Dinner Menu Matrix'!G55","v":"German Potato Salad"},"Gm 14","50 Kg"]
[null,"Crudités",{"$f":"'Dinner Menu Matrix'!G56","v":"Cauliflower/Broccoli/Cherry Tomato"},"Veg Prep","5 Kg"]
[null,null,{"$f":"'Dinner Menu Matrix'!G57","v":"GOURMET SANDWICH SHOP"}]
["F2","Mini Slider Roll ",{"$f":"'Dinner Menu Matrix'!G58","v":"Roast Beef, Horseradish, Pickles"},"Gm 14","280 Pcs"]
[null,"Open Face",{"$f":"'Dinner Menu Matrix'!G59","v":"Smoked Salmon,Cucumber,Dill "},"Gm 5",180]
[null,"Gazpacho",{"$f":"'Dinner Menu Matrix'!G60","v":"Cucumber Herb"},"Gm 14","10 Ltrs"]
[null,"Pickles",{"$f":"'Dinner Menu Matrix'!G61","v":"Red Onion-Cornichons-Giardiniera-Green Olives - Kalamata Olives"},"Gm 14","2 Kg ea"]
[null,"Condiments",{"$f":"'Dinner Menu Matrix'!G62","v":"Dijon Mustard - Mayonnaise"}]
[null,null,{"$f":"'Dinner Menu Matrix'!G63","v":"CHARCUTERIE"}]
["G1","CHARCUTERIE DISPLAY",{"$f":"'Dinner Menu Matrix'!G64","v":" Chicken Liver Pate w/ Pickled Onions"},"Gm 14","3 Kg"]
[null,null,{"$f":"'Dinner Menu Matrix'!G65","v":"Farmers Pate w/ Lettuce"},"Gm 14","2 kg"]
[null,null,{"$f":"'Dinner Menu Matrix'!G66","v":"Lobster-Seafood Terrine"},"Gm 14","3 kg"]
[null,null,{"$f":"'Dinner Menu Matrix'!G67","v":"Shaved Coppa "},"Gm 14","5 kg"]
[null,null,{"$f":"'Dinner Menu Matrix'!G68","v":"Sliced Ham"},"Gm 14","5 kg"]
[null,"CONDIMENTS",{"$f":"'Dinner Menu Matrix'!G69","v":"Cornichons / Pickles / Pearl Onions"},"Gm 14","2kg"]
[null,null,{"$f":"'Dinner Menu Matrix'!G70","v":"Olives / Mustard / Giardiniera Veg"},"Gm 14","2kg"]
[null,null,{"$f":"'Dinner Menu Matrix'!G71","v":"PRETZEL BAR"}]
["H1","PRETZELS",{"$f":"'Dinner Menu Matrix'!G72","v":"Plain Pretzel"}]
[null,null,{"$f":"'Dinner Menu Matrix'!G73","v":"Salt Crusted Pretzel"}]
[null,"SAUCE ",{"$f":"'Dinner Menu Matrix'!G74","v":"Beer & Cheese Sauce"}]
[null,"SAUCE ",{"$f":"'Dinner Menu Matrix'!G75","v":"Honey Mustard Sauce"}]
[null,"SAUCE ",{"$f":"'Dinner Menu Matrix'!G76","v":"Spicy Mustard Sauce"}]
[null,null,{"$f":"'Dinner Menu Matrix'!G77","v":"FRESH MARKET TOPPINGS"}]
["H2","TOPPINGS",{"$f":"'Dinner Menu Matrix'!G78","v":"Cherry Tomato Slice / Red Onion"},"Veg Prep","5 kg "]
[null,null,{"$f":"'Dinner Menu Matrix'!G79","v":"Cucumber / Celery / Carrots / Radish"},"Veg Prep","5 kg "]
[null,null,{"$f":"'Dinner Menu Matrix'!G80","v":"Mixed Pepper / Mushrooms / Corn"},"Veg Prep","5 kg "]
[null,null,{"$f":"'Dinner Menu Matrix'!G81","v":"Garbanzo Bean / Black Bean"},"Veg Prep"]
[null,null,{"$f":"'Dinner Menu Matrix'!G82","v":"Green Olives / Sunflower Seeds"}," GM 14"]
[null,null,{"$f":"'Dinner Menu Matrix'!G83","v":"Walnuts / Croutons"}," GM 14"]
[null,"DRESSINGS",{"$f":"'Dinner Menu Matrix'!G84","v":"DRESSINGS"}," GM 14"]
[null,null,{"$f":"'Dinner Menu Matrix'!G85","v":" Ranch / Caesar / Balsamic / Italian"}," GM 14","1 Gal"]
[null,null,{"$f":"'Dinner Menu Matrix'!G86","v":" Low-fat Yogurt / Blue Cheese "}," GM 14","1 Gal"]
[null,null,{"$f":"'Dinner Menu Matrix'!G87","v":" 1000 Island / Shallot / Mustard"},"GM 6","3 Ltr"]
[null,null,{"$f":"'Dinner Menu Matrix'!G88","v":"PASTRY COUNTER"}]
["H3","Fruit Tart",{"$f":"'Dinner Menu Matrix'!G89","v":"Fresh Fruit Tartlet"},"Pastry"]
[null,"Pastry",{"$f":"'Dinner Menu Matrix'!G90","v":"Chocolate Coffee Almond Cake"},"Pastry"]
[null,"Pastry",{"$f":"'Dinner Menu Matrix'!G91","v":"Apricot Pistachio Mousse Cake"},"Pastry"]
[null,"Pastry",{"$f":"'Dinner Menu Matrix'!G92","v":"Roasted Nut Pie"},"Pastry"]
[null,"Pastry",{"$f":"'Dinner Menu Matrix'!G93","v":"Almond Season Fruit Macaroon"},"Pastry"]
[null,null,{"$f":"'Dinner Menu Matrix'!G94","v":"FRESH & FAST - GF"}]
["H4","Gluten Free",{"$f":"'Dinner Menu Matrix'!G95","v":"Pavlova"},"Pastry"]
[null,null,{"$f":"'Dinner Menu Matrix'!G96","v":0},"Pastry"]
[null,"Sugar Free",{"$f":"'Dinner Menu Matrix'!G97","v":"Cherry Trifle"},"Pastry"]
["H5","H5 - HOT",{"$f":"'Dinner Menu Matrix'!G98","v":"GF-Baked S'mores w/ GF Cookies"},"Pastry"]
[null,null,{"$f":"'Dinner Menu Matrix'!G99","v":"FRUIT STAND FAVORITES"}]
["I-1","Whole Fruits",{"$f":"'Dinner Menu Matrix'!G100","v":"Banana / Red Apple / Pears / Peach   Green Apple / Oranges"},"Gm 14","50 Kg ea"]
[null,"Sliced Fruits",{"$f":"'Dinner Menu Matrix'!G101","v":"Watermelon/Pineapple/  Cantaloupe  Honeydew Melon"},"Fruit 5","100 Kg ea"]
[null,null,{"$f":"'Dinner Menu Matrix'!G102","v":"OVEN BAKED BREADS"}]
["I-2","Current Rolls",{"$f":"'Dinner Menu Matrix'!G103","v":"1) Plain Crunchy Rolls"},"Bakery"]
[null,null,{"$f":"'Dinner Menu Matrix'!G104","v":"2) Plain Soft Rolls"},"Bakery"]
[null,null,{"$f":"'Dinner Menu Matrix'!G105","v":"3) Olive Rolls"},"Bakery"]
[null,"Loafs",{"$f":"'Dinner Menu Matrix'!G106","v":"4) Pumpernickel Loaf Sliced"},"Bakery"]
[null,null,{"$f":"'Dinner Menu Matrix'!G107","v":"5) Parmesan Focaccia"},"Bakery"]
[null,"Condiments",{"$f":"'Dinner Menu Matrix'!G108","v":"Butter & Preserves"},"Bakery"]
[null,null,{"$f":"'Dinner Menu Matrix'!G109","v":"FROMAGERIE"}]
["I-3","CHEESE",{"$f":"'Dinner Menu Matrix'!G110","v":" Cheddar / Provolone / Gorgonzola"},"Gm 14","5 Kg"]
[null,"CHEESE",{"$f":"'Dinner Menu Matrix'!G111","v":" Havarti / Jack Cheese"},"Gm 14","5 Kg"]
[null,"CONDIMENTS",{"$f":"'Dinner Menu Matrix'!G112","v":" Variety of Crackers"},"Gm 14"]
[null,"DRIED FRUITS",{"$f":"'Dinner Menu Matrix'!G113","v":"Apricots / Figs / Dates / Prunes"},"Gm 14","2 Kg ea"]
[null,"NUTS",{"$f":"'Dinner Menu Matrix'!G114","v":"Almond / Pistachio / Walnuts / Pecans"},"Gm 14","2 Kg ea"]
[null,null,{"$f":"'Dinner Menu Matrix'!G115","v":"FRESH & FAST STATION - 2"}]
["H4","PASTRY",{"$f":"'Dinner Menu Matrix'!G116","v":"Sacher Torte"}]
[null,null,{"$f":"'Dinner Menu Matrix'!G117","v":0}]
[null,"PASTRY ",{"$f":"'Dinner Menu Matrix'!G118","v":"Apricot Pistachio Mousse Cake"}]
[null,null,{"$f":"'Dinner Menu Matrix'!G119","v":0}]
["I-5","Dessert Hot",{"$f":"'Dinner Menu Matrix'!G120","v":"Sticky Toffee Pudding"}]
[]
[null,null,"Sous chef DK 5 / 6 check off sign                            Time"]
[]
[null,null,"Sous Chef recive check off sign                                Time"]
[]
[null,null,"Food testing ",null,"Ok","not OK"]

{"sheet":"Day 12 - Production","index":13,"n_rows":126,"n_cols":7,"rows_kept":126,"cut":false,"hidden":false,"merged":[[109,0,112,0],[115,0,118,0],[115,1,116,1],[117,1,118,1],[94,0,96,0],[94,1,95,1],[99,0,100,0],[102,0,107,0],[102,1,104,1],[105,1,106,1],[71,0,75,0],[71,1,72,1],[77,0,86,0],[77,1,82,1],[83,1,86,1],[88,0,92,0],[39,0,42,0],[44,0,49,0],[51,0,55,0],[57,0,61,0],[63,0,69,0],[63,1,67,1],[68,1,69,1],[30,0,31,0],[30,1,31,1],[34,0,35,0],[34,1,35,1],[36,0,37,0],[36,1,37,1],[24,0,25,0],[24,1,25,1],[26,0,27,0],[26,1,27,1],[28,0,29,0],[28,1,29,1],[13,0,14,0],[15,0,18,0],[15,1,18,1],[19,0,22,0],[19,1,20,1],[21,1,22,1],[3,0,4,0],[3,1,4,1],[5,0,6,0],[9,0,10,0],[11,0,12,0],[11,1,12,1]]}
[null,"STATION","DINNER/ DAY 12","PROD LOCATION","QTY","CREW","SHOPPING LIST"]
[null,null,{"$f":"'Dinner Menu Matrix'!H2","v":"WESTERN DESTINATIONS"}]
["A1","GF-PASTA",{"$f":"'Dinner Menu Matrix'!H3","v":"1) Wild Mushroom Cream Sauce"},"Lido Hot ","10 Kg"]
["A2","DAILY HOT SANDWICH",{"$f":"'Dinner Menu Matrix'!H4","v":"1) Beef Sliders w/ Mushrooms, "},"Gm 14","300 Portion"]
[null,null,{"$f":"'Dinner Menu Matrix'!H5","v":"Caramelized Onions & Cheddar"}]
["A3","TEX-MEX ITEM",{"$f":"'Dinner Menu Matrix'!H6","v":"1) Fried Codfish Tacos / Asian Slaw"},"Lido Hot ","20 Kg"]
[null,"SIDE ITEM",{"$f":"'Dinner Menu Matrix'!H7","v":"Chipotle Aioli"},"Gm 14","3 ltrs"]
["A4","TOPPINGS",{"$f":"'Dinner Menu Matrix'!H8","v":"Salsa: Tomato / Corn / Black Bean  - Guacamole / Sour Cream / Cheddar"},"Gm 14","5 kg"]
[null,null,{"$f":"'Dinner Menu Matrix'!H9","v":"CARVING BAZAAR"}]
["B1","FISH/SEAFOOD",{"$f":"'Dinner Menu Matrix'!H10","v":"1) Whole Roasted Salmon Filet"},"Lido Hot ","30 pcs"]
[null,"VEGETABLES",{"$f":"'Dinner Menu Matrix'!H11","v":"Pickled Red Onions-Parsley Garnish"},"Lido Hot "]
["B2","POTATO OR VEG",{"$f":"'Dinner Menu Matrix'!H12","v":"1) Potatoes in Mushroom Sauce"},"Soup 6","50 Kg"]
[null,null,{"$f":"'Dinner Menu Matrix'!H13","v":"2) Sweet Potato Mash"},"Soup 6","80 Kg"]
["B3","CARVING","Herbs crusted Tenderloin Béarnaise Sauce","Grill 5","30 pcs"]
[null,"SAUCES",{"$f":"'Dinner Menu Matrix'!H15","v":"1) Cranberry Sauce 2) Mustard          3) Gravy Dark 4) Peppercorn"},"Sauce 6","5 ltr ea"]
["B4","PASTA TOPPINGS",{"$f":"'Dinner Menu Matrix'!H16","v":"1) Grilled Chicken Breast Strips"},"Lido Hot ","5 kg "]
[null,null,{"$f":"'Dinner Menu Matrix'!H17","v":"2) Roasted Seard Steak Cubes"},"Lido Hot ","5 kg"]
[null,null,{"$f":"'Dinner Menu Matrix'!H18","v":"3) Roasted Catch of the Day Cubes"},"Lido Hot ","5 kg"]
[null,null,{"$f":"'Dinner Menu Matrix'!H19","v":"4) Garlic Shrimp"},"Lido Hot ","5 kg"]
["B5","PASTA SAUCES",{"$f":"'Dinner Menu Matrix'!H20","v":"Sauce: Mushroom Cream"},"Sauce 6","10 Ltr"]
[null,null,{"$f":"'Dinner Menu Matrix'!H21","v":"Sauce: Marinara"},"Lido Hot ","10 Ltr"]
[null,"PASTA STATION",{"$f":"'Dinner Menu Matrix'!H22","v":"1) Penne Pasta"},"Lido Hot ","10 Kg"]
[null,null,{"$f":"'Dinner Menu Matrix'!H23","v":"2) Fusili Pasta"},"Lido Hot ","10 Kg"]
["DESTINATIONS",null,{"$f":"'Dinner Menu Matrix'!H24","v":"MEDITERRANEAN"}]
["C1","CONDIMENTS",{"$f":"'Dinner Menu Matrix'!H25","v":"A1 / Mustard / Ketchup / Sriracha"}]
[null,null,{"$f":"'Dinner Menu Matrix'!H26","v":"Worchestershire / Soy Sauce / Malt V"}]
["C2","FISH / SEAFOOD               VEGETABLE ITEM",{"$f":"'Dinner Menu Matrix'!H27","v":"1) Andalous Seafood Paella w/ Shrimp"},"Lido Hot ","10 Kg ea"]
[null,null,{"$f":"'Dinner Menu Matrix'!H28","v":"Mussels, Calamari, Scallops, Veg"}]
["C3","PROTEIN ITEM         SIDE ITEM",{"$f":"'Dinner Menu Matrix'!H29","v":"1) Greek Style Lamb Chops"},"Lido Hot ","30 Kg"]
[null,null,{"$f":"'Dinner Menu Matrix'!H30","v":"2) Spicy Red Pepper Feta Sauce"},"Gm 14","3 Ltr"]
["C4","STARCH ITEM            SIDE ITEM",{"$f":"'Dinner Menu Matrix'!H31","v":"1) Vegetable Eggplant Moussaka"},"Soup 6","12 Ceramic"]
[null,null,{"$f":"'Dinner Menu Matrix'!H32","v":"2) Roasted Okra & Tomato w/ Garlic"},"Lido Hot ","20 Kg"]
["C5","NEUTRAL",{"$f":"'Dinner Menu Matrix'!H33","v":0}]
[null,null,{"$f":"'Dinner Menu Matrix'!H34","v":"GARDEN SOUP KETTLE"}]
["D1","SOUPS",{"$f":"'Dinner Menu Matrix'!H35","v":"1) Daily Soup Main Dining"},"Soup 5","25 Ltr"]
[null,null,{"$f":"'Dinner Menu Matrix'!H36","v":"2) Daily Soup Main Dining"},"Soup 5","25 Ltr"]
["D2","TOPPINGS",{"$f":"'Dinner Menu Matrix'!H37","v":"Scallions / Bacon Bits / Croutons "},"Bell Box","2 kg"]
[null,null,{"$f":"'Dinner Menu Matrix'!H38","v":"Parmesan / Red Onion / Tofu"},"Bell Box"]
[null,null,{"$f":"'Dinner Menu Matrix'!H39","v":"HARVEST SALADS"}]
["E1","Composed Salad",{"$f":"'Dinner Menu Matrix'!H40","v":"Asparagus, Bresaola, Mozz, Truffle"},"Gm 14","180 portion"]
[null,"Crostini",{"$f":"'Dinner Menu Matrix'!H41","v":"Goat Cheese & Beet Crostini"},"Fruit 6","200 Portion"]
[null,"Cold Appetizer",{"$f":"'Dinner Menu Matrix'!H42","v":"Port Figs & Brie Puffs"},"Bakery",120]
[null,"Cold Appetizer",{"$f":"'Dinner Menu Matrix'!H43","v":"Salt Roasted Cashews & Pickles"},"Gm 14","180 Portion"]
[null,null,{"$f":"'Dinner Menu Matrix'!H44","v":"COMPOSED SALADS"}]
["E2","Caesar Salad",{"$f":"'Dinner Menu Matrix'!H45","v":"Romaine Lettuce / Parmesan / Anchovies / Croutons "},"Gm 14","15 kg"]
[null,"Composed Salad",{"$f":"'Dinner Menu Matrix'!H46","v":"Green Bean Salad"},"Gm 5","200 pcs"]
[null,"Fruit Salad LG",{"$f":"'Dinner Menu Matrix'!H47","v":"Spicy Pear & Pineapple Salad"},"Fruit 5","25 kg"]
[null,"Roasted Veg",{"$f":"'Dinner Menu Matrix'!H48","v":"Zucchini-Red Pepper- Eggplant"},"Gm 14","10 kg"]
[null,"Cheese Garnish",{"$f":"'Dinner Menu Matrix'!H49","v":"Blue Cheese / Parmesan Cheese"},"Gm 14","2 kg"]
[null,"Bread Garnish",{"$f":"'Dinner Menu Matrix'!H50","v":"Garlic Bread / Parmesan Bread"},"Gm 14","10 Dozen"]
[null,null,{"$f":"'Dinner Menu Matrix'!H51","v":"FRESH MARKET GREENS"}]
["F1","Leaf Lettuce",{"$f":"'Dinner Menu Matrix'!H52","v":"Mixed Greens / Iceberg"},"Gm 6","40 Kg"]
[null,"Leaf Lettuce",{"$f":"'Dinner Menu Matrix'!H53","v":"Shredded Green & Red Cabbage"},"GM 5","40 Kg"]
[null,"Tomato Salad",{"$f":"'Dinner Menu Matrix'!H54","v":"Sliced Tomato & Red Onion"},"Gm 14","10 Kg"]
[null,"Potato Salad",{"$f":"'Dinner Menu Matrix'!H55","v":"American Potato Salad"},"Gm 14","50 Kg"]
[null,"Crudités",{"$f":"'Dinner Menu Matrix'!H56","v":"Cucumber/Radish/Peppers/Carrots"},"Veg Prep","5 Kg"]
[null,null,{"$f":"'Dinner Menu Matrix'!H57","v":"GOURMET SANDWICH SHOP"}]
["F2","Mini Slider Roll ",{"$f":"'Dinner Menu Matrix'!H58","v":"Waldorf Chicken Sandwich"},"Internal Café",200]
[null,"Open Face",{"$f":"'Dinner Menu Matrix'!H59","v":"Prosciutto, Gorgonzola, Figs"},"Gm 6",180]
[null,"Gazpacho",{"$f":"'Dinner Menu Matrix'!H60","v":"Tomato & Basil"},"Gm 14","20 ltr"]
[null,"Pickles",{"$f":"'Dinner Menu Matrix'!H61","v":"Red Onion-Cornichons-Giardiniera-Green Olives - Kalamata Olives"},"Gm 14","2 kg ea"]
[null,"Condiments",{"$f":"'Dinner Menu Matrix'!H62","v":"Dijon Mustard - Mayonnaise"}]
[null,null,{"$f":"'Dinner Menu Matrix'!H63","v":"CHARCUTERIE"}]
["G1","CHARCUTERIE DISPLAY",{"$f":"'Dinner Menu Matrix'!H64","v":" Chicken Liver Pate w/ Pickled Onions"},"Gm 14","3 kg"]
[null,null,{"$f":"'Dinner Menu Matrix'!H65","v":"Farmers Pate w/ Lettuce"},"Gm 14","2 kg"]
[null,null,{"$f":"'Dinner Menu Matrix'!H66","v":"Lobster-Seafood Terrine"},"Gm 14","3 kg"]
[null,null,{"$f":"'Dinner Menu Matrix'!H67","v":"Shaved Proscuitto "},"Gm 14","5 kg"]
[null,null,{"$f":"'Dinner Menu Matrix'!H68","v":"Sliced Turkey Breast"},"Gm 14","5 kg"]
[null,"CONDIMENTS",{"$f":"'Dinner Menu Matrix'!H69","v":"Cornichons / Pickles / Pearl Onions"},"Gm 14","2 kg ea "]
[null,null,{"$f":"'Dinner Menu Matrix'!H70","v":"Olives / Mustard / Giardiniera Veg"},"Gm 14","2 kg ea"]
[null,null,{"$f":"'Dinner Menu Matrix'!H71","v":"PRETZEL BAR"}]
["H1","PRETZELS",{"$f":"'Dinner Menu Matrix'!H72","v":"Plain Pretzel"}]
[null,null,{"$f":"'Dinner Menu Matrix'!H73","v":"Salt Crusted Pretzel"}]
[null,"SAUCE ",{"$f":"'Dinner Menu Matrix'!H74","v":"Beer & Cheese Sauce"}]
[null,"SAUCE ",{"$f":"'Dinner Menu Matrix'!H75","v":"Honey Mustard Sauce"}]
[null,"SAUCE ",{"$f":"'Dinner Menu Matrix'!H76","v":"Spicy Mustard Sauce"}]
[null,null,{"$f":"'Dinner Menu Matrix'!H77","v":"FRESH MARKET TOPPINGS"}]
["H2","TOPPINGS",{"$f":"'Dinner Menu Matrix'!H78","v":"Cherry Tomato Slice / Red Onion"},"Veg Prep","5 Kg ea"]
[null,null,{"$f":"'Dinner Menu Matrix'!H79","v":"Cucumber / Celery / Carrots / Radish"},"Veg Prep","5 Kg ea"]
[null,null,{"$f":"'Dinner Menu Matrix'!H80","v":"Mixed Pepper / Mushrooms / Corn"},"Veg Prep","5 Kg ea"]
[null,null,{"$f":"'Dinner Menu Matrix'!H81","v":"Garbanzo Bean / Black Bean"},"Veg Prep","5 Kg ea"]
[null,null,{"$f":"'Dinner Menu Matrix'!H82","v":"Green Olives / Sunflower Seeds"},"GM 14","5 Kg ea"]
[null,null,{"$f":"'Dinner Menu Matrix'!H83","v":"Walnuts / Croutons"},"GM 14","5 Kg ea"]
[null,"DRESSINGS",{"$f":"'Dinner Menu Matrix'!H84","v":"DRESSINGS"},"GM 14"]
[null,null,{"$f":"'Dinner Menu Matrix'!H85","v":" Ranch / Caesar / Balsamic / Italian"},"GM 14","1 Gal"]
[null,null,{"$f":"'Dinner Menu Matrix'!H86","v":" Low-fat Yogurt / Blue Cheese "},"GM 14","1 Gal"]
[null,null,{"$f":"'Dinner Menu Matrix'!H87","v":" 1000 Island / Shallot / Mustard"},"Gm 6","3 Ltr"]
[null,null,{"$f":"'Dinner Menu Matrix'!H88","v":"PASTRY COUNTER"}]
["H3","Fruit Tart",{"$f":"'Dinner Menu Matrix'!H89","v":"Fresh Fruit Tartlet"},"Pastry"]
[null,"Pastry",{"$f":"'Dinner Menu Matrix'!H90","v":"Chocolate Peanut Butter Cake"},"Pastry"]
[null,"Pastry",{"$f":"'Dinner Menu Matrix'!H91","v":"Blueberry Cake"},"Pastry"]
[null,"Pastry",{"$f":"'Dinner Menu Matrix'!H92","v":"Cherry Cake"},"Pastry"]
[null,"Pastry",{"$f":"'Dinner Menu Matrix'!H93","v":"Pecan Pie"},"Pastry"]
[null,null,{"$f":"'Dinner Menu Matrix'!H94","v":"FRESH & FAST - GF"}]
["H4","Gluten Free",{"$f":"'Dinner Menu Matrix'!H95","v":"Sweet Potato Pie"},"Pastry"]
[null,null,{"$f":"'Dinner Menu Matrix'!H96","v":0},"Pastry"]
[null,"Sugar Free",{"$f":"'Dinner Menu Matrix'!H97","v":"Coconut Cake"},"Pastry"]
["H5","H5 - HOT",{"$f":"'Dinner Menu Matrix'!H98","v":"Warm Cherry & Apple Crumble Bake"},"Pastry"]
[null,null,{"$f":"'Dinner Menu Matrix'!H99","v":"FRUIT STAND FAVORITES"}]
["I-1","Whole Fruits",{"$f":"'Dinner Menu Matrix'!H100","v":"Banana / Red Apple / Pears / Peach   Green Apple / Oranges"},"Gm 14","50 Kg"]
[null,"Sliced Fruits",{"$f":"'Dinner Menu Matrix'!H101","v":"Watermelon/Pineapple/  Cantaloupe  Honeydew Melon"},"Fruit 5","100 Kg"]
[null,null,{"$f":"'Dinner Menu Matrix'!H102","v":"OVEN BAKED BREADS"}]
["I-2","Current Rolls",{"$f":"'Dinner Menu Matrix'!H103","v":"1) Plain Crunchy Rolls"},"Bakery"]
[null,null,{"$f":"'Dinner Menu Matrix'!H104","v":"2) Plain Soft Rolls"},"Bakery"]
[null,null,{"$f":"'Dinner Menu Matrix'!H105","v":"3) Whole Wheat Raisin"},"Bakery"]
[null,"Loafs",{"$f":"'Dinner Menu Matrix'!H106","v":"4) Rye Loaf Sliced"},"Bakery"]
[null,null,{"$f":"'Dinner Menu Matrix'!H107","v":"5) Sun-Dried Tomato Focaccia"},"Bakery"]
[null,"Condiments",{"$f":"'Dinner Menu Matrix'!H108","v":"Butter & Preserves"},"Bakery"]
[null,null,{"$f":"'Dinner Menu Matrix'!H109","v":"FROMAGERIE"}]
["I-3","CHEESE",{"$f":"'Dinner Menu Matrix'!H110","v":" Cheddar / Provolone / Gorgonzola"},"Gm 14","5 kg ea"]
[null,"CHEESE",{"$f":"'Dinner Menu Matrix'!H111","v":" Havarti / Jack Cheese"},"Gm 14","5 kg ea"]
[null,"CONDIMENTS",{"$f":"'Dinner Menu Matrix'!H112","v":" Variety of Crackers"},"Gm 14"]
[null,"DRIED FRUITS",{"$f":"'Dinner Menu Matrix'!H113","v":"Apricots / Figs / Dates / Prunes"},"Gm 14","2 Kg ea"]
[null,"NUTS",{"$f":"'Dinner Menu Matrix'!H114","v":"Almond / Pistachio / Walnuts / Pecans"},"Gm 14","2 Kg ea"]
[null,null,{"$f":"'Dinner Menu Matrix'!H115","v":"FRESH & FAST STATION - 2"}]
["H4","PASTRY",{"$f":"'Dinner Menu Matrix'!H116","v":"Linzer Torte"}]
[null,null,{"$f":"'Dinner Menu Matrix'!H117","v":0}]
[null,"PASTRY ",{"$f":"'Dinner Menu Matrix'!H118","v":"Blueberry Cake"}]
[null,null,{"$f":"'Dinner Menu Matrix'!H119","v":0}]
["I-5","Dessert Hot",{"$f":"'Dinner Menu Matrix'!H120","v":"Warm Apricot / Custard Jalousie"}]
[]
[null,null,"Sous chef DK 5 / 6 check off sign                            Time"]
[]
[null,null,"Sous Chef recive check off sign                                Time"]
[]
[null,null,"Food testing ",null,"Ok","not OK"]

{"sheet":"Day 13 - Production","index":14,"n_rows":126,"n_cols":7,"rows_kept":126,"cut":false,"hidden":false,"merged":[[109,0,112,0],[115,0,118,0],[115,1,116,1],[117,1,118,1],[94,0,96,0],[94,1,95,1],[99,0,100,0],[102,0,107,0],[102,1,104,1],[105,1,106,1],[71,0,75,0],[71,1,72,1],[77,0,86,0],[77,1,82,1],[83,1,86,1],[88,0,92,0],[39,0,42,0],[44,0,49,0],[51,0,55,0],[57,0,61,0],[63,0,69,0],[63,1,67,1],[68,1,69,1],[30,0,31,0],[30,1,31,1],[34,0,35,0],[34,1,35,1],[36,0,37,0],[36,1,37,1],[24,0,25,0],[24,1,25,1],[26,0,27,0],[26,1,27,1],[28,0,29,0],[28,1,29,1],[13,0,14,0],[15,0,18,0],[15,1,18,1],[19,0,22,0],[19,1,20,1],[21,1,22,1],[3,0,4,0],[3,1,4,1],[5,0,6,0],[9,0,10,0],[11,0,12,0],[11,1,12,1]]}
[null,"STATION","DINNER / DAY 13","PROD LOCATION","QTY","CREW","SHOPPING LIST"]
[null,null,{"$f":"'Dinner Menu Matrix'!J2","v":"WESTERN DESTINATIONS"}]
["A1","GF-PASTA",{"$f":"'Dinner Menu Matrix'!J3","v":"1) Mushrooms, Garlic, Spinach Fresh"},"Lido Hot ","10 kg"]
["A2","DAILY HOT SANDWICH",{"$f":"'Dinner Menu Matrix'!J4","v":"1) Corned Flake Chicken & Waffle"},"Grill 5","400 portion"]
[null,null,{"$f":"'Dinner Menu Matrix'!J5","v":"Sandwich w/ Sriracha Syrup"},"Gm 14"]
["A3","TEX-MEX ITEM",{"$f":"'Dinner Menu Matrix'!J6","v":"1) Roasted Vegetable Quesadilla"},"Soup 6","300 pcs"]
[null,"SIDE ITEM",{"$f":"'Dinner Menu Matrix'!J7","v":"w/ Mozzarella Cheese"},"Lid hot "]
["A4","TOPPINGS",{"$f":"'Dinner Menu Matrix'!J8","v":"Salsa: Tomato / Corn / Black Bean  - Guacamole / Sour Cream / Cheddar"},"Gm 14","5 kg"]
[null,null,{"$f":"'Dinner Menu Matrix'!J9","v":"CARVING BAZAAR"}]
["B1","FISH/SEAFOOD",{"$f":"'Dinner Menu Matrix'!J10","v":"1) Grilled Snapper, Sauce Nicoise"},"fish 5","300 pcs"]
[null,"VEGETABLES",{"$f":"'Dinner Menu Matrix'!J11","v":"2) Roasted Broccoli"},"Lido Hot ","30 kg"]
["B2","POTATO OR VEG",{"$f":"'Dinner Menu Matrix'!J12","v":"1) Rosemary Garlic Potatoes Bliss"},"Soup 6","60 kg"]
[null,null,{"$f":"'Dinner Menu Matrix'!J13","v":"2) Sour Cream Mashed Potato"},"Soup 6","80 kg"]
["B3","CARVING",{"$f":"'Dinner Menu Matrix'!J14","v":"FLANK STEAK STUFFED W/ ONION SPINACH & GORGONZOLA"},"Lido Hot ",20]
[null,"SAUCES",{"$f":"'Dinner Menu Matrix'!J15","v":"1) Chimichurri 2) Peppercorn             3) Creamy Mustard 4) Mushroom"},"Gm 14 Sauce 6","5 ltrs"]
["B4","PASTA TOPPINGS",{"$f":"'Dinner Menu Matrix'!J16","v":"1) Grilled Chicken Breast Strips"},"Lido Hot ","5 kg"]
[null,null,{"$f":"'Dinner Menu Matrix'!J17","v":"2) Roasted Seard Steak Cubes"},"Lido Hot ","5 kg"]
[null,null,{"$f":"'Dinner Menu Matrix'!J18","v":"3) Roasted Catch of the Day Cubes"},"Lido Hot ","5 kg"]
[null,null,{"$f":"'Dinner Menu Matrix'!J19","v":"4) Garlic Shrimp"},"Lido Hot ","5 kg"]
["B5","PASTA SAUCES",{"$f":"'Dinner Menu Matrix'!J20","v":"Sauce: Puttanesca"},"Sauce 6 ","10 ltrs"]
[null,null,{"$f":"'Dinner Menu Matrix'!J21","v":"Sauce: Marinara"},"Sauce 6 ","10 ltrs"]
[null,"PASTA STATION",{"$f":"'Dinner Menu Matrix'!J22","v":"1) Ragatoni Pasta"},"Lido Hot ","10 kg"]
[null,null,{"$f":"'Dinner Menu Matrix'!J23","v":"2) Fusili Pasta"},"Lido Hot ","10 kg"]
["DESTINATIONS",null,{"$f":"'Dinner Menu Matrix'!J24","v":"INDIAN "}]
["C1","CONDIMENTS",{"$f":"'Dinner Menu Matrix'!J25","v":"A1 / Mustard / Ketchup / Sriracha"}]
[null,null,{"$f":"'Dinner Menu Matrix'!J26","v":"Worchestershire / Soy Sauce / Malt V"}]
["C2","FISH / SEAFOOD               VEGETABLE ITEM",{"$f":"'Dinner Menu Matrix'!J27","v":"1) Punjabi Garam Masala Shrimp"},"Fish 6","60 kg"]
[null,null,{"$f":"'Dinner Menu Matrix'!J28","v":"2) Fried Papadam"},"Gm 14","10 dozen"]
["C3","PROTEIN ITEM         SIDE ITEM",{"$f":"'Dinner Menu Matrix'!J29","v":"1) Lamb Rogan Josh"},"Sauce 5","40 kg"]
[null,null,{"$f":"'Dinner Menu Matrix'!J30","v":"2) Chicken Briyani w/ Raisins/Cashew"},"Grill 6","30 kg"]
["C4","STARCH ITEM            SIDE ITEM",{"$f":"'Dinner Menu Matrix'!J31","v":"1) Steamed Basmati Rice"},"Lido Hot ","10 kg"]
[null,null,{"$f":"'Dinner Menu Matrix'!J32","v":"2) Curried Potato & Chickpeas"},"Soup 6","20 kg"]
["C5","NEUTRAL",{"$f":"'Dinner Menu Matrix'!J33","v":0}]
[null,null,{"$f":"'Dinner Menu Matrix'!J34","v":"GARDEN SOUP KETTLE"}]
["D1","SOUPS",{"$f":"'Dinner Menu Matrix'!J35","v":"1) Daily Soup Main Dining"},"Soup 5","25 Ltr"]
[null,null,{"$f":"'Dinner Menu Matrix'!J36","v":"2) Daily Soup Main Dining"},"Soup 5","25 ltr"]
["D2","TOPPINGS",{"$f":"'Dinner Menu Matrix'!J37","v":"Scallions / Bacon Bits / Croutons "},"Bell Box","2kg ea"]
[null,null,{"$f":"'Dinner Menu Matrix'!J38","v":"Parmesan / Red Onion / Tofu"},"Bell Box"]
[null,null,{"$f":"'Dinner Menu Matrix'!J39","v":"HARVEST SALADS"}]
["E1","Composed Salad",{"$f":"'Dinner Menu Matrix'!J40","v":"Salmon Salad Nicoise"},"Gm 14","10 kg"]
[null,"Crostini",{"$f":"'Dinner Menu Matrix'!J41","v":"Gorgonzola, Cranberries, Pistachio"},"Fruit 6","200 Portion"]
[null,"Cold Appetizer",{"$f":"'Dinner Menu Matrix'!J42","v":"Prosciutto, Arugula, Feta Cheese"},"Gm 6","200 Portion"]
[null,"Cold Appetizer",{"$f":"'Dinner Menu Matrix'!J43","v":"Cantaloupe & Cherry Cocktail"},"Gm 14"]
[null,null,{"$f":"'Dinner Menu Matrix'!J44","v":"COMPOSED SALADS"}]
["E2","Caesar Salad",{"$f":"'Dinner Menu Matrix'!J45","v":"Romaine Lettuce / Parmesan / Anchovies / Croutons "},"Gm 5","15 kg"]
[null,"Composed Salad",{"$f":"'Dinner Menu Matrix'!J46","v":"Greek Salad"},"International Café","12 kg"]
[null,"Fruit Salad LG",{"$f":"'Dinner Menu Matrix'!J47","v":"Mango-Sesame-Chili Fruit Salad"},"Fruit 5","25 kg"]
[null,"Roasted Veg",{"$f":"'Dinner Menu Matrix'!J48","v":"Roasted Carrots & Peppers"},"Gm 14","10 kg"]
[null,"Cheese Garnish",{"$f":"'Dinner Menu Matrix'!J49","v":"Blue Cheese / Parmesan Cheese"},"Gm 14","2 kg"]
[null,"Bread Garnish",{"$f":"'Dinner Menu Matrix'!J50","v":"Garlic Bread / Parmesan Bread"},"Gm 14","10 loaf"]
[null,null,{"$f":"'Dinner Menu Matrix'!J51","v":"FRESH MARKET GREENS"}]
["F1","Leaf Lettuce",{"$f":"'Dinner Menu Matrix'!J52","v":"Mixed Greens / Iceberg"},"Gm 6","40 kg"]
[null,"Leaf Lettuce",{"$f":"'Dinner Menu Matrix'!J53","v":"Shredded Green & Red Cabbage"},"Gm 5","40 kg"]
[null,"Tomato Salad",{"$f":"'Dinner Menu Matrix'!J54","v":"Sliced Tomato & Red Onion"},"Gm 14","10 kg"]
[null,"Potato Salad",{"$f":"'Dinner Menu Matrix'!J55","v":"Lemon Pepper Potato Salad"},"Gm 14","40 kg"]
[null,"Crudités",{"$f":"'Dinner Menu Matrix'!J56","v":"Cauliflower/Broccoli/Cherry Tomato"},"Gm 14","5 kg"]
[null,null,{"$f":"'Dinner Menu Matrix'!J57","v":"GOURMET SANDWICH SHOP"}]
["F2","Mini Slider Roll ",{"$f":"'Dinner Menu Matrix'!J58","v":"Mini Lobster Roll"},"Gm 5","200 Portion"]
[null,"Open Face",{"$f":"'Dinner Menu Matrix'!J59","v":"Shaved Filet Mignon w/ Truffle Aioli"},"Gm 14","200 Protion"]
[null,"Gazpacho",{"$f":"'Dinner Menu Matrix'!J60","v":"Red Pepper & Tomato"},"Gm 14","10 Kg"]
[null,"Pickles",{"$f":"'Dinner Menu Matrix'!J61","v":"Red Onion-Cornichons-Giardiniera-Green Olives - Kalamata Olives"},"Gm 14","2 Kg"]
[null,"Condiments",{"$f":"'Dinner Menu Matrix'!J62","v":"Dijon Mustard - Mayonnaise"}]
[null,null,{"$f":"'Dinner Menu Matrix'!J63","v":"CHARCUTERIE"}]
["G1","CHARCUTERIE DISPLAY",{"$f":"'Dinner Menu Matrix'!J64","v":" Chicken Liver Pate w/ Pickled Onions"},"Gm 14","3 kg "]
[null,null,{"$f":"'Dinner Menu Matrix'!J65","v":"Farmers Pate w/ Lettuce"},"Gm 14","2 kg"]
[null,null,{"$f":"'Dinner Menu Matrix'!J66","v":"Lobster-Seafood Terrine"},"Gm 14","3 kg ea"]
[null,null,{"$f":"'Dinner Menu Matrix'!J67","v":"Shaved Proscuitto "},"Gm 14","5 kg"]
[null,null,{"$f":"'Dinner Menu Matrix'!J68","v":"Sliced Turkey Breast"},"Gm 14","5 kg"]
[null,"CONDIMENTS",{"$f":"'Dinner Menu Matrix'!J69","v":"Cornichons / Pickles / Pearl Onions"},"Gm 14","2 kg ea "]
[null,null,{"$f":"'Dinner Menu Matrix'!J70","v":"Olives / Mustard / Giardiniera Veg"},"Gm 14","2 kg ea "]
[null,null,{"$f":"'Dinner Menu Matrix'!J71","v":"PRETZEL BAR"}]
["H1","PRETZELS",{"$f":"'Dinner Menu Matrix'!J72","v":"Plain Pretzel"}]
[null,null,{"$f":"'Dinner Menu Matrix'!J73","v":"Salt Crusted Pretzel"}]
[null,"SAUCE ",{"$f":"'Dinner Menu Matrix'!J74","v":"Beer & Cheese Sauce"}]
[null,"SAUCE ",{"$f":"'Dinner Menu Matrix'!J75","v":"Honey Mustard Sauce"}]
[null,"SAUCE ",{"$f":"'Dinner Menu Matrix'!J76","v":"Spicy Mustard Sauce"}]
[null,null,{"$f":"'Dinner Menu Matrix'!J77","v":"FRESH MARKET TOPPINGS"}]
["H2","TOPPINGS",{"$f":"'Dinner Menu Matrix'!J78","v":"Cherry Tomato Slice / Red Onion"},"Veg Prep","5 kg"]
[null,null,{"$f":"'Dinner Menu Matrix'!J79","v":"Cucumber / Celery / Carrots / Radish"},"Veg Prep","5 kg"]
[null,null,{"$f":"'Dinner Menu Matrix'!J80","v":"Mixed Pepper / Mushrooms / Corn"},"Veg Prep","5 kg"]
[null,null,{"$f":"'Dinner Menu Matrix'!J81","v":"Garbanzo Bean / Black Bean"},"Veg Prep","5 kg"]
[null,null,{"$f":"'Dinner Menu Matrix'!J82","v":"Green Olives / Sunflower Seeds"},"Gm 14","5 kg"]
[null,null,{"$f":"'Dinner Menu Matrix'!J83","v":"Walnuts / Croutons"},"Gm 14","2 kg"]
[null,"DRESSINGS",{"$f":"'Dinner Menu Matrix'!J84","v":"DRESSINGS"},"Gm 14"]
[null,null,{"$f":"'Dinner Menu Matrix'!J85","v":" Ranch / Caesar / Balsamic / Italian"},"Gm 14","1 Gal"]
[null,null,{"$f":"'Dinner Menu Matrix'!J86","v":" Low-fat Yogurt / Blue Cheese "},"Gm 14","1 Gal"]
[null,null,{"$f":"'Dinner Menu Matrix'!J87","v":" 1000 Island / Shallot / Mustard"},"Gm 6","3 Ltr"]
[null,null,{"$f":"'Dinner Menu Matrix'!J88","v":"PASTRY COUNTER"}]
["H3","Fruit Tart",{"$f":"'Dinner Menu Matrix'!J89","v":"Fresh Fruit Tartlet"},"Pastry"]
[null,"Pastry",{"$f":"'Dinner Menu Matrix'!J90","v":"Grandma's Chocolate Cake"},"Pastry"]
[null,"Pastry",{"$f":"'Dinner Menu Matrix'!J91","v":"Sacher Torte"},"Pastry"]
[null,"Pastry",{"$f":"'Dinner Menu Matrix'!J92","v":"Linzer Torte"},"Pastry"]
[null,"Pastry",{"$f":"'Dinner Menu Matrix'!J93","v":"Bee Sting"},"Pastry"]
[null,null,{"$f":"'Dinner Menu Matrix'!J94","v":"FRESH & FAST - GF"}]
["H4","Gluten Free",{"$f":"'Dinner Menu Matrix'!J95","v":"Dark Almond Chocolate Cake"},"Pastry"]
[null,null,{"$f":"'Dinner Menu Matrix'!J96","v":0},"Pastry"]
[null,"Sugar Free",{"$f":"'Dinner Menu Matrix'!J97","v":"Coffee Mousse Cake"},"Pastry"]
["H5","H5 - HOT",{"$f":"'Dinner Menu Matrix'!J98","v":"Roasted Pears & Raisins"},"Pastry"]
[null,null,{"$f":"'Dinner Menu Matrix'!J99","v":"FRUIT STAND FAVORITES"}]
["I-1","Whole Fruits",{"$f":"'Dinner Menu Matrix'!J100","v":"Banana / Red Apple / Pears / Peach   Green Apple / Oranges"},"Gm 14","50 kg ea"]
[null,"Sliced Fruits",{"$f":"'Dinner Menu Matrix'!J101","v":"Watermelon/Pineapple/  Cantaloupe  Honeydew Melon"},"Fruit 5","100 kg ea"]
[null,null,{"$f":"'Dinner Menu Matrix'!J102","v":"OVEN BAKED BREADS"}]
["I-2","Current Rolls",{"$f":"'Dinner Menu Matrix'!J103","v":"1) Plain Crunchy Rolls"},"Bakery"]
[null,null,{"$f":"'Dinner Menu Matrix'!J104","v":"2) Plain Soft Rolls"},"Bakery"]
[null,null,{"$f":"'Dinner Menu Matrix'!J105","v":"3) Six Cereal Rolls"},"Bakery"]
[null,"Loafs",{"$f":"'Dinner Menu Matrix'!J106","v":"4) Muesli Loaf Sliced"},"Bakery"]
[null,null,{"$f":"'Dinner Menu Matrix'!J107","v":"5) Rosemary Focaccia"},"Bakery"]
[null,"Condiments",{"$f":"'Dinner Menu Matrix'!J108","v":"Butter & Preserves"},"Bakery"]
[null,null,{"$f":"'Dinner Menu Matrix'!J109","v":"FROMAGERIE"}]
["I-3","CHEESE",{"$f":"'Dinner Menu Matrix'!J110","v":" Cheddar / Provolone / Gorgonzola"},"Gm 14","5 kg ea"]
[null,"CHEESE",{"$f":"'Dinner Menu Matrix'!J111","v":" Havarti / Jack Cheese"},"Gm 14","5 kg ea"]
[null,"CONDIMENTS",{"$f":"'Dinner Menu Matrix'!J112","v":" Variety of Crackers"},"Gm 14"]
[null,"DRIED FRUITS",{"$f":"'Dinner Menu Matrix'!J113","v":"Apricots / Figs / Dates / Prunes"},"Gm 14","2 kg ea"]
[null,"NUTS",{"$f":"'Dinner Menu Matrix'!J114","v":"Almond / Pistachio / Walnuts / Pecans"},"Gm 14","2 kg ea"]
[null,null,{"$f":"'Dinner Menu Matrix'!J115","v":"FRESH & FAST STATION - 2"}]
["H4","PASTRY",{"$f":"'Dinner Menu Matrix'!J116","v":"Apple Strudel "}]
[null,null,{"$f":"'Dinner Menu Matrix'!J117","v":0}]
[null,"PASTRY ",{"$f":"'Dinner Menu Matrix'!J118","v":"Sacher Torte"}]
[null,null,{"$f":"'Dinner Menu Matrix'!J119","v":0}]
["I-5","Dessert Hot",{"$f":"'Dinner Menu Matrix'!J120","v":"Apple Strudel "}]
[]
[null,null,"Sous chef DK 5 / 6 check off sign                            Time"]
[]
[null,null,"Sous Chef recive check off sign                                Time"]
[]
[null,null,"Food testing ",null,"Ok","not OK"]

{"sheet":"Menu Vessel List","index":15,"n_rows":116,"n_cols":10,"rows_kept":116,"cut":false,"hidden":false,"merged":[[11,0,12,0],[11,1,12,1],[13,0,14,0],[15,0,18,0],[26,0,27,0],[26,1,27,1],[24,0,25,0],[24,1,25,1],[3,0,4,0],[3,1,4,1],[5,0,6,0],[5,6,6,6],[9,0,10,0],[31,0,32,0],[31,1,32,1],[15,1,18,1],[19,0,22,0],[19,1,20,1],[21,1,22,1],[23,0,23,1],[28,0,29,0],[28,1,29,1],[33,0,34,0],[33,1,34,1],[36,0,39,0],[41,0,46,0],[48,0,52,0],[54,0,58,0],[60,0,66,0],[60,1,64,1],[65,1,66,1],[68,0,72,0],[68,1,69,1],[74,0,82,0],[74,1,79,1],[80,1,82,1],[84,0,88,0],[90,0,92,0],[90,1,91,1],[111,0,114,0],[111,1,112,1],[113,1,114,1],[95,0,96,0],[98,0,103,0],[98,1,100,1],[101,1,102,1],[105,0,108,0]]}
[null,"STATION","DINNER / DAY 0  x 2","DINNER / DAY 1","DINNER / DAY 2","DINNER / DAY 3","DINNER / DAY 4","DINNER/ DAY 5","DINNER / DAY 6","DINNER / DAY 7"]
[null,null,"WESTERN DESTINATIONS","WESTERN DESTINATIONS","WESTERN DESTINATIONS","WESTERN DESTINATIONS","WESTERN DESTINATIONS","WESTERN DESTINATIONS","WESTERN DESTINATIONS","WESTERN DESTINATIONS"]
["A1","GF-PASTA","1) Roasted Peppers & Basil","1) Green Peas & Cherry Tomatoes","1) Roasted Zucchini, peppers, eggplant, red onions","1) Mushrooms, Garlic, Spinach Fresh","1) Roasted Peppers & Basil","1) Wild Mushroom Cream Sauce","1) Green Peas & Cherry Tomatoes","1) Mushrooms, Garlic, Spinach Fresh"]
["A2","DAILY HOT SANDWICH","1) Open Face Lemon Chicken ","1) Ultimate Grilled Cheese on ","1) Pulled Jerk Chicken Sliders w/","1) Meatball Slider w/ Mozzarella ","1) Pulled Pork Sliders w/ Gouda","1) Beef Sliders w/ Mushrooms, ","1) Short-Rib Sliders w/ Pickled Onions","1) Corned Flake Chicken & Waffle"]
[null,null,"Gruyere Sandwich","Sourdough Bread","Jack Cheese & Slaw","Wilted Spinach & Parmesan","BBQ Sauce, Pickles & Red Onion-P","Caramelized Onions & Cheddar","Gorogonzola & Bacon Jam","Sandwich w/ Sriracha Syrup"]
["A3","TEX-MEX ITEM","1) Chili Beef Brisket & Yellow Corn","1) Shaved Pastrami Soft Tacos","1) Potato-Sausage Quesadillia","1) Steak & Cheese Enchilada w/","1) Cilantro Chicken Nacho's w/ tomato salsa and cilantro","1) Fried Codfish Tacos / Asian Slaw","1) Corn Quesadilla with Pulled Pork","1) Roasted Vegetable Quisadilla"]
[null,"SIDE ITEM","Cheese Enchilada","Jack Cheese, Pickles, 1000 Island ","w/ Black Beans (from salsa)","Yellow Corn Salsa",null,"Chipotle Aioli","Cheese, Cilantro, Jerk Spice","w/ Mozzarella Cheese"]
["A4","TOPPINGS","Tomato/Corn/Black Bean/ Guacamole/Sour Cream/ ","Tomato/Corn/Black Bean/ Guacamole/Sour Cream/ ","Tomato/Corn/Black Bean/ Guacamole/Sour Cream/ ","Tomato/Corn/Black Bean/ Guacamole/Sour Cream/ ","Tomato/Corn/Black Bean/ Guacamole/Sour Cream/ ","Tomato/Corn/Black Bean/ Guacamole/Sour Cream/ ","Tomato/Corn/Black Bean/ Guacamole/Sour Cream/ ","Tomato/Corn/Black Bean/ Guacamole/Sour Cream/ "]
[null,null,"CARVING BAZAAR","CARVING BAZAAR","CARVING BAZAAR","CARVING BAZAAR","CARVING BAZAAR","CARVING BAZAAR","CARVING BAZAAR","CARVING BAZAAR"]
["B1","FISH/SEAFOOD","1) Spinach Stuffed Flounder/Butr Sc","1) Seared Cod in Fennel Cream Sauce","1) Grilled Salmon/Tomato, Capers","1) Seared Snapper, Citrus Emulsion","1) Orange-Pepper Tuna / Orange Em","1) Whole Roasted Salmon Filet","1) Miso-Baked Codfish & Shiitake","1) Grilled Snapper, Sauce Nicoise"]
[null,"VEGETABLES","2) Parmesan Green Beans","2) Oven Roasted Brussel Sprouts","2) Baked Leek Ragout","2) Garlic Oil Broccoli","2) Roasted Green Zucchini & Peppers","Pickled Red Onions-Parsley Garnish","2) Bokchoy & Bean Sprouts Chili","2) Roasted Broccoli"]
["B2","POTATO OR VEG","1) Creamy Mashed Potatoes","1) Olive-Garlic Crushed Potato","1) Parmesan Crusted Potatoes","1) Rosemary Crushed Red Bliss","1) Roasted Bliss Potato","1) Potatoes in Mushroom Sauce","1) Bacon Cheddar Stuff Potatoes","1) Rosemary Garlic Potatoes Bliss"]
[null,null,"2) Honey Roasted Sweet Potato","2) Cheddar Mashed Potatoe","2) Steamed Green Beans","2) Truffle Mashed Potato","2) Roasted Sweet Potato Mash","2) Sweet Potato Mash","2) Creamed Spinach","2) Sour Cream Mashed Potato"]
["B3","CARVING","MEATLOAF & MACARONI WRAPPED IN APPLEWOOD BACON","MEDITERRANEAN CHICKEN ROULADE W/ OLIVES","ROSEMARY CRUSTED SIRLOIN","FRUIT STUFFED TURKEY BREAST WRAPPED IN HICKORY BACON","MUSTARD CRUSTED LAMB LEG","CHICKEN-MUSHROOM ROULADE","HERB ROASTED PRIME RIB","FLANK STEAK STUFFED W/ ONION SPINACH & GORGONZOLA"]
[null,"SAUCES","Cheese Sauce / BBQ Sauce          Cranberry Sauce /Mushroom","Mushroom Sauce / Pesto Cream    Demi Glace / Garlic Oil","Chimichurri / Peppercorn             Creamy Mustard / Mushroom","Cranberry Sauce / Mustard          Gravy Dark / Peppercorn"," Mustard Sauce / Mint Jelly           Lamb Jus  / Mango Chutney","Cranberry Sauce / Mustard          Gravy Dark / Peppercorn","Rosemary Jus / Mustard Sauce   Horseradish  / Mushroom","Chimichurri / Peppercorn             Creamy Mustard / Mushroom"]
["B4","PASTA TOPPINGS","Grilled Chicken / Steak Cubes","Grilled Chicken / Steak Cubes","Grilled Chicken / Steak Cubes","Grilled Chicken / Steak Cubes","Grilled Chicken / Steak Cubes","Grilled Chicken / Steak Cubes","Grilled Chicken / Steak Cubes","Grilled Chicken / Steak Cubes"]
[null,null,"Catch of the Day / Garlic Shrimp","Catch of the Day / Garlic Shrimp","Catch of the Day / Garlic Shrimp","Catch of the Day / Garlic Shrimp","Catch of the Day / Garlic Shrimp","Catch of the Day / Garlic Shrimp","Catch of the Day / Garlic Shrimp","Catch of the Day / Garlic Shrimp"]
[null,null,"Grilled Artichokes / Roasted Veg","Grilled Artichokes / Roasted Veg","Grilled Artichokes / Roasted Veg","Grilled Artichokes / Roasted Veg","Grilled Artichokes / Roasted Veg","Grilled Artichokes / Roasted Veg","Grilled Artichokes / Roasted Veg","Grilled Artichokes / Roasted Veg"]
[null,null,"STomato & Olives / Mushrooms","STomato & Olives / Mushrooms","STomato & Olives / Mushrooms","STomato & Olives / Mushrooms","STomato & Olives / Mushrooms","STomato & Olives / Mushrooms","STomato & Olives / Mushrooms","STomato & Olives / Mushrooms"]
["B5","PASTA SAUCES","Sauce: Carbonara","Sauce: Mushroom Cream","Sauce: Alfredo","Sauce: Puttanesca","Sauce: Bolognese ","Sauce: Mushroom Cream","Sauce: Alfredo","Sauce: Puttanesca"]
[null,null,"Sauce: Marinara","Sauce: Marinara","Sauce: Marinara","Sauce: Marinara","Sauce: Marinara","Sauce: Marinara","Sauce: Marinara","Sauce: Marinara"]
[null,"PASTA STATION","1) Farfalle Pasta","1) Penne Pasta","1) Conghielie Pasta","1) Ragatoni Pasta","1) Farfalle Pasta","1) Penne Pasta","1) Conghielie Pasta","1) Ragatoni Pasta"]
[null,null,"2) Fettucini Pasta","2) Fusili Pasta","2) Farfalle Pasta","2) Fusili Pasta","2) Fettucini Pasta","2) Fusili Pasta","2) Farfalle Pasta","2) Fusili Pasta"]
["DESTINATIONS",null,"ENGLISH","FRENCH","ASIAN","ITALIAN","ASIAN","MEDITERRANEAN","SOUTHERN  ","ASIAN   "]
["C2","FISH / SEAFOOD               VEGETABLE ","1) Fisherman's Curry Stew","1) Almond Crusted Perch. Vernonique","1) Teriyake Glazed Codfish","1) Frito Misto Seafood & Veggies","1) Charred Salmon Harami","1) Andalous Seafood Paella w/ Shrimp","1) Shrimp-Calamari Steak-Tomato","1) Korean Barramundi Fish Skewers"]
[null,null,"2) Roasted Carrots & Peppers","2) Creamy Potato Fondant","Coconut Rice, Bokchoy, Crispy Want","2) Marinara Sauce & Saffron Aioli","Pickled Ginger Slaw, Fried Noodles","Mussels, Calamari, Scallops, Veg","2) Roasted Corn Succotash","w/ Gochujang Chili Sauce"]
["C3","PROTEIN ITEM         SIDE ITEM","1) Classic London Broil","1) Rustic Coq au Vin Chicken","1) Sweet Chili Pork Loin /Asian","1) Chicken Scallopini Breaded","1) Thai Chicken Skewers w/ Peanut","1) Greek Style Lamb Chops","1) Southern Dry-rub BBQ Ribs","1) Char Siu Chicken Drums"]
[null,null,"2) Fried Onions","2) Spinach & Tomato Gratinee","2) Pork Dumplings/ Black Bean Sauce","2) Olives, Roasted Peppers, Onions","2) Peanut Sauce","2) Crazy Feta Sauce","2) BBQ Sauce","2) Char Siu Sauce"]
["C4","STARCH ITEM            SIDE ITEM","1) Boiled Bliss/Parsley & Butter","1) Rice Pilaf","1) Soy Ramen Noodle & Broccoli","1) Orzo Pasta, Spinach, Tomato","1) Vegetable Fried Rice","1) Vegetable Eggplant Moussaka","1) Aged Cheddar Macaroni","1) Steamed Rice"]
[null,null,"2) Steamed Rice","2) Green Beans & Onions","2) Vegetable Goyza w/Peanut Sauce","2) Pomodorro Sauce","2) Soy-ginger Braised Cabbage","2) Roasted Okra & Tomato w/ Garlic","2) Buttered Green Bean & Cabbage","2) Chinese Glazed Broccoli"]
[null,null,"GARDEN SOUP KETTLE","GARDEN SOUP KETTLE","GARDEN SOUP KETTLE","GARDEN SOUP KETTLE","GARDEN SOUP KETTLE","GARDEN SOUP KETTLE","GARDEN SOUP KETTLE","GARDEN SOUP KETTLE"]
["D1","SOUPS","1) Daily Soup Main Dining","1) Daily Soup Main Dining","1) Daily Soup Main Dining","1) Daily Soup Main Dining","1) Daily Soup Main Dining","1) Daily Soup Main Dining","1) Daily Soup Main Dining","1) Daily Soup Main Dining"]
[null,null,"2) Daily Soup Main Dining","2) Daily Soup Main Dining","2) Daily Soup Main Dining","2) Daily Soup Main Dining","2) Daily Soup Main Dining","2) Daily Soup Main Dining","2) Daily Soup Main Dining","2) Daily Soup Main Dining"]
["D2","TOPPINGS","Scallions / Bacon Bits / Croutons ","Scallions / Bacon Bits / Croutons ","Scallions / Bacon Bits / Croutons ","Scallions / Bacon Bits / Croutons ","Scallions / Bacon Bits / Croutons ","Scallions / Bacon Bits / Croutons ","Scallions / Bacon Bits / Croutons ","Scallions / Bacon Bits / Croutons "]
[null,null,"Parmesan / Red Onion / Tofu","Parmesan / Red Onion / Tofu","Parmesan / Red Onion / Tofu","Parmesan / Red Onion / Tofu","Parmesan / Red Onion / Tofu","Parmesan / Red Onion / Tofu","Parmesan / Red Onion / Tofu","Parmesan / Red Onion / Tofu"]
[null,null,"HARVEST SALADS","HARVEST SALADS","HARVEST SALADS","HARVEST SALADS","HARVEST SALADS","HARVEST SALADS","HARVEST SALADS","HARVEST SALADS"]
["E1","Composed Salad","Hot Smoked Salmon & Cucumber","White Truffle Chicken Salad","Shrimp & Avocado Salad","Salmon Salad Nicoise","Hot Smoked Salmon & Cucumber","White Truffle Chicken Salad","Shrimp & Avocado Salad","Salmon Salad Nicoise"]
[null,"Crostini","Port Figs & Brie Crostini","Goat Cheese & Beet Crostini","Caprese & Prosciutto, Balsamic Glaze","Gorgonzola, Cranberries, Pistachio","Port Figs & Brie Crostini","Goat Cheese & Beet Crostini","Caprese & Prosciutto, Balsamic Glaze","Gorgonzola, Cranberries, Pistachio"]
[null,"Cold Appetizer","Deviled Egg w/ Salmon Roe & Chives","Port Figs & Brie Puffs","Deviled Egg w/ Salmon Roe & Chives","Prosciutto, Arugula, Feta Cheese","Deviled Egg w/ Salmon Roe & Chives","Port Figs & Brie Puffs","Deviled Egg w/ Salmon Roe & Chives","Prosciutto, Arugula, Feta Cheese"]
[null,"Cold Appetizer","Mixed Olives & Almonds","Salt Roasted Cashews & Pickles","Watermelon, Gorgonzola, Port Syrup","Cantaloupe & Cherry Cocktail","Mixed Olives & Almonds","Salt Roasted Cashews & Pickles","Watermelon, Gorgonzola, Port Syrup","Cantaloupe & Cherry Cocktail"]
[null,null,"COMPOSED SALADS","COMPOSED SALADS","COMPOSED SALADS","COMPOSED SALADS","COMPOSED SALADS","COMPOSED SALADS","COMPOSED SALADS","COMPOSED SALADS"]
["E2","Caesar Salad","Ceasar Salad w/ Toppings","Ceasar Salad w/ Toppings","Ceasar Salad w/ Toppings","Ceasar Salad w/ Toppings","Ceasar Salad w/ Toppings","Ceasar Salad w/ Toppings","Ceasar Salad w/ Toppings","Ceasar Salad w/ Toppings"]
[null,"Composed Salad","Chicken Salad","Green Bean Salad","Orzo Pasta & Wild Rice Salad","Greek Salad","Chicken Salad","Green Bean Salad","Orzo Pasta & Chicken Salad","Greek Salad"]
[null,"Fruit Salad LG","Mango-Sesame-Chili Fruit Salad","Apricot & Cherry Fruit Salad","Spicy Pear & Pineapple Salad","Cajun Peach Salad","Apricot & Cherry Fruit Salad","Spicy Pear & Pineapple Salad","Cajun Peach Salad","Mango-Sesame-Chili Fruit Salad"]
[null,"Roasted Veg","Zucchini-Peppers-Onions","Roasted Asparagus-Tomato-Carrot","Roasted Mushroom & Tomato","Roasted Carrots & Peppers","Mixed Vegetables","Zucchini-Red Pepper- Eggplant","Roasted Mushroom & Tomato","Roasted Carrots & Peppers"]
[null,"Cheese Garnish","Blue Cheese / Parmesan Cheese","Blue Cheese / Parmesan Cheese","Blue Cheese / Parmesan Cheese","Blue Cheese / Parmesan Cheese","Blue Cheese / Parmesan Cheese","Blue Cheese / Parmesan Cheese","Blue Cheese / Parmesan Cheese","Blue Cheese / Parmesan Cheese"]
[null,"Bread Garnish","Garlic Bread / Parmesan Bread","Seasoned Bagel Chips","Garlic Bread / Parmesan Bread","Cheddar Cheese Bread","Seasoned Bagel Chips","Garlic Bread / Parmesan Bread","Cheddar Cheese Bread","Garlic Bread / Parmesan Bread"]
[null,null,"FRESH MARKET GREENS","FRESH MARKET GREENS","FRESH MARKET GREENS","FRESH MARKET GREENS","FRESH MARKET GREENS","FRESH MARKET GREENS","FRESH MARKET GREENS","FRESH MARKET GREENS"]
["F1","Leaf Lettuce","Mixed Greens / Spinach","Mixed Greens / Iceberg","Mixed Greens / Spinach","Mixed Greens / Iceberg","Mixed Greens / Spinach","Mixed Greens / Iceberg","Mixed Greens / Spinach","Mixed Greens / Iceberg"]
[null,"Leaf Lettuce","Shredded Green & Red Cabbage","Shredded Green & Red Cabbage","Shredded Green & Red Cabbage","Shredded Green & Red Cabbage","Shredded Green & Red Cabbage","Shredded Green & Red Cabbage","Shredded Green & Red Cabbage","Shredded Green & Red Cabbage"]
[null,"Tomato Salad","Sliced Tomato & Red Onion","Sliced Tomato & Red Onion","Sliced Tomato & Red Onion","Sliced Tomato & Red Onion","Sliced Tomato & Red Onion","Sliced Tomato & Red Onion","Sliced Tomato & Red Onion","Sliced Tomato & Red Onion"]
[null,"Potato Salad","Smoked Paprika Potato Salad","German Potato Salad","American Potato Salad","Lemon Pepper Potato Salad","German Potato Salad","American Potato Salad","Smoked Paprika Potato Salad","Lemon Pepper Potato Salad"]
[null,"Crudités","Carrots/Celery/Pepper/Radish","Cauliflower/Broccoli/Cherry Tomato","Cucumber/Radish/Peppers/Carrots","Carrots/Celery/Pepper/Radish","Cauliflower/Broccoli/Cherry Tomato","Cucumber/Radish/Peppers/Carrots","Carrots/Celery/Pepper/Radish","Cauliflower/Broccoli/Cherry Tomato"]
[null,null,"GOURMET SANDWICH SHOP","GOURMET SANDWICH SHOP","GOURMET SANDWICH SHOP","GOURMET SANDWICH SHOP","GOURMET SANDWICH SHOP","GOURMET SANDWICH SHOP","GOURMET SANDWICH SHOP","GOURMET SANDWICH SHOP"]
["F2","Mini Slider Roll ","Roast Beef, Horseradish, Pickles","Waldorf Chicken Sandwich","Salami, Tomato, Brie, Figs, Fennel","Mini Lobster Roll","Roast Beef, Horseradish, Pickles","Waldorf Chicken Sandwich","Salami, Tomato, Brie, Figs, Fennel","Mini Lobster Roll"]
[null,"Open Face","Smoked Salmon,Cucumber,Dill ","Prosciutto, Gorgonzola, Figs","Shaved Lamb, Tabbouleh Feta","Shaved Filet Mignon w/ Truffle Aioli","Smoked Salmon,Cucumber,Dill ","Prosciutto, Gorgonzola, Figs","Shaved Lamb, Tabbouleh Feta","Shaved Filet Mignon w/ Truffle Aioli"]
[null,"Gazpacho","Cucumber Herb","Tomato & Basil","Carrot-Lime","Red Pepper & Tomato","Cucumber Herb","Tomato & Basil","Carrot-Lime","Red Pepper & Tomato"]
[null,"Pickles","Red Onion-Cornichons-Giardiniera-Green Olives - Kalamata Olives","Red Onion-Cornichons-Giardiniera-Green Olives - Kalamata Olives","Red Onion-Cornichons-Giardiniera-Green Olives - Kalamata Olives","Red Onion-Cornichons-Giardiniera-Green Olives - Kalamata Olives","Red Onion-Cornichons-Giardiniera-Green Olives - Kalamata Olives","Red Onion-Cornichons-Giardiniera-Green Olives - Kalamata Olives","Red Onion-Cornichons-Giardiniera-Green Olives - Kalamata Olives","Red Onion-Cornichons-Giardiniera-Green Olives - Kalamata Olives"]
[null,"Condiments","Dijon Mustard - Mayonnaise","Dijon Mustard - Mayonnaise","Dijon Mustard - Mayonnaise","Dijon Mustard - Mayonnaise","Dijon Mustard - Mayonnaise","Dijon Mustard - Mayonnaise","Dijon Mustard - Mayonnaise","Dijon Mustard - Mayonnaise"]
[null,null,"CHARCUTERIE","CHARCUTERIE","CHARCUTERIE","CHARCUTERIE","CHARCUTERIE","CHARCUTERIE","CHARCUTERIE","CHARCUTERIE"]
["G1","CHARCUTERIE DISPLAY"," Chicken Liver Pate w/ Pickled Onions"," Chicken Liver Pate w/ Pickled Onions"," Chicken Liver Pate w/ Pickled Onions"," Chicken Liver Pate w/ Pickled Onions"," Chicken Liver Pate w/ Pickled Onions"," Chicken Liver Pate w/ Pickled Onions"," Chicken Liver Pate w/ Pickled Onions"," Chicken Liver Pate w/ Pickled Onions"]
[null,null,"Farmers Pate w/ Lettuce","Farmers Pate w/ Lettuce","Farmers Pate w/ Lettuce","Farmers Pate w/ Lettuce","Farmers Pate w/ Lettuce","Farmers Pate w/ Lettuce","Farmers Pate w/ Lettuce","Farmers Pate w/ Lettuce"]
[null,null,"Lobster-Seafood Terrine","Lobster-Seafood Terrine","Lobster-Seafood Terrine","Lobster-Seafood Terrine","Lobster-Seafood Terrine","Lobster-Seafood Terrine","Lobster-Seafood Terrine","Lobster-Seafood Terrine"]
[null,null,"Shaved Coppa ","Shaved Proscuitto ","Shaved Coppa ","Shaved Proscuitto ","Shaved Coppa ","Shaved Proscuitto ","Shaved Coppa ","Shaved Proscuitto "]
[null,null,"Sliced Ham","Sliced Turkey Breast","Sliced Ham","Sliced Turkey Breast","Sliced Ham","Sliced Turkey Breast","Sliced Ham","Sliced Turkey Breast"]
[null,"CONDIMENTS","Cornichons / Pickles / Pearl Onions","Cornichons / Pickles / Pearl Onions","Cornichons / Pickles / Pearl Onions","Cornichons / Pickles / Pearl Onions","Cornichons / Pickles / Pearl Onions","Cornichons / Pickles / Pearl Onions","Cornichons / Pickles / Pearl Onions","Cornichons / Pickles / Pearl Onions"]
[null,null,"Olives / Mustard / Giardiniera Veg","Olives / Mustard / Giardiniera Veg","Olives / Mustard / Giardiniera Veg","Olives / Mustard / Giardiniera Veg","Olives / Mustard / Giardiniera Veg","Olives / Mustard / Giardiniera Veg","Olives / Mustard / Giardiniera Veg","Olives / Mustard / Giardiniera Veg"]
[null,null,"PRETZEL BAR","PRETZEL BAR","PRETZEL BAR","PRETZEL BAR","PRETZEL BAR","PRETZEL BAR","PRETZEL BAR","PRETZEL BAR"]
["H1","PRETZELS","Plain Pretzel","Plain Pretzel","Plain Pretzel","Plain Pretzel","Plain Pretzel","Plain Pretzel","Plain Pretzel","Plain Pretzel"]
[null,null,"Salt Crusted Pretzel","Salt Crusted Pretzel","Salt Crusted Pretzel","Salt Crusted Pretzel","Salt Crusted Pretzel","Salt Crusted Pretzel","Salt Crusted Pretzel","Salt Crusted Pretzel"]
[null,"SAUCE ","Beer & Cheese Sauce","Beer & Cheese Sauce","Beer & Cheese Sauce","Beer & Cheese Sauce","Beer & Cheese Sauce","Beer & Cheese Sauce","Beer & Cheese Sauce","Beer & Cheese Sauce"]
[null,"SAUCE ","Honey Mustard Sauce","Honey Mustard Sauce","Honey Mustard Sauce","Honey Mustard Sauce","Honey Mustard Sauce","Honey Mustard Sauce","Honey Mustard Sauce","Honey Mustard Sauce"]
[null,"SAUCE ","Spicy Mustard Sauce","Spicy Mustard Sauce","Spicy Mustard Sauce","Spicy Mustard Sauce","Spicy Mustard Sauce","Spicy Mustard Sauce","Spicy Mustard Sauce","Spicy Mustard Sauce"]
[null,null,"FRESH MARKET TOPPINGS","FRESH MARKET TOPPINGS","FRESH MARKET TOPPINGS","FRESH MARKET TOPPINGS","FRESH MARKET TOPPINGS","FRESH MARKET TOPPINGS","FRESH MARKET TOPPINGS","FRESH MARKET TOPPINGS"]
["H2","TOPPINGS","Cherry Tomato Slice / Red Onion","Cherry Tomato Slice / Red Onion","Cherry Tomato Slice / Red Onion","Cherry Tomato Slice / Red Onion","Cherry Tomato Slice / Red Onion","Cherry Tomato Slice / Red Onion","Cherry Tomato Slice / Red Onion","Cherry Tomato Slice / Red Onion"]
[null,null,"Cucumber / Celery / Carrots / Radish","Cucumber / Celery / Carrots / Radish","Cucumber / Celery / Carrots / Radish","Cucumber / Celery / Carrots / Radish","Cucumber / Celery / Carrots / Radish","Cucumber / Celery / Carrots / Radish","Cucumber / Celery / Carrots / Radish","Cucumber / Celery / Carrots / Radish"]
[null,null,"Mixed Pepper / Mushrooms / Corn","Mixed Pepper / Mushrooms / Corn","Mixed Pepper / Mushrooms / Corn","Mixed Pepper / Mushrooms / Corn","Mixed Pepper / Mushrooms / Corn","Mixed Pepper / Mushrooms / Corn","Mixed Pepper / Mushrooms / Corn","Mixed Pepper / Mushrooms / Corn"]
[null,null,"Garbanzo Bean / Black Bean","Garbanzo Bean / Black Bean","Garbanzo Bean / Black Bean","Garbanzo Bean / Black Bean","Garbanzo Bean / Black Bean","Garbanzo Bean / Black Bean","Garbanzo Bean / Black Bean","Garbanzo Bean / Black Bean"]
[null,null,"Green Olives / Sunflower Seeds","Green Olives / Sunflower Seeds","Green Olives / Sunflower Seeds","Green Olives / Sunflower Seeds","Green Olives / Sunflower Seeds","Green Olives / Sunflower Seeds","Green Olives / Sunflower Seeds","Green Olives / Sunflower Seeds"]
[null,null,"Walnuts / Croutons","Walnuts / Croutons","Walnuts / Croutons","Walnuts / Croutons","Walnuts / Croutons","Walnuts / Croutons","Walnuts / Croutons","Walnuts / Croutons"]
[null,"DRESSINGS"," Ranch / Caesar / Balsamic / Italian"," Ranch / Caesar / Balsamic / Italian"," Ranch / Caesar / Balsamic / Italian"," Ranch / Caesar / Balsamic / Italian"," Ranch / Caesar / Balsamic / Italian"," Ranch / Caesar / Balsamic / Italian"," Ranch / Caesar / Balsamic / Italian"," Ranch / Caesar / Balsamic / Italian"]
[null,null," Low-fat Yogurt / Blue Cheese "," Low-fat Yogurt / Blue Cheese "," Low-fat Yogurt / Blue Cheese "," Low-fat Yogurt / Blue Cheese "," Low-fat Yogurt / Blue Cheese "," Low-fat Yogurt / Blue Cheese "," Low-fat Yogurt / Blue Cheese "," Low-fat Yogurt / Blue Cheese "]
[null,null," 1000 Island / Shallot / Mustard"," 1000 Island / Shallot / Mustard"," 1000 Island / Shallot / Mustard"," 1000 Island / Shallot / Mustard"," 1000 Island / Shallot / Mustard"," 1000 Island / Shallot / Mustard"," 1000 Island / Shallot / Mustard"," 1000 Island / Shallot / Mustard"]
[null,null,"PASTRY COUNTER","PASTRY COUNTER","PASTRY COUNTER","PASTRY COUNTER","PASTRY COUNTER","PASTRY COUNTER","PASTRY COUNTER","PASTRY COUNTER"]
["H3","Fruit Tart","Fresh Fruit Tartlet","Fresh Fruit Tartlet","Fresh Fruit Tartlet","Fresh Fruit Tartlet","Fresh Fruit Tartlet","Fresh Fruit Tartlet","Fresh Fruit Tartlet","Fresh Fruit Tartlet"]
[null,"Pastry","Chocolates Journey","Grandma's Chocolate Cake","Chocolate Coffee Almond Cake","Grandma's Chocolate Cake","Chocolate Coffee Almond Cake","Chocolate Peanut Butter Cake","Grandma's Chocolate Cake","Grandma's Chocolate Cake"]
[null,"Pastry","Pineapple Upside Down Cake","Coconut Passionfruit Cake","Brazilian Cake","Tiramisu","Apricot Pistachio Mousse Cake","Blueberry Cake","Red Velvet Cheese Cake","Sacher Torte"]
[null,"Pastry","Hawaiin Coffee Coconut Cake","Oreo Peanut Chocolate Pie","Crustry Strawberry Shortcake","Crostata Genovese","Roasted Nut Pie","Cherry Cake","Apple Pie","Linzer Torte"]
[null,"Pastry","Boston Cream Pie","St Honore","Peanut Butter Chocolate Pie","Mimosa Cake","Almond Season Fruit Macaroon","Pecan Pie","Sweet Mud Pie","Bee Sting"]
[null,null,"FRESH & FAST - GF","FRESH & FAST - GF","FRESH & FAST - GF","FRESH & FAST - GF","FRESH & FAST - GF","FRESH & FAST - GF","FRESH & FAST - GF","FRESH & FAST - GF"]
["H4","Gluten Free","Flourless Chocolate Cake","Rhubarb Pie","Almond Torte","Amaretto Profiteroles","Pavlova","Sweet Potato Pie","Chocolate Tapioca Pudding","Dark Almond Chocolate Cake"]
[]
[null,"Sugar Free","Peach Blueberry Crisp","Semolina Tart","Milk Chocolate Mousse Cake","Mango & Banana Shortcake","Cherry Trifle","Coconut Cake","Chocolate Cheese Cake","Coffee Mousse Cake"]
["H5","H5 - HOT","Roasted Apples & Caramel","Caramel Chocolate Baked Banana","Apricot Tapioca Pudding","Gluten Free Bread Pudding / Vanilla","S'Mores Baked w/ GF Cookings","Warm Cherry & Apple Crumble Bake","Apple Marshmallow Bake","Roasted Pears & Raisins"]
[null,null,"FRUIT STAND FAVORITES","FRUIT STAND FAVORITES","FRUIT STAND FAVORITES","FRUIT STAND FAVORITES","FRUIT STAND FAVORITES","FRUIT STAND FAVORITES","FRUIT STAND FAVORITES","FRUIT STAND FAVORITES"]
["I-1","Whole Fruits","Banana / Red Apple / Pears / Peach   Green Apple / Oranges","Banana / Red Apple / Pears / Peach   Green Apple / Oranges","Banana / Red Apple / Pears / Peach   Green Apple / Oranges","Banana / Red Apple / Pears / Peach   Green Apple / Oranges","Banana / Red Apple / Pears / Peach   Green Apple / Oranges","Banana / Red Apple / Pears / Peach   Green Apple / Oranges","Banana / Red Apple / Pears / Peach   Green Apple / Oranges","Banana / Red Apple / Pears / Peach   Green Apple / Oranges"]
[null,"Sliced Fruits","Watermelon/Pineapple/  Cantaloupe  Honeydew Melon","Watermelon/Pineapple/  Cantaloupe  Honeydew Melon","Watermelon/Pineapple/  Cantaloupe  Honeydew Melon","Watermelon/Pineapple/  Cantaloupe  Honeydew Melon","Watermelon/Pineapple/  Cantaloupe  Honeydew Melon","Watermelon/Pineapple/  Cantaloupe  Honeydew Melon","Watermelon/Pineapple/  Cantaloupe  Honeydew Melon","Watermelon/Pineapple/  Cantaloupe  Honeydew Melon"]
[null,null,"OVEN BAKED BREADS","OVEN BAKED BREADS","OVEN BAKED BREADS","OVEN BAKED BREADS","OVEN BAKED BREADS","OVEN BAKED BREADS","OVEN BAKED BREADS","OVEN BAKED BREADS"]
["I-2","Current Rolls","1) Plain Crunchy Rolls","1) Plain Crunchy Rolls","1) Plain Crunchy Rolls","1) Plain Crunchy Rolls","1) Plain Crunchy Rolls","1) Plain Crunchy Rolls","1) Plain Crunchy Rolls","1) Plain Crunchy Rolls"]
[null,null,"2) Plain Soft Rolls","2) Plain Soft Rolls","2) Plain Soft Rolls","2) Plain Soft Rolls","2) Plain Soft Rolls","2) Plain Soft Rolls","2) Plain Soft Rolls","2) Plain Soft Rolls"]
[null,null,"3) Six Cereal Rolls","3) Sunflower Seed Rolls","3) Pumpernickel Rolls","3) Sesame Seed Rolls","3) Olive Rolls","3) Whole Wheat Raisin","3) Honey Wheat Rolls","3) Six Cereal Rolls"]
[null,"Loafs","4) Muesli Loaf Sliced","4) Honey Wheat Loaf Slice","4) Six Cereal Loaf Sliced","4) Focaccia Loaf Sliced","4) Pumpernickel Loaf Sliced","4) Rye Loaf Sliced","4) Sourdough Loaf Sliced","4) Muesli Loaf Sliced"]
[null,null,"5) Olive Focaccia","5) Olive Focaccia","5) Olive Focaccia","5) Tomato Focaccia","5) Parmesan Focaccia","5) Sun-Dried Tomato Focaccia","5) Olive Focaccia","5) Rosemary Focaccia"]
[null,"Condiments","Butter & Preserves","Butter & Preserves","Butter & Preserves","Butter & Preserves","Butter & Preserves","Butter & Preserves","Butter & Preserves","Butter & Preserves"]
[null,null,"FROMAGERIE","FROMAGERIE","FROMAGERIE","FROMAGERIE","FROMAGERIE","FROMAGERIE","FROMAGERIE","FROMAGERIE"]
["I-3","CHEESE"," Cheddar / Provolone / Gorgonzola"," Cheddar / Provolone / Gorgonzola"," Cheddar / Provolone / Gorgonzola"," Cheddar / Provolone / Gorgonzola"," Cheddar / Provolone / Gorgonzola"," Cheddar / Provolone / Gorgonzola"," Cheddar / Provolone / Gorgonzola"," Cheddar / Provolone / Gorgonzola"]
[null,"CHEESE"," Havarti / Jack Cheese"," Havarti / Jack Cheese"," Havarti / Jack Cheese"," Havarti / Jack Cheese"," Havarti / Jack Cheese"," Havarti / Jack Cheese"," Havarti / Jack Cheese"," Havarti / Jack Cheese"]
[null,"CONDIMENTS"," Variety of Crackers"," Variety of Crackers"," Variety of Crackers"," Variety of Crackers"," Variety of Crackers"," Variety of Crackers"," Variety of Crackers"," Variety of Crackers"]
[null,"DRIED FRUITS","Apricots / Figs / Dates / Prunes","Apricots / Figs / Dates / Prunes","Apricots / Figs / Dates / Prunes","Apricots / Figs / Dates / Prunes","Apricots / Figs / Dates / Prunes","Apricots / Figs / Dates / Prunes","Apricots / Figs / Dates / Prunes","Apricots / Figs / Dates / Prunes"]
[null,"NUTS","Almond / Pistachio / Walnuts / Pecans","Almond / Pistachio / Walnuts / Pecans","Almond / Pistachio / Walnuts / Pecans","Almond / Pistachio / Walnuts / Pecans","Almond / Pistachio / Walnuts / Pecans","Almond / Pistachio / Walnuts / Pecans","Almond / Pistachio / Walnuts / Pecans","Almond / Pistachio / Walnuts / Pecans"]
[null,null,"FRESH & FAST STATION - 2","FRESH & FAST STATION - 2","FRESH & FAST STATION - 2","FRESH & FAST STATION - 2","FRESH & FAST STATION - 2","FRESH & FAST STATION - 2","FRESH & FAST STATION - 2","FRESH & FAST STATION - 2"]
["H4","PASTRY","Chocolate Coffee Almond Cake","Dark Chocolate Almond Cake","Black Forest Torte","Coffee Mousse Cake ","Sacher Torte","Linzer Torte","Bee Sting","Apple Strudel "]
[]
[null,"PASTRY ","Pineapple Upside Down Cake","Coconut Passionfruit Cake","Brazilian Cake","Tiramisu","Apricot Pistachio Mousse Cake","Blueberry Cake","Red Velvet Cheese Cake","Sacher Torte"]
[]
["I-5","Dessert Hot","Bread Butter Pudding / Caramel Sauce","Warm Hazelnut Pudding/ Vanilla Sauc","Butter Pecan Pudding Caramel Sauce","Frutti Di Bosco","Sticky Toffee Pudding","Warm Apricot / Custard Jalousie","Banana Brioche Bread Butter Pudding","Apple Strudel "]

{"sheet":"LUNCH CARVING","index":16,"n_rows":5,"n_cols":2,"rows_kept":5,"cut":false,"hidden":false,"merged":[]}
["MEDITERRANEAN LEG OF LAMB","Roulade stuffed with kalmata olives, sundried tomato, artichokes, carm onions, quinoa"]
[]
["FLANK STEAK","Stuffed with spinach, garlic, mushrooms, gorgonzola cheese"]
[]
["TURKEY ROULADE"]